Workbook

Sheet Main
B10: 2018-05-30
B12: Sheet No. | C12: Template Name | D12: Summary
B13: 1 | C13: Future Intra | D13: For Intraday trading in F&O segment
B14: 2 | C14: Cash Intra | D14: For Intraday trading in cash market segment
B15: 3 | C15: Mid-cap Intra | D15: For Intraday trading in Mid-cap stocks
B16: 4 | C16: Bulk Deals | D16: Reveals Bulk Deals carried on NSE & BSE
B17: 5 | C17: Call Tracker

Sheet Future Intra
M5: Back to Main Page
A6: FOR INTRA DAY TRADING | L6: =Main!B10 -> 2018-05-30
A9: Sr.no | B9: Sector | C9: Scrip | D9: CLOSE RATE | E9: Pivot Point | F9: Supports | I9: Resistances
B10: Sector | D10: Point | E10: Point | F10: S1 | G10: S2 | H10: S3 | I10: R1 | J10: R2 | K10: R3 | L10: HIGH | M10: LOW | N10: OI | O10: % Change in OI
A11: 1 | B11: Index | C11: BANKNIFTY | D11: 26183.75 | E11: 26279.12 | F11: 26048.43 | G11: 25913.12 | H11: 25682.43 | I11: 26414.43 | J11: 26645.12 | K11: 26780.43 | L11: 26509.8 | M11: 26143.8 | N11: 2851160 | O11: -8.87%
A12: 2 | B12: Index | C12: NIFTY | D12: 10615.55 | E12: 10638.53 | F12: 10573.07 | G12: 10530.58 | H12: 10465.12 | I12: 10681.02 | J12: 10746.48 | K12: 10788.97 | L12: 10704 | M12: 10596.05 | N12: 27057000 | O12: 7.22%
A13: 3 | B13: Index | C13: NIFTYCPSE | D13: 2627.40 | E13: 875.80 | F13: 1751.60 | G13: 875.80 | H13: 1751.60 | I13: 1751.60 | J13: 875.80 | K13: 1751.60 | L13: 0 | M13: 0 | N13: 0 | O13: 0.00%
A14: 4 | B14: Index | C14: NIFTYINFRA | D14: 3441.10 | E14: 1147.03 | F14: 2294.07 | G14: 1147.03 | H14: 2294.07 | I14: 2294.07 | J14: 1147.03 | K14: 2294.07 | L14: 0 | M14: 0 | N14: 0 | O14: 0.00%
A15: 5 | B15: Index | C15: NIFTYIT | D15: 13533.00 | E15: 13528.00 | F15: 13461.00 | G15: 13389.00 | H15: 13322.00 | I15: 13600.00 | J15: 13667.00 | K15: 13739.00 | L15: 13595 | M15: 13456 | N15: 53800 | O15: -0.65%
A16: 6 | B16: Index | C16: NIFTYMID50 | D16: 5060.25 | E16: 5061.77 | F16: 5023.53 | G16: 4986.82 | H16: 4948.58 | I16: 5098.48 | J16: 5136.72 | K16: 5173.43 | L16: 5100 | M16: 5025.05 | N16: 591600 | O16: -0.03%
A17: 7 | B17: Index | C17: NIFTYPSE | D17: 4077.45 | E17: 1359.15 | F17: 2718.30 | G17: 1359.15 | H17: 2718.30 | I17: 2718.30 | J17: 1359.15 | K17: 2718.30 | L17: 0 | M17: 0 | N17: 0 | O17: 0.00%
A18: 8 | B18: Cement | C18: ACC | D18: 1310.05 | E18: 1316.12 | F18: 1296.23 | G18: 1282.42 | H18: 1262.53 | I18: 1329.93 | J18: 1349.82 | K18: 1363.63 | L18: 1336 | M18: 1302.3 | N18: 3965200 | O18: 12.88%
A19: 9 | B19: Others | C19: ADANIENT | D19: 123.55 | E19: 125.18 | F19: 121.07 | G19: 118.58 | H19: 114.47 | I19: 127.67 | J19: 131.78 | K19: 134.27 | L19: 129.3 | M19: 122.7 | N19: 12736000 | O19: 6.42%
A20: 10 | B20: Others | C20: ADANIPORTS | D20: 376.70 | E20: 377.90 | F20: 372.80 | G20: 368.90 | H20: 363.80 | I20: 381.80 | J20: 386.90 | K20: 390.80 | L20: 383 | M20: 374 | N20: 18930000 | O20: 4.15%
A21: 11 | B21: Power | C21: ADANIPOWER | D21: 20.55 | E21: 20.70 | F21: 19.85 | G21: 19.15 | H21: 18.30 | I21: 21.40 | J21: 22.25 | K21: 22.95 | L21: 21.55 | M21: 20 | N21: 120120000 | O21: 10.34%
A22: 12 | B22: Pharma | C22: AJANTPHARM | D22: 1015.25 | E22: 1023.20 | F22: 1001.45 | G22: 987.65 | H22: 965.90 | I22: 1037.00 | J22: 1058.75 | K22: 1072.55 | L22: 1044.95 | M22: 1009.4 | N22: 1108500 | O22: 0.23%
A23: 13 | B23: Banking | C23: ALBK | D23: 41.90 | E23: 42.20 | F23: 41.20 | G23: 40.50 | H23: 39.50 | I23: 42.90 | J23: 43.90 | K23: 44.60 | L23: 43.2 | M23: 41.5 | N23: 17668000 | O23: -5.75%
A24: 14 | B24: Automobile | C24: AMARAJABAT | D24: 792.20 | E24: 793.22 | F24: 780.73 | G24: 769.27 | H24: 756.78 | I24: 804.68 | J24: 817.17 | K24: 828.63 | L24: 805.7 | M24: 781.75 | N24: 1575700 | O24: -3.60%
A25: 15 | B25: Cement | C25: AMBUJACEM | D25: 208.35 | E25: 209.95 | F25: 206.25 | G25: 204.15 | H25: 200.45 | I25: 212.05 | J25: 215.75 | K25: 217.85 | L25: 213.65 | M25: 207.85 | N25: 14897500 | O25: 3.60%
A26: 16 | B26: Banking | C26: ANDHRABANK | D26: 36.75 | E26: 37.00 | F26: 36.35 | G26: 35.95 | H26: 35.30 | I26: 37.40 | J26: 38.05 | K26: 38.45 | L26: 37.65 | M26: 36.6 | N26: 27285000 | O26: 3.68%
A27: 17 | B27: Others | C27: APOLLOHOSP | D27: 1005.05 | E27: 993.60 | F27: 977.35 | G27: 949.65 | H27: 933.40 | I27: 1021.30 | J27: 1037.55 | K27: 1065.25 | L27: 1009.85 | M27: 965.9 | N27: 1166500 | O27: -1.89%
A28: 18 | B28: Automobile | C28: APOLLOTYRE | D28: 280.60 | E28: 283.87 | F28: 276.73 | G28: 272.87 | H28: 265.73 | I28: 287.73 | J28: 294.87 | K28: 298.73 | L28: 291 | M28: 280 | N28: 8991000 | O28: 8.78%
A29: 19 | B29: Textile | C29: ARVIND | D29: 389.75 | E29: 392.37 | F29: 384.88 | G29: 380.02 | H29: 372.53 | I29: 397.23 | J29: 404.72 | K29: 409.58 | L29: 399.85 | M29: 387.5 | N29: 7532000 | O29: 1.67%
A30: 20 | B30: Automobile | C30: ASHOKLEY | D30: 149.45 | E30: 148.67 | F30: 147.03 | G30: 144.62 | H30: 142.98 | I30: 151.08 | J30: 152.72 | K30: 155.13 | L30: 150.3 | M30: 146.25 | N30: 67235000 | O30: -1.29%
A31: 21 | B31: FMCG | C31: ASIANPAINT | D31: 1299.50 | E31: 1306.67 | F31: 1283.68 | G31: 1267.87 | H31: 1244.88 | I31: 1322.48 | J31: 1345.47 | K31: 1361.28 | L31: 1329.65 | M31: 1290.85 | N31: 5908200 | O31: 1.89%
A32: 22 | B32: Pharma | C32: AUROPHARMA | D32: 578.35 | E32: 579.95 | F32: 566.60 | G32: 554.85 | H32: 541.50 | I32: 591.70 | J32: 605.05 | K32: 616.80 | L32: 593.3 | M32: 568.2 | N32: 23022400 | O32: 2.21%
A33: 23 | B33: Banking | C33: AXISBANK | D33: 545.15 | E33: 545.02 | F33: 541.43 | G33: 537.72 | H33: 534.13 | I33: 548.73 | J33: 552.32 | K33: 556.03 | L33: 548.6 | M33: 541.3 | N33: 51237600 | O33: 0.55%
A34: 24 | B34: Automobile | C34: BAJAJ-AUTO | D34: 2794.10 | E34: 2798.07 | F34: 2760.43 | G34: 2726.77 | H34: 2689.13 | I34: 2831.73 | J34: 2869.37 | K34: 2903.03 | L34: 2835.7 | M34: 2764.4 | N34: 2158750 | O34: 2.96%
A35: 25 | B35: Others | C35: BAJAJFINSV | D35: 5894.65 | E35: 5942.57 | F35: 5832.08 | G35: 5769.52 | H35: 5659.03 | I35: 6005.13 | J35: 6115.62 | K35: 6178.18 | L35: 6053.05 | M35: 5880 | N35: 714375 | O35: 3.65%
A36: 26 | B36: Finance | C36: BAJFINANCE | D36: 2077.90 | E36: 2084.43 | F36: 2060.02 | G36: 2042.13 | H36: 2017.72 | I36: 2102.32 | J36: 2126.73 | K36: 2144.62 | L36: 2108.85 | M36: 2066.55 | N36: 5429500 | O36: -0.14%
A37: 27 | B37: Others | C37: BALKRISIND | D37: 1141.20 | E37: 1150.18 | F37: 1124.02 | G37: 1106.83 | H37: 1080.67 | I37: 1167.37 | J37: 1193.53 | K37: 1210.72 | L37: 1176.35 | M37: 1133 | N37: 1253600 | O37: -3.57%
A38: 28 | B38: Others | C38: BALRAMCHIN | D38: 71.85 | E38: 72.23 | F38: 69.47 | G38: 67.08 | H38: 64.32 | I38: 74.62 | J38: 77.38 | K38: 79.77 | L38: 75 | M38: 69.85 | N38: 17185000 | O38: -10.89%
A39: 29 | B39: Banking | C39: BANKBARODA | D39: 140.55 | E39: 141.97 | F39: 138.28 | G39: 136.02 | H39: 132.33 | I39: 144.23 | J39: 147.92 | K39: 150.18 | L39: 145.65 | M39: 139.7 | N39: 56780000 | O39: 0.45%
A40: 30 | B40: Banking | C40: BANKINDIA | D40: 101.40 | E40: 102.55 | F40: 99.60 | G40: 97.80 | H40: 94.85 | I40: 104.35 | J40: 107.30 | K40: 109.10 | L40: 105.5 | M40: 100.75 | N40: 29274000 | O40: 2.63%
A41: 31 | B41: FMCG | C41: BATAINDIA | D41: 771.95 | E41: 771.55 | F41: 763.35 | G41: 754.75 | H41: 746.55 | I41: 780.15 | J41: 788.35 | K41: 796.95 | L41: 779.75 | M41: 762.95 | N41: 2777500 | O41: 3.06%
A42: 32 | B42: Capital_Goods | C42: BEL | D42: 122.80 | E42: 123.05 | F42: 121.70 | G42: 120.60 | H42: 119.25 | I42: 124.15 | J42: 125.50 | K42: 126.60 | L42: 124.4 | M42: 121.95 | N42: 34199550 | O42: 1.38%
A43: 33 | B43: Infrastructure | C43: BEML | D43: 946.60 | E43: 948.07 | F43: 935.13 | G43: 923.67 | H43: 910.73 | I43: 959.53 | J43: 972.47 | K43: 983.93 | L43: 961 | M43: 936.6 | N43: 2028100 | O43: 5.02%
A44: 34 | B44: Others | C44: BERGEPAINT | D44: 299.25 | E44: 300.15 | F44: 294.25 | G44: 289.25 | H44: 283.35 | I44: 305.15 | J44: 311.05 | K44: 316.05 | L44: 306.05 | M44: 295.15 | N44: 2648800 | O44: 15.00%
A45: 35 | B45: Finance | C45: BHARATFIN | D45: 1139.90 | E45: 1145.07 | F45: 1129.93 | G45: 1119.97 | H45: 1104.83 | I45: 1155.03 | J45: 1170.17 | K45: 1180.13 | L45: 1160.2 | M45: 1135.1 | N45: 5630000 | O45: 1.11%
A46: 36 | B46: Automobile | C46: BHARATFORG | D46: 660.05 | E46: 662.52 | F46: 649.03 | G46: 638.02 | H46: 624.53 | I46: 673.53 | J46: 687.02 | K46: 698.03 | L46: 676 | M46: 651.5 | N46: 9379200 | O46: 1.19%
A47: 37 | B47: Telecom | C47: BHARTIARTL | D47: 377.95 | E47: 376.20 | F47: 372.85 | G47: 367.75 | H47: 364.40 | I47: 381.30 | J47: 384.65 | K47: 389.75 | L47: 379.55 | M47: 371.1 | N47: 53165800 | O47: 0.39%
A48: 38 | B48: Capital_Goods | C48: BHEL | D48: 83.60 | E48: 83.28 | F48: 79.72 | G48: 75.83 | H48: 72.27 | I48: 87.17 | J48: 90.73 | K48: 94.62 | L48: 86.85 | M48: 79.4 | N48: 53880000 | O48: 9.08%
A49: 39 | B49: Pharma | C49: BIOCON | D49: 677.75 | E49: 674.08 | F49: 664.17 | G49: 650.58 | H49: 640.67 | I49: 687.67 | J49: 697.58 | K49: 711.17 | L49: 684 | M49: 660.5 | N49: 8554500 | O49: 9.96%
A50: 40 | B50: Automobile | C50: BOSCHLTD | D50: 18520.90 | E50: 18401.72 | F50: 18169.23 | G50: 17817.57 | H50: 17585.08 | I50: 18753.38 | J50: 18985.87 | K50: 19337.53 | L50: 18634.2 | M50: 18050.05 | N50: 152075 | O50: 0.83%
A51: 41 | B51: Oil_Gas | C51: BPCL | D51: 406.05 | E51: 405.52 | F51: 400.93 | G51: 395.82 | H51: 391.23 | I51: 410.63 | J51: 415.22 | K51: 420.33 | L51: 410.1 | M51: 400.4 | N51: 12623400 | O51: 2.80%
A52: 42 | B52: FMCG | C52: BRITANNIA | D52: 5817.75 | E52: 5825.68 | F52: 5772.37 | G52: 5726.98 | H52: 5673.67 | I52: 5871.07 | J52: 5924.38 | K52: 5969.77 | L52: 5879 | M52: 5780.3 | N52: 801200 | O52: -1.60%
A53: 43 | B53: Pharma | C53: CADILAHC | D53: 367.30 | E53: 370.95 | F53: 362.15 | G53: 357.00 | H53: 348.20 | I53: 376.10 | J53: 384.90 | K53: 390.05 | L53: 379.75 | M53: 365.8 | N53: 10457600 | O53: -1.55%
A54: 44 | B54: Banking | C54: CANBK | D54: 256.80 | E54: 258.68 | F54: 253.22 | G54: 249.63 | H54: 244.17 | I54: 262.27 | J54: 267.73 | K54: 271.32 | L54: 264.15 | M54: 255.1 | N54: 15562000 | O54: -0.19%
A55: 45 | B55: Others | C55: CANFINHOME | D55: 386.50 | E55: 389.97 | F55: 377.88 | G55: 369.27 | H55: 357.18 | I55: 398.58 | J55: 410.67 | K55: 419.28 | L55: 402.05 | M55: 381.35 | N55: 5155000 | O55: 3.07%
A56: 46 | B56: Finance | C56: CAPF | D56: 557.65 | E56: 562.60 | F56: 549.45 | G56: 541.25 | H56: 528.10 | I56: 570.80 | J56: 583.95 | K56: 592.15 | L56: 575.75 | M56: 554.4 | N56: 8873600 | O56: 4.20%
A57: 47 | B57: Oil_Gas | C57: CASTROLIND | D57: 174.60 | E57: 176.65 | F57: 171.75 | G57: 168.90 | H57: 164.00 | I57: 179.50 | J57: 184.40 | K57: 187.25 | L57: 181.55 | M57: 173.8 | N57: 11172000 | O57: -5.76%
A58: 48 | B58: Automobile | C58: CEATLTD | D58: 1384.90 | E58: 1387.15 | F58: 1365.80 | G58: 1346.70 | H58: 1325.35 | I58: 1406.25 | J58: 1427.60 | K58: 1446.70 | L58: 1408.5 | M58: 1368.05 | N58: 1761200 | O58: -2.69%
A59: 49 | B59: Textile | C59: CENTURYTEX | D59: 951.75 | E59: 950.65 | F59: 937.30 | G59: 922.85 | H59: 909.50 | I59: 965.10 | J59: 978.45 | K59: 992.90 | L59: 964 | M59: 936.2 | N59: 6975100 | O59: -0.95%
A60: 50 | B60: Power | C60: CESC | D60: 1029.30 | E60: 1028.77 | F60: 1010.53 | G60: 991.77 | H60: 973.53 | I60: 1047.53 | J60: 1065.77 | K60: 1084.53 | L60: 1047 | M60: 1010 | N60: 6172100 | O60: -1.19%
A61: 51 | B61: Power | C61: CGPOWER | D61: 77.25 | E61: 77.82 | F61: 76.13 | G61: 75.02 | H61: 73.33 | I61: 78.93 | J61: 80.62 | K61: 81.73 | L61: 79.5 | M61: 76.7 | N61: 17664000 | O61: 3.01%
A62: 52 | B62: Others | C62: CHENNPETRO | D62: 281.85 | E62: 282.30 | F62: 278.90 | G62: 275.95 | H62: 272.55 | I62: 285.25 | J62: 288.65 | K62: 291.60 | L62: 285.7 | M62: 279.35 | N62: 3456000 | O62: -1.41%
A63: 53 | B63: Others | C63: CHOLAFIN | D63: 1539.95 | E63: 1541.50 | F63: 1521.20 | G63: 1502.45 | H63: 1482.15 | I63: 1560.25 | J63: 1580.55 | K63: 1599.30 | L63: 1561.8 | M63: 1522.75 | N63: 1196500 | O63: -0.95%
A64: 54 | B64: Pharma | C64: CIPLA | D64: 530.40 | E64: 533.38 | F64: 524.27 | G64: 518.13 | H64: 509.02 | I64: 539.52 | J64: 548.63 | K64: 554.77 | L64: 542.5 | M64: 527.25 | N64: 12451000 | O64: 1.82%
A65: 55 | B65: Others | C65: COALINDIA | D65: 282.35 | E65: 282.10 | F65: 276.90 | G65: 271.45 | H65: 266.25 | I65: 287.55 | J65: 292.75 | K65: 298.20 | L65: 287.3 | M65: 276.65 | N65: 19360000 | O65: 13.15%
A66: 56 | B66: FMCG | C66: COLPAL | D66: 1242.25 | E66: 1243.00 | F66: 1230.25 | G66: 1218.25 | H66: 1205.50 | I66: 1255.00 | J66: 1267.75 | K66: 1279.75 | L66: 1255.75 | M66: 1231 | N66: 2361100 | O66: -0.79%
A67: 57 | B67: Others | C67: CONCOR | D67: 1374.80 | E67: 1374.95 | F67: 1358.05 | G67: 1341.30 | H67: 1324.40 | I67: 1391.70 | J67: 1408.60 | K67: 1425.35 | L67: 1391.85 | M67: 1358.2 | N67: 2173125 | O67: 5.11%
A68: 58 | B68: Capital_Goods | C68: CUMMINSIND | D68: 710.50 | E68: 712.37 | F68: 699.13 | G68: 687.77 | H68: 674.53 | I68: 723.73 | J68: 736.97 | K68: 748.33 | L68: 725.6 | M68: 701 | N68: 879000 | O68: 7.01%
A69: 59 | B69: FMCG | C69: DABUR | D69: 385.60 | E69: 382.78 | F69: 378.77 | G69: 371.93 | H69: 367.92 | I69: 389.62 | J69: 393.63 | K69: 400.47 | L69: 386.8 | M69: 375.95 | N69: 15132500 | O69: 2.25%
A70: 60 | B70: Cement | C70: DALMIABHA | D70: 2740.10 | E70: 2731.93 | F70: 2689.82 | G70: 2639.53 | H70: 2597.42 | I70: 2782.22 | J70: 2824.33 | K70: 2874.62 | L70: 2774.05 | M70: 2681.65 | N70: 603000 | O70: -2.90%
A71: 61 | B71: Banking | C71: DCBBANK | D71: 186.75 | E71: 186.53 | F71: 184.32 | G71: 181.88 | H71: 179.67 | I71: 188.97 | J71: 191.18 | K71: 193.62 | L71: 188.75 | M71: 184.1 | N71: 8667000 | O71: -1.83%
A72: 62 | B72: Finance | C72: DHFL | D72: 628.45 | E72: 628.92 | F72: 620.23 | G72: 612.02 | H72: 603.33 | I72: 637.13 | J72: 645.82 | K72: 654.03 | L72: 637.6 | M72: 620.7 | N72: 25857000 | O72: 2.28%
A73: 63 | B73: Media | C73: DISHTV | D73: 73.75 | E73: 74.13 | F73: 72.82 | G73: 71.88 | H73: 70.57 | I73: 75.07 | J73: 76.38 | K73: 77.32 | L73: 75.45 | M73: 73.2 | N73: 50678000 | O73: 0.66%
A74: 64 | B74: Pharma | C74: DIVISLAB | D74: 1067.65 | E74: 1071.62 | F74: 1052.33 | G74: 1037.02 | H74: 1017.73 | I74: 1086.93 | J74: 1106.22 | K74: 1121.53 | L74: 1090.9 | M74: 1056.3 | N74: 3013600 | O74: 4.49%
A75: 65 | B75: Realty | C75: DLF | D75: 204.70 | E75: 205.80 | F75: 201.75 | G75: 198.80 | H75: 194.75 | I75: 208.75 | J75: 212.80 | K75: 215.75 | L75: 209.85 | M75: 202.85 | N75: 39170000 | O75: -2.67%
A76: 66 | B76: Pharma | C76: DRREDDY | D76: 1978.80 | E76: 1989.97 | F76: 1963.28 | G76: 1947.77 | H76: 1921.08 | I76: 2005.48 | J76: 2032.17 | K76: 2047.68 | L76: 2016.65 | M76: 1974.45 | N76: 5194500 | O76: -0.85%
A77: 67 | B77: Automobile | C77: EICHERMOT | D77: 30483.60 | E77: 30515.48 | F77: 30246.37 | G77: 30009.13 | H77: 29740.02 | I77: 30752.72 | J77: 31021.83 | K77: 31259.07 | L77: 30784.6 | M77: 30278.25 | N77: 192725 | O77: -0.12%
A78: 68 | B78: Infrastructure | C78: ENGINERSIN | D78: 136.40 | E78: 137.27 | F78: 134.28 | G78: 132.17 | H78: 129.18 | I78: 139.38 | J78: 142.37 | K78: 144.48 | L78: 140.25 | M78: 135.15 | N78: 11595500 | O78: 2.25%
A79: 69 | B79: Finance | C79: EQUITAS | D79: 161.40 | E79: 161.90 | F79: 159.90 | G79: 158.40 | H79: 156.40 | I79: 163.40 | J79: 165.40 | K79: 166.90 | L79: 163.9 | M79: 160.4 | N79: 22534400 | O79: 3.22%
A80: 70 | B80: Automobile | C80: ESCORTS | D80: 932.90 | E80: 932.43 | F80: 920.47 | G80: 908.03 | H80: 896.07 | I80: 944.87 | J80: 956.83 | K80: 969.27 | L80: 944.4 | M80: 920 | N80: 5067700 | O80: 2.45%
A81: 71 | B81: Automobile | C81: EXIDEIND | D81: 258.00 | E81: 259.68 | F81: 255.62 | G81: 253.23 | H81: 249.17 | I81: 262.07 | J81: 266.13 | K81: 268.52 | L81: 263.75 | M81: 257.3 | N81: 7608000 | O81: -5.75%
A82: 72 | B82: Banking | C82: FEDERALBNK | D82: 86.80 | E82: 86.80 | F82: 86.10 | G82: 85.40 | H82: 84.70 | I82: 87.50 | J82: 88.20 | K82: 88.90 | L82: 87.5 | M82: 86.1 | N82: 81939000 | O82: 0.57%
A83: 73 | B83: Oil_Gas | C83: GAIL | D83: 343.45 | E83: 341.12 | F83: 336.33 | G83: 329.22 | H83: 324.43 | I83: 348.23 | J83: 353.02 | K83: 360.13 | L83: 345.9 | M83: 334 | N83: 14881860 | O83: -0.39%
A84: 74 | B84: Pharma | C84: GLENMARK | D84: 531.50 | E84: 533.42 | F84: 523.08 | G84: 514.67 | H84: 504.33 | I84: 541.83 | J84: 552.17 | K84: 560.58 | L84: 543.75 | M84: 525 | N84: 6199500 | O84: 3.03%
A85: 75 | B85: Infrastructure | C85: GMRINFRA | D85: 18.20 | E85: 18.23 | F85: 17.87 | G85: 17.53 | H85: 17.17 | I85: 18.57 | J85: 18.93 | K85: 19.27 | L85: 18.6 | M85: 17.9 | N85: 342315000 | O85: 9.37%
A86: 76 | B86: Others | C86: GODFRYPHLP | D86: 756.15 | E86: 770.63 | F86: 719.27 | G86: 682.38 | H86: 631.02 | I86: 807.52 | J86: 858.88 | K86: 895.77 | L86: 822 | M86: 733.75 | N86: 662900 | O86: 9.95%
A87: 77 | B87: FMCG | C87: GODREJCP | D87: 1133.65 | E87: 1132.52 | F87: 1120.63 | G87: 1107.62 | H87: 1095.73 | I87: 1145.53 | J87: 1157.42 | K87: 1170.43 | L87: 1144.4 | M87: 1119.5 | N87: 2243200 | O87: -2.67%
A88: 78 | B88: FMCG | C88: GODREJIND | D88: 567.70 | E88: 570.38 | F88: 559.82 | G88: 551.93 | H88: 541.37 | I88: 578.27 | J88: 588.83 | K88: 596.72 | L88: 580.95 | M88: 562.5 | N88: 2650500 | O88: 3.09%
A89: 79 | B89: Pharma | C89: GRANULES | D89: 82.05 | E89: 81.65 | F89: 79.70 | G89: 77.35 | H89: 75.40 | I89: 84.00 | J89: 85.95 | K89: 88.30 | L89: 83.6 | M89: 79.3 | N89: 17810000 | O89: 3.37%
A90: 80 | B90: Cement | C90: GRASIM | D90: 1056.10 | E90: 1059.80 | F90: 1045.80 | G90: 1035.50 | H90: 1021.50 | I90: 1070.10 | J90: 1084.10 | K90: 1094.40 | L90: 1073.8 | M90: 1049.5 | N90: 6132000 | O90: 1.15%
A91: 81 | B91: Others | C91: GSFC | D91: 117.05 | E91: 117.97 | F91: 115.03 | G91: 113.02 | H91: 110.08 | I91: 119.98 | J91: 122.92 | K91: 124.93 | L91: 120.9 | M91: 115.95 | N91: 19885500 | O91: 1.05%
A92: 82 | B92: Others | C92: HAVELLS | D92: 549.75 | E92: 555.73 | F92: 542.47 | G92: 535.18 | H92: 521.92 | I92: 563.02 | J92: 576.28 | K92: 583.57 | L92: 569 | M92: 548.45 | N92: 4947000 | O92: 1.06%
A93: 83 | B93: Others | C93: HCC | D93: 15.60 | E93: 15.85 | F93: 15.25 | G93: 14.90 | H93: 14.30 | I93: 16.20 | J93: 16.80 | K93: 17.15 | L93: 16.45 | M93: 15.5 | N93: 53904000 | O93: 13.79%
A94: 84 | B94: Technology | C94: HCLTECH | D94: 905.15 | E94: 903.68 | F94: 897.67 | G94: 890.18 | H94: 884.17 | I94: 911.17 | J94: 917.18 | K94: 924.67 | L94: 909.7 | M94: 896.2 | N94: 12830300 | O94: 2.24%
A95: 85 | B95: Finance | C95: HDFC | D95: 1809.85 | E95: 1815.82 | F95: 1799.28 | G95: 1788.72 | H95: 1772.18 | I95: 1826.38 | J95: 1842.92 | K95: 1853.48 | L95: 1832.35 | M95: 1805.25 | N95: 25007000 | O95: 3.92%
A96: 86 | B96: Banking | C96: HDFCBANK | D96: 2016.15 | E96: 2022.92 | F96: 2006.93 | G96: 1997.72 | H96: 1981.73 | I96: 2032.13 | J96: 2048.12 | K96: 2057.33 | L96: 2038.9 | M96: 2013.7 | N96: 25095500 | O96: 2.91%
A97: 88 | B97: Automobile | C97: HEROMOTOCO | D97: 3597.25 | E97: 3601.10 | F97: 3563.35 | G97: 3529.45 | H97: 3491.70 | I97: 3635.00 | J97: 3672.75 | K97: 3706.65 | L97: 3638.85 | M97: 3567.2 | N97: 1603000 | O97: 3.13%
A98: 89 | B98: Technology | C98: HEXAWARE | D98: 443.20 | E98: 445.03 | F98: 432.17 | G98: 421.13 | H98: 408.27 | I98: 456.07 | J98: 468.93 | K98: 479.97 | L98: 457.9 | M98: 434 | N98: 6165000 | O98: 3.11%
A99: 90 | B99: Metals | C99: HINDALCO | D99: 241.65 | E99: 241.75 | F99: 238.95 | G99: 236.25 | H99: 233.45 | I99: 244.45 | J99: 247.25 | K99: 249.95 | L99: 244.55 | M99: 239.05 | N99: 40880000 | O99: 1.93%
A100: 91 | B100: Oil_Gas | C100: HINDPETRO | D100: 315.65 | E100: 315.37 | F100: 311.28 | G100: 306.92 | H100: 302.83 | I100: 319.73 | J100: 323.82 | K100: 328.18 | L100: 319.45 | M100: 311 | N100: 31084200 | O100: -0.26%
A101: 92 | B101: FMCG | C101: HINDUNILVR | D101: 1573.40 | E101: 1578.10 | F101: 1558.30 | G101: 1543.20 | H101: 1523.40 | I101: 1593.20 | J101: 1613.00 | K101: 1628.10 | L101: 1597.9 | M101: 1563 | N101: 9665400 | O101: 2.97%
A102: 93 | B102: Metals | C102: HINDZINC | D102: 289.55 | E102: 290.13 | F102: 286.87 | G102: 284.18 | H102: 280.92 | I102: 292.82 | J102: 296.08 | K102: 298.77 | L102: 293.4 | M102: 287.45 | N102: 17276800 | O102: 1.54%
A103: 94 | B103: Finance | C103: IBULHSGFIN | D103: 1217.25 | E103: 1211.10 | F103: 1200.20 | G103: 1183.15 | H103: 1172.25 | I103: 1228.15 | J103: 1239.05 | K103: 1256.10 | L103: 1222 | M103: 1194.05 | N103: 16139300 | O103: -2.36%
A104: 95 | B104: Banking | C104: ICICIBANK | D104: 290.20 | E104: 292.28 | F104: 286.17 | G104: 282.13 | H104: 276.02 | I104: 296.32 | J104: 302.43 | K104: 306.47 | L104: 298.4 | M104: 288.25 | N104: 96772500 | O104: -3.36%
A105: 96 | B105: Others | C105: ICICIPRULI | D105: 418.60 | E105: 420.03 | F105: 413.77 | G105: 408.93 | H105: 402.67 | I105: 424.87 | J105: 431.13 | K105: 435.97 | L105: 426.3 | M105: 415.2 | N105: 5211700 | O105: 2.14%
A106: 97 | B106: Banking | C106: IDBI | D106: 65.20 | E106: 65.12 | F106: 64.18 | G106: 63.17 | H106: 62.23 | I106: 66.13 | J106: 67.07 | K106: 68.08 | L106: 66.05 | M106: 64.1 | N106: 63670000 | O106: -2.59%
A107: 98 | B107: Telecom | C107: IDEA | D107: 62.05 | E107: 61.98 | F107: 60.82 | G107: 59.58 | H107: 58.42 | I107: 63.22 | J107: 64.38 | K107: 65.62 | L107: 63.15 | M107: 60.75 | N107: 149436000 | O107: -1.45%
A108: 99 | B108: Finance | C108: IDFC | D108: 51.70 | E108: 51.98 | F108: 51.17 | G108: 50.63 | H108: 49.82 | I108: 52.52 | J108: 53.33 | K108: 53.87 | L108: 52.8 | M108: 51.45 | N108: 190528800 | O108: 2.41%
A109: 100 | B109: Banking | C109: IDFCBANK | D109: 41.00 | E109: 41.43 | F109: 40.37 | G109: 39.73 | H109: 38.67 | I109: 42.07 | J109: 43.13 | K109: 43.77 | L109: 42.5 | M109: 40.8 | N109: 259055000 | O109: 5.19%
A110: 101 | B110: Finance | C110: IFCI | D110: 18.25 | E110: 18.35 | F110: 17.95 | G110: 17.65 | H110: 17.25 | I110: 18.65 | J110: 19.05 | K110: 19.35 | L110: 18.75 | M110: 18.05 | N110: 73817000 | O110: 2.55%
A111: 102 | B111: Oil_Gas | C111: IGL | D111: 269.15 | E111: 268.20 | F111: 265.95 | G111: 262.75 | H111: 260.50 | I111: 271.40 | J111: 273.65 | K111: 276.85 | L111: 270.45 | M111: 265 | N111: 9339000 | O111: -7.87%
A112: 103 | B112: Cement | C112: INDIACEM | D112: 132.35 | E112: 132.87 | F112: 130.83 | G112: 129.32 | H112: 127.28 | I112: 134.38 | J112: 136.42 | K112: 137.93 | L112: 134.9 | M112: 131.35 | N112: 25277000 | O112: -4.34%
A113: 104 | B113: Banking | C113: INDIANB | D113: 327.20 | E113: 329.82 | F113: 321.88 | G113: 316.57 | H113: 308.63 | I113: 335.13 | J113: 343.07 | K113: 348.38 | L113: 337.75 | M113: 324.5 | N113: 3642000 | O113: 8.65%
A114: 105 | B114: Others | C114: INDIGO | D114: 1222.60 | E114: 1235.53 | F114: 1202.07 | G114: 1181.53 | H114: 1148.07 | I114: 1256.07 | J114: 1289.53 | K114: 1310.07 | L114: 1269 | M114: 1215 | N114: 4162800 | O114: 15.38%
A115: 106 | B115: Banking | C115: INDUSINDBK | D115: 1878.75 | E115: 1892.67 | F115: 1857.13 | G115: 1835.52 | H115: 1799.98 | I115: 1914.28 | J115: 1949.82 | K115: 1971.43 | L115: 1928.2 | M115: 1871.05 | N115: 8420400 | O115: 1.24%
A116: 107 | B116: Technology | C116: INFIBEAM | D116: 168.00 | E116: 168.02 | F116: 166.13 | G116: 164.27 | H116: 162.38 | I116: 169.88 | J116: 171.77 | K116: 173.63 | L116: 169.9 | M116: 166.15 | N116: 34872000 | O116: 1.30%
A117: 108 | B117: Telecom | C117: INFRATEL | D117: 305.75 | E117: 307.58 | F117: 301.97 | G117: 298.18 | H117: 292.57 | I117: 311.37 | J117: 316.98 | K117: 320.77 | L117: 313.2 | M117: 303.8 | N117: 8408200 | O117: 13.08%
A118: 109 | B118: Technology | C118: INFY | D118: 1217.80 | E118: 1216.68 | F118: 1207.62 | G118: 1197.43 | H118: 1188.37 | I118: 1226.87 | J118: 1235.93 | K118: 1246.12 | L118: 1225.75 | M118: 1206.5 | N118: 37390800 | O118: 0.60%
A119: 110 | B119: Oil_Gas | C119: IOC | D119: 172.15 | E119: 171.65 | F119: 169.65 | G119: 167.15 | H119: 165.15 | I119: 174.15 | J119: 176.15 | K119: 178.65 | L119: 173.65 | M119: 169.15 | N119: 42030000 | O119: -3.85%
A120: 111 | B120: Infrastructure | C120: IRB | D120: 237.05 | E120: 238.65 | F120: 233.00 | G120: 228.95 | H120: 223.30 | I120: 242.70 | J120: 248.35 | K120: 252.40 | L120: 244.3 | M120: 234.6 | N120: 20717500 | O120: -1.06%
A121: 112 | B121: FMCG | C121: ITC | D121: 273.70 | E121: 274.35 | F121: 271.45 | G121: 269.20 | H121: 266.30 | I121: 276.60 | J121: 279.50 | K121: 281.75 | L121: 277.25 | M121: 272.1 | N121: 86126400 | O121: 1.12%
A122: 113 | B122: Others | C122: JETAIRWAYS | D122: 421.15 | E122: 423.88 | F122: 414.27 | G122: 407.38 | H122: 397.77 | I122: 430.77 | J122: 440.38 | K122: 447.27 | L122: 433.5 | M122: 417 | N122: 6324000 | O122: -2.32%
A123: 114 | B123: Metals | C123: JINDALSTEL | D123: 234.30 | E123: 235.30 | F123: 230.40 | G123: 226.50 | H123: 221.60 | I123: 239.20 | J123: 244.10 | K123: 248.00 | L123: 240.2 | M123: 231.4 | N123: 32991750 | O123: 1.81%
A124: 115 | B124: Others | C124: JISLJALEQS | D124: 106.00 | E124: 105.75 | F124: 104.35 | G124: 102.70 | H124: 101.30 | I124: 107.40 | J124: 108.80 | K124: 110.45 | L124: 107.15 | M124: 104.1 | N124: 37422000 | O124: -4.11%
A125: 116 | B125: Realty | C125: JPASSOCIAT | D125: 15.85 | E125: 15.82 | F125: 15.53 | G125: 15.22 | H125: 14.93 | I125: 16.13 | J125: 16.42 | K125: 16.73 | L125: 16.1 | M125: 15.5 | N125: 236708000 | O125: 7.07%
A126: 117 | B126: Metals | C126: JSWSTEEL | D126: 331.25 | E126: 328.78 | F126: 325.67 | G126: 320.08 | H126: 316.97 | I126: 334.37 | J126: 337.48 | K126: 343.07 | L126: 331.9 | M126: 323.2 | N126: 65871000 | O126: 0.60%
A127: 118 | B127: Others | C127: JUBLFOOD | D127: 2576.60 | E127: 2616.83 | F127: 2529.72 | G127: 2482.83 | H127: 2395.72 | I127: 2663.72 | J127: 2750.83 | K127: 2797.72 | L127: 2703.95 | M127: 2569.95 | N127: 2491250 | O127: -10.50%
A128: 119 | B128: Others | C128: JUSTDIAL | D128: 596.20 | E128: 602.22 | F128: 566.48 | G128: 536.77 | H128: 501.03 | I128: 631.93 | J128: 667.67 | K128: 697.38 | L128: 637.95 | M128: 572.5 | N128: 3999800 | O128: 23.41%
A129: 120 | B129: Others | C129: KAJARIACER | D129: 567.75 | E129: 565.58 | F129: 558.17 | G129: 548.58 | H129: 541.17 | I129: 575.17 | J129: 582.58 | K129: 592.17 | L129: 573 | M129: 556 | N129: 1662800 | O129: 2.06%
A130: 121 | B130: Banking | C130: KOTAKBANK | D130: 1283.35 | E130: 1287.67 | F130: 1274.38 | G130: 1265.42 | H130: 1252.13 | I130: 1296.63 | J130: 1309.92 | K130: 1318.88 | L130: 1300.95 | M130: 1278.7 | N130: 16804800 | O130: 6.63%
A131: 122 | B131: Technology | C131: KPIT | D131: 273.15 | E131: 273.63 | F131: 270.07 | G131: 266.98 | H131: 263.42 | I131: 276.72 | J131: 280.28 | K131: 283.37 | L131: 277.2 | M131: 270.55 | N131: 10201500 | O131: 3.37%
A132: 123 | B132: Others | C132: KSCL | D132: 537.20 | E132: 535.67 | F132: 523.08 | G132: 508.97 | H132: 496.38 | I132: 549.78 | J132: 562.37 | K132: 576.48 | L132: 548.25 | M132: 521.55 | N132: 2617500 | O132: 6.92%
A133: 124 | B133: Banking | C133: KTKBANK | D133: 122.40 | E133: 122.60 | F133: 120.60 | G133: 118.80 | H133: 116.80 | I133: 124.40 | J133: 126.40 | K133: 128.20 | L133: 124.6 | M133: 120.8 | N133: 26648700 | O133: 1.05%
A134: 125 | B134: Finance | C134: L&TFH | D134: 171.95 | E134: 172.22 | F134: 169.83 | G134: 167.72 | H134: 165.33 | I134: 174.33 | J134: 176.72 | K134: 178.83 | L134: 174.6 | M134: 170.1 | N134: 30820500 | O134: -3.77%
A135: 126 | B135: Finance | C135: LICHSGFIN | D135: 488.25 | E135: 492.27 | F135: 481.63 | G135: 475.02 | H135: 464.38 | I135: 498.88 | J135: 509.52 | K135: 516.13 | L135: 502.9 | M135: 485.65 | N135: 15437400 | O135: 3.13%
A136: 127 | B136: Capital_Goods | C136: LT | D136: 1377.55 | E136: 1390.62 | F136: 1360.38 | G136: 1343.22 | H136: 1312.98 | I136: 1407.78 | J136: 1438.02 | K136: 1455.18 | L136: 1420.85 | M136: 1373.45 | N136: 14778000 | O136: 7.48%
A137: 128 | B137: Pharma | C137: LUPIN | D137: 779.80 | E137: 782.57 | F137: 766.73 | G137: 753.67 | H137: 737.83 | I137: 795.63 | J137: 811.47 | K137: 824.53 | L137: 798.4 | M137: 769.5 | N137: 14230100 | O137: 2.84%
A138: 129 | B138: Automobile | C138: M&M | D138: 870.50 | E138: 865.50 | F138: 856.00 | G138: 841.50 | H138: 832.00 | I138: 880.00 | J138: 889.50 | K138: 904.00 | L138: 875 | M138: 851 | N138: 18610000 | O138: 11.93%
A139: 130 | B139: Finance | C139: M&MFIN | D139: 472.85 | E139: 480.60 | F139: 460.25 | G139: 447.65 | H139: 427.30 | I139: 493.20 | J139: 513.55 | K139: 526.15 | L139: 500.95 | M139: 468 | N139: 9420000 | O139: -1.82%
A140: 131 | B140: Others | C140: MANAPPURAM | D140: 108.05 | E140: 108.27 | F140: 105.98 | G140: 103.92 | H140: 101.63 | I140: 110.33 | J140: 112.62 | K140: 114.68 | L140: 110.55 | M140: 106.2 | N140: 21762000 | O140: -1.81%
A141: 132 | B141: FMCG | C141: MARICO | D141: 320.65 | E141: 321.05 | F141: 317.50 | G141: 314.35 | H141: 310.80 | I141: 324.20 | J141: 327.75 | K141: 330.90 | L141: 324.6 | M141: 317.9 | N141: 5509400 | O141: -0.80%
A142: 133 | B142: Automobile | C142: MARUTI | D142: 8707.30 | E142: 8738.88 | F142: 8640.47 | G142: 8573.63 | H142: 8475.22 | I142: 8805.72 | J142: 8904.13 | K142: 8970.97 | L142: 8837.3 | M142: 8672.05 | N142: 2745900 | O142: -1.74%
A143: 134 | B143: FMCG | C143: MCDOWELL-N | D143: 3390.25 | E143: 3356.23 | F143: 3308.82 | G143: 3227.38 | H143: 3179.97 | I143: 3437.67 | J143: 3485.08 | K143: 3566.52 | L143: 3403.65 | M143: 3274.8 | N143: 2627250 | O143: 0.95%
A144: 135 | B144: Others | C144: MCX | D144: 836.10 | E144: 840.63 | F144: 823.57 | G144: 811.03 | H144: 793.97 | I144: 853.17 | J144: 870.23 | K144: 882.77 | L144: 857.7 | M144: 828.1 | N144: 3579700 | O144: -1.18%
A145: 136 | B145: Finance | C145: MFSL | D145: 475.20 | E145: 475.93 | F145: 471.27 | G145: 467.33 | H145: 462.67 | I145: 479.87 | J145: 484.53 | K145: 488.47 | L145: 480.6 | M145: 472 | N145: 3030200 | O145: -1.27%
A146: 137 | B146: Others | C146: MGL | D146: 842.80 | E146: 837.63 | F146: 828.67 | G146: 814.53 | H146: 805.57 | I146: 851.77 | J146: 860.73 | K146: 874.87 | L146: 846.6 | M146: 823.5 | N146: 2502000 | O146: 1.58%
A147: 138 | B147: Technology | C147: MINDTREE | D147: 1020.45 | E147: 1020.98 | F147: 1005.77 | G147: 991.08 | H147: 975.87 | I147: 1035.67 | J147: 1050.88 | K147: 1065.57 | L147: 1036.2 | M147: 1006.3 | N147: 3970800 | O147: 0.55%
A148: 139 | B148: Automobile | C148: MOTHERSUMI | D148: 318.15 | E148: 316.57 | F148: 313.68 | G148: 309.22 | H148: 306.33 | I148: 321.03 | J148: 323.92 | K148: 328.38 | L148: 319.45 | M148: 312.1 | N148: 13860800 | O148: 0.08%
A149: 140 | B149: Automobile | C149: MRF | D149: 76436.20 | E149: 76428.58 | F149: 75407.17 | G149: 74378.13 | H149: 73356.72 | I149: 77457.62 | J149: 78479.03 | K149: 79508.07 | L149: 77450 | M149: 75399.55 | N149: 32205 | O149: -1.47%
A150: 141 | B150: Others | C150: MRPL | D150: 96.75 | E150: 97.85 | F150: 94.85 | G150: 92.95 | H150: 89.95 | I150: 99.75 | J150: 102.75 | K150: 104.65 | L150: 100.85 | M150: 95.95 | N150: 6268500 | O150: 15.60%
A151: 142 | B151: Finance | C151: MUTHOOTFIN | D151: 395.25 | E151: 394.95 | F151: 386.40 | G151: 377.55 | H151: 369.00 | I151: 403.80 | J151: 412.35 | K151: 421.20 | L151: 403.5 | M151: 386.1 | N151: 2506500 | O151: -0.77%
A152: 143 | B152: Others | C152: NATIONALUM | D152: 71.10 | E152: 71.85 | F152: 70.10 | G152: 69.10 | H152: 67.35 | I152: 72.85 | J152: 74.60 | K152: 75.60 | L152: 73.6 | M152: 70.85 | N152: 58384000 | O152: 7.01%
A153: 144 | B153: Others | C153: NBCC | D153: 95.20 | E153: 95.23 | F153: 94.02 | G153: 92.83 | H153: 91.62 | I153: 96.42 | J153: 97.63 | K153: 98.82 | L153: 96.45 | M153: 94.05 | N153: 20334000 | O153: -1.48%
A154: 145 | B154: Infrastructure | C154: NCC | D154: 121.90 | E154: 120.23 | F154: 117.72 | G154: 113.53 | H154: 111.02 | I154: 124.42 | J154: 126.93 | K154: 131.12 | L154: 122.75 | M154: 116.05 | N154: 42592000 | O154: 6.25%
A155: 146 | B155: Others | C155: NESTLEIND | D155: 9507.40 | E155: 9550.78 | F155: 9436.62 | G155: 9365.83 | H155: 9251.67 | I155: 9621.57 | J155: 9735.73 | K155: 9806.52 | L155: 9664.95 | M155: 9480 | N155: 285900 | O155: -3.61%
A156: 147 | B156: Power | C156: NHPC | D156: 26.75 | E156: 26.93 | F156: 26.27 | G156: 25.78 | H156: 25.12 | I156: 27.42 | J156: 28.08 | K156: 28.57 | L156: 27.6 | M156: 26.45 | N156: 33993000 | O156: 14.25%
A157: 148 | B157: Technology | C157: NIITTECH | D157: 1093.25 | E157: 1091.08 | F157: 1072.32 | G157: 1051.38 | H157: 1032.62 | I157: 1112.02 | J157: 1130.78 | K157: 1151.72 | L157: 1109.85 | M157: 1070.15 | N157: 2018250 | O157: 16.44%
A158: 149 | B158: Metals | C158: NMDC | D158: 119.95 | E158: 120.55 | F158: 118.50 | G158: 117.05 | H158: 115.00 | I158: 122.00 | J158: 124.05 | K158: 125.50 | L158: 122.6 | M158: 119.1 | N158: 28356000 | O158: 0.96%
A159: 150 | B159: Power | C159: NTPC | D159: 166.25 | E159: 166.95 | F159: 164.40 | G159: 162.55 | H159: 160.00 | I159: 168.80 | J159: 171.35 | K159: 173.20 | L159: 169.5 | M159: 165.1 | N159: 47336000 | O159: 6.16%
A160: 151 | B160: Technology | C160: OFSS | D160: 3798.00 | E160: 3824.45 | F160: 3750.40 | G160: 3702.80 | H160: 3628.75 | I160: 3872.05 | J160: 3946.10 | K160: 3993.70 | L160: 3898.5 | M160: 3776.85 | N160: 150300 | O160: 1.52%
A161: 152 | B161: Oil_Gas | C161: OIL | D161: 225.70 | E161: 226.52 | F161: 221.28 | G161: 216.87 | H161: 211.63 | I161: 230.93 | J161: 236.17 | K161: 240.58 | L161: 231.75 | M161: 222.1 | N161: 3470379 | O161: -2.02%
A162: 153 | B162: Oil_Gas | C162: ONGC | D162: 175.30 | E162: 175.33 | F162: 173.37 | G162: 171.43 | H162: 169.47 | I162: 177.27 | J162: 179.23 | K162: 181.17 | L162: 177.3 | M162: 173.4 | N162: 44028750 | O162: 3.06%
A163: 154 | B163: Banking | C163: ORIENTBANK | D163: 82.40 | E163: 82.97 | F163: 81.33 | G163: 80.27 | H163: 78.63 | I163: 84.03 | J163: 85.67 | K163: 86.73 | L163: 84.6 | M163: 81.9 | N163: 15798000 | O163: -9.27%
A164: 155 | B164: Textile | C164: PAGEIND | D164: 24412.30 | E164: 24315.43 | F164: 24030.87 | G164: 23649.43 | H164: 23364.87 | I164: 24696.87 | J164: 24981.43 | K164: 25362.87 | L164: 24600 | M164: 23934 | N164: 70050 | O164: 3.09%
A165: 156 | B165: Others | C165: PCJEWELLER | D165: 171.50 | E165: 172.27 | F165: 167.23 | G165: 162.97 | H165: 157.93 | I165: 176.53 | J165: 181.57 | K165: 185.83 | L165: 177.3 | M165: 168 | N165: 9534000 | O165: 5.92%
A166: 157 | B166: Pharma | C166: PEL | D166: 2408.45 | E166: 2423.47 | F166: 2368.43 | G166: 2328.42 | H166: 2273.38 | I166: 2463.48 | J166: 2518.52 | K166: 2558.53 | L166: 2478.5 | M166: 2383.45 | N166: 2310602 | O166: 0.35%
A167: 158 | B167: Oil_Gas | C167: PETRONET | D167: 214.00 | E167: 214.90 | F167: 211.25 | G167: 208.50 | H167: 204.85 | I167: 217.65 | J167: 221.30 | K167: 224.05 | L167: 218.55 | M167: 212.15 | N167: 24729000 | O167: -0.39%
A168: 159 | B168: Finance | C168: PFC | D168: 80.50 | E168: 80.30 | F168: 79.00 | G168: 77.50 | H168: 76.20 | I168: 81.80 | J168: 83.10 | K168: 84.60 | L168: 81.6 | M168: 78.8 | N168: 94416000 | O168: 1.50%
A169: 160 | B169: FMCG | C169: PIDILITIND | D169: 1169.80 | E169: 1165.88 | F169: 1153.72 | G169: 1137.63 | H169: 1125.47 | I169: 1181.97 | J169: 1194.13 | K169: 1210.22 | L169: 1178.05 | M169: 1149.8 | N169: 3279000 | O169: 10.93%
A170: 161 | B170: Banking | C170: PNB | D170: 85.75 | E170: 86.80 | F170: 84.35 | G170: 82.95 | H170: 80.50 | I170: 88.20 | J170: 90.65 | K170: 92.05 | L170: 89.25 | M170: 85.4 | N170: 72405000 | O170: -2.74%
A171: 162 | B171: Power | C171: POWERGRID | D171: 207.30 | E171: 207.70 | F171: 205.65 | G171: 204.00 | H171: 201.95 | I171: 209.35 | J171: 211.40 | K171: 213.05 | L171: 209.75 | M171: 206.05 | N171: 38004000 | O171: 7.21%
A172: 163 | B172: Power | C172: PTC | D172: 85.05 | E172: 85.68 | F172: 83.92 | G172: 82.78 | H172: 81.02 | I172: 86.82 | J172: 88.58 | K172: 89.72 | L172: 87.45 | M172: 84.55 | N172: 26104000 | O172: -4.81%
A173: 164 | B173: Others | C173: PVR | D173: 1345.65 | E173: 1347.55 | F173: 1332.10 | G173: 1318.55 | H173: 1303.10 | I173: 1361.10 | J173: 1376.55 | K173: 1390.10 | L173: 1363 | M173: 1334 | N173: 1077600 | O173: 0.34%
A174: 165 | B174: Cement | C174: RAMCOCEM | D174: 792.45 | E174: 789.05 | F174: 778.40 | G174: 764.35 | H174: 753.70 | I174: 803.10 | J174: 813.75 | K174: 827.80 | L174: 799.7 | M174: 775 | N174: 1153600 | O174: -2.30%
A175: 166 | B175: Others | C175: RAYMOND | D175: 1010.80 | E175: 1017.95 | F175: 987.85 | G175: 964.90 | H175: 934.80 | I175: 1040.90 | J175: 1071.00 | K175: 1093.95 | L175: 1048.05 | M175: 995 | N175: 5052000 | O175: 0.91%
A176: 167 | B176: Banking | C176: RBLBANK | D176: 527.30 | E176: 525.95 | F176: 522.95 | G176: 518.60 | H176: 515.60 | I176: 530.30 | J176: 533.30 | K176: 537.65 | L176: 528.95 | M176: 521.6 | N176: 4059800 | O176: -3.12%
A177: 168 | B177: Telecom | C177: RCOM | D177: 16.05 | E177: 16.27 | F177: 15.28 | G177: 14.52 | H177: 13.53 | I177: 17.03 | J177: 18.02 | K177: 18.78 | L177: 17.25 | M177: 15.5 | N177: 84616000 | O177: -0.26%
A178: 169 | B178: Capital_Goods | C178: RNAVAL | D178: 14.95 | E178: 15.25 | F178: 14.45 | G178: 13.95 | H178: 13.15 | I178: 15.75 | J178: 16.55 | K178: 17.05 | L178: 16.05 | M178: 14.75 | N178: 34983000 | O178: 1.16%
A179: 170 | B179: Power | C179: RECLTD | D179: 119.35 | E179: 118.33 | F179: 116.02 | G179: 112.68 | H179: 110.37 | I179: 121.67 | J179: 123.98 | K179: 127.32 | L179: 120.65 | M179: 115 | N179: 38538000 | O179: -6.56%
A180: 171 | B180: Finance | C180: RELCAPITAL | D180: 417.30 | E180: 414.72 | F180: 407.98 | G180: 398.67 | H180: 391.93 | I180: 424.03 | J180: 430.77 | K180: 440.08 | L180: 421.45 | M180: 405.4 | N180: 10531500 | O180: -0.79%
A181: 172 | B181: Oil_Gas | C181: RELIANCE | D181: 917.10 | E181: 920.23 | F181: 911.52 | G181: 905.93 | H181: 897.22 | I181: 925.82 | J181: 934.53 | K181: 940.12 | L181: 928.95 | M181: 914.65 | N181: 51389000 | O181: -2.85%
A182: 173 | B182: Power | C182: RELINFRA | D182: 426.65 | E182: 427.72 | F182: 421.18 | G182: 415.72 | H182: 409.18 | I182: 433.18 | J182: 439.72 | K182: 445.18 | L182: 434.25 | M182: 422.25 | N182: 8344700 | O182: 3.58%
A183: 174 | B183: Others | C183: REPCOHOME | D183: 597.50 | E183: 602.78 | F183: 586.12 | G183: 574.73 | H183: 558.07 | I183: 614.17 | J183: 630.83 | K183: 642.22 | L183: 619.45 | M183: 591.4 | N183: 628200 | O183: -3.96%
A184: 175 | B184: Power | C184: RPOWER | D184: 35.75 | E184: 35.98 | F184: 35.17 | G184: 34.58 | H184: 33.77 | I184: 36.57 | J184: 37.38 | K184: 37.97 | L184: 36.8 | M184: 35.4 | N184: 67210000 | O184: 6.27%
A185: 176 | B185: Metals | C185: SAIL | D185: 76.75 | E185: 76.28 | F185: 75.42 | G185: 74.08 | H185: 73.22 | I185: 77.62 | J185: 78.48 | K185: 79.82 | L185: 77.15 | M185: 74.95 | N185: 97080000 | O185: 2.70%
A186: 177 | B186: Banking | C186: SBIN | D186: 264.60 | E186: 266.33 | F186: 261.42 | G186: 258.23 | H186: 253.32 | I186: 269.52 | J186: 274.43 | K186: 277.62 | L186: 271.25 | M186: 263.15 | N186: 85398000 | O186: -2.44%
A187: 178 | B187: Cement | C187: SHREECEM | D187: 16792.40 | E187: 16735.92 | F187: 16521.78 | G187: 16251.17 | H187: 16037.03 | I187: 17006.53 | J187: 17220.67 | K187: 17491.28 | L187: 16950.05 | M187: 16465.3 | N187: 63550 | O187: -2.23%
A188: 179 | B188: Capital_Goods | C188: SIEMENS | D188: 1051.35 | E188: 1065.48 | F188: 1032.37 | G188: 1013.38 | H188: 980.27 | I188: 1084.47 | J188: 1117.58 | K188: 1136.57 | L188: 1098.6 | M188: 1046.5 | N188: 1353000 | O188: 4.56%
A189: 180 | B189: Banking | C189: SOUTHBANK | D189: 24.75 | E189: 24.82 | F189: 24.53 | G189: 24.32 | H189: 24.03 | I189: 25.03 | J189: 25.32 | K189: 25.53 | L189: 25.1 | M189: 24.6 | N189: 194537670 | O189: 7.39%
A190: 181 | B190: Others | C190: SREINFRA | D190: 78.75 | E190: 79.25 | F190: 76.80 | G190: 74.85 | H190: 72.40 | I190: 81.20 | J190: 83.65 | K190: 85.60 | L190: 81.7 | M190: 77.3 | N190: 18730000 | O190: 0.59%
A191: 182 | B191: Textile | C191: SRF | D191: 1926.50 | E191: 1931.60 | F191: 1894.05 | G191: 1861.60 | H191: 1824.05 | I191: 1964.05 | J191: 2001.60 | K191: 2034.05 | L191: 1969.15 | M191: 1899.15 | N191: 618500 | O191: -2.98%
A192: 183 | B192: Finance | C192: SRTRANSFIN | D192: 1526.55 | E192: 1523.50 | F192: 1499.05 | G192: 1471.55 | H192: 1447.10 | I192: 1551.00 | J192: 1575.45 | K192: 1602.95 | L192: 1547.95 | M192: 1496 | N192: 3403800 | O192: -3.45%
A193: 184 | B193: Pharma | C193: STAR | D193: 419.20 | E193: 412.00 | F193: 390.85 | G193: 362.50 | H193: 341.35 | I193: 440.35 | J193: 461.50 | K193: 489.85 | L193: 433.15 | M193: 383.65 | N193: 2807400 | O193: 3.34%
A194: 185 | B194: Pharma | C194: SUNPHARMA | D194: 498.30 | E194: 499.55 | F194: 489.65 | G194: 481.00 | H194: 471.10 | I194: 508.20 | J194: 518.10 | K194: 526.75 | L194: 509.45 | M194: 490.9 | N194: 58793900 | O194: 1.76%
A195: 186 | B195: Media | C195: SUNTV | D195: 941.25 | E195: 942.42 | F195: 932.83 | G195: 924.42 | H195: 914.83 | I195: 950.83 | J195: 960.42 | K195: 968.83 | L195: 952 | M195: 934 | N195: 6023000 | O195: -0.35%
A196: 187 | B196: Power | C196: SUZLON | D196: 9.50 | E196: 9.58 | F196: 9.27 | G196: 9.03 | H196: 8.72 | I196: 9.82 | J196: 10.13 | K196: 10.37 | L196: 9.9 | M196: 9.35 | N196: 324290000 | O196: 0.58%
A197: 188 | B197: Banking | C197: SYNDIBANK | D197: 49.60 | E197: 49.65 | F197: 49.05 | G197: 48.50 | H197: 47.90 | I197: 50.20 | J197: 50.80 | K197: 51.35 | L197: 50.25 | M197: 49.1 | N197: 36171000 | O197: 5.99%
A198: 189 | B198: Fertilisers | C198: TATACHEM | D198: 726.80 | E198: 730.75 | F198: 718.80 | G198: 710.80 | H198: 698.85 | I198: 738.75 | J198: 750.70 | K198: 758.70 | L198: 742.7 | M198: 722.75 | N198: 4998750 | O198: 3.53%
A199: 190 | B199: Telecom | C199: TATACOMM | D199: 621.55 | E199: 627.42 | F199: 604.18 | G199: 586.82 | H199: 563.58 | I199: 644.78 | J199: 668.02 | K199: 685.38 | L199: 650.65 | M199: 610.05 | N199: 5945600 | O199: -0.20%
A200: 191 | B200: Technology | C200: TATAELXSI | D200: 1227.40 | E200: 1227.93 | F200: 1209.47 | G200: 1191.53 | H200: 1173.07 | I200: 1245.87 | J200: 1264.33 | K200: 1282.27 | L200: 1246.4 | M200: 1210 | N200: 2308000 | O200: 8.17%
A201: 192 | B201: FMCG | C201: TATAGLOBAL | D201: 257.35 | E201: 259.08 | F201: 254.97 | G201: 252.58 | H201: 248.47 | I201: 261.47 | J201: 265.58 | K201: 267.97 | L201: 263.2 | M201: 256.7 | N201: 19759500 | O201: -1.82%
A202: 193 | B202: Automobile | C202: TATAMOTORS | D202: 294.20 | E202: 295.73 | F202: 291.17 | G202: 288.13 | H202: 283.57 | I202: 298.77 | J202: 303.33 | K202: 306.37 | L202: 300.3 | M202: 292.7 | N202: 93766500 | O202: 0.56%
A203: 194 | B203: Automobile | C203: TATAMTRDVR | D203: 170.05 | E203: 171.12 | F203: 168.53 | G203: 167.02 | H203: 164.43 | I203: 172.63 | J203: 175.22 | K203: 176.73 | L203: 173.7 | M203: 169.6 | N203: 27710000 | O203: 4.76%
A204: 195 | B204: Power | C204: TATAPOWER | D204: 83.40 | E204: 82.98 | F204: 81.97 | G204: 80.53 | H204: 79.52 | I204: 84.42 | J204: 85.43 | K204: 86.87 | L204: 84 | M204: 81.55 | N204: 54288000 | O204: 10.96%
A205: 196 | B205: Metals | C205: TATASTEEL | D205: 576.10 | E205: 578.65 | F205: 568.05 | G205: 560.00 | H205: 549.40 | I205: 586.70 | J205: 597.30 | K205: 605.35 | L205: 589.25 | M205: 570.6 | N205: 26576989 | O205: 3.12%
A206: 197 | B206: Technology | C206: TCS | D206: 3496.50 | E206: 3494.07 | F206: 3470.23 | G206: 3443.97 | H206: 3420.13 | I206: 3520.33 | J206: 3544.17 | K206: 3570.43 | L206: 3517.9 | M206: 3467.8 | N206: 6427250 | O206: 6.36%
... 35 more rows

Sheet Cash Intra
M5: Back to Main Page
A6: FOR INTRA DAY TRADING | K6: =Main!B10 -> 2018-05-30
A8: Sr.no | B8: Scrip | C8: CLOSE RATE | D8: Pivot Point | E8: Supports | H8: Resistances
C9: Point | E9: S1 | F9: S2 | G9: S3 | H9: R1 | I9: R2 | J9: R3 | K9: HIGH | L9: LOW | M9: Total Trade Quanity in Lakhs
A10: 1 | B10: Nifty 50 | C10: 10633.3 | D10: 10655.55 | E10: 10593.85 | F10: 10554.40 | G10: 10492.70 | H10: 10695.00 | I10: 10756.70 | J10: 10796.15 | K10: 10717.25 | L10: 10616.1
A11: 2 | B11: Nifty Bank | C11: 26254.8 | D11: 26348.95 | E11: 26126.95 | F11: 25999.10 | G11: 25777.10 | H11: 26476.80 | I11: 26698.80 | J11: 26826.65 | K11: 26570.95 | L11: 26221.1
A12: 3 | B12: Nifty CPSE | C12: 2398.55 | D12: 2396.95 | E12: 2383.60 | F12: 2368.65 | G12: 2355.30 | H12: 2411.90 | I12: 2425.25 | J12: 2440.20 | K12: 2410.3 | L12: 2382
A13: 4 | B13: Nifty Infra | C13: 3351.55 | D13: 3365.97 | E13: 3331.68 | F13: 3311.82 | G13: 3277.53 | H13: 3385.83 | I13: 3420.12 | J13: 3439.98 | K13: 3400.25 | L13: 3346.1
A14: 5 | B14: Nifty IT | C14: 13561.05 | D14: 13558.13 | E14: 13484.97 | F14: 13408.88 | G14: 13335.72 | H14: 13634.22 | I14: 13707.38 | J14: 13783.47 | K14: 13631.3 | L14: 13482.05
A15: 6 | B15: Nifty PSE | C15: 3828.95 | D15: 3830.97 | E15: 3812.53 | F15: 3796.12 | G15: 3777.68 | H15: 3847.38 | I15: 3865.82 | J15: 3882.23 | K15: 3849.4 | L15: 3814.55
A16: 7 | B16: Nifty Midcap 50 | C16: 5047.35 | D16: 5056.95 | E16: 5012.00 | F16: 4976.65 | G16: 4931.70 | H16: 5092.30 | I16: 5137.25 | J16: 5172.60 | K16: 5101.9 | L16: 5021.6
A17: 8 | B17: ABB | C17: 1225.9 | D17: 1216.63 | E17: 1202.12 | F17: 1178.33 | G17: 1163.82 | H17: 1240.42 | I17: 1254.93 | J17: 1278.72 | K17: 1231.15 | L17: 1192.85 | M17: 0.39185
A18: 9 | B18: ACC | C18: 1310 | D18: 1316.30 | E18: 1294.90 | F18: 1279.80 | G18: 1258.40 | H18: 1331.40 | I18: 1352.80 | J18: 1367.90 | K18: 1337.7 | L18: 1301.2 | M18: 8.94054
A19: 10 | B19: AIAENG | C19: 1583.45 | D19: 1595.80 | E19: 1565.65 | F19: 1547.85 | G19: 1517.70 | H19: 1613.60 | I19: 1643.75 | J19: 1661.55 | K19: 1625.95 | L19: 1578 | M19: 0.82619
A20: 11 | B20: AUBANK | C20: 683.35 | D20: 683.92 | E20: 677.83 | F20: 672.32 | G20: 666.23 | H20: 689.43 | I20: 695.52 | J20: 701.03 | K20: 690 | L20: 678.4 | M20: 1.03637
A21: 12 | B21: ADANIENT | C21: 123.7 | D21: 125.27 | E21: 121.18 | F21: 118.67 | G21: 114.58 | H21: 127.78 | I21: 131.87 | J21: 134.38 | K21: 129.35 | L21: 122.75 | M21: 40.91255
A22: 13 | B22: ADANIPORTS | C22: 377.85 | D22: 378.30 | E22: 372.75 | F22: 367.65 | G22: 362.10 | H22: 383.40 | I22: 388.95 | J22: 394.05 | K22: 383.85 | L22: 373.2 | M22: 33.94813
A23: 14 | B23: ADANIPOWER | C23: 20.5 | D23: 20.70 | E23: 19.85 | F23: 19.20 | G23: 18.35 | H23: 21.35 | I23: 22.20 | J23: 22.85 | K23: 21.55 | L23: 20.05 | M23: 193.3421
A24: 15 | B24: ABFRL | C24: 149.25 | D24: 148.17 | E24: 146.43 | F24: 143.62 | G24: 141.88 | H24: 150.98 | I24: 152.72 | J24: 155.53 | K24: 149.9 | L24: 145.35 | M24: 4.32826
A25: 16 | B25: AJANTPHARM | C25: 1015.15 | D25: 1023.05 | E25: 1002.10 | F25: 989.05 | G25: 968.10 | H25: 1036.10 | I25: 1057.05 | J25: 1070.10 | K25: 1044 | L25: 1010 | M25: 1.96172
A26: 17 | B26: ALKEM | C26: 2048 | D26: 2032.50 | E26: 2009.50 | F26: 1971.00 | G26: 1948.00 | H26: 2071.00 | I26: 2094.00 | J26: 2132.50 | K26: 2055.5 | L26: 1994 | M26: 0.12811
A27: 18 | B27: AMARAJABAT | C27: 791.55 | D27: 792.78 | E27: 780.77 | F27: 769.98 | G27: 757.97 | H27: 803.57 | I27: 815.58 | J27: 826.37 | K27: 804.8 | L27: 782 | M27: 3.13868
A28: 19 | B28: AMBUJACEM | C28: 208.3 | D28: 210.05 | E28: 206.10 | F28: 203.90 | G28: 199.95 | H28: 212.25 | I28: 216.20 | J28: 218.40 | K28: 214 | L28: 207.85 | M28: 14.59474
A29: 20 | B29: APOLLOHOSP | C29: 1004.9 | D29: 995.82 | E29: 973.73 | F29: 942.57 | G29: 920.48 | H29: 1026.98 | I29: 1049.07 | J29: 1080.23 | K29: 1017.9 | L29: 964.65 | M29: 4.44641
A30: 21 | B30: APOLLOTYRE | C30: 280 | D30: 283.50 | E30: 275.65 | F30: 271.30 | G30: 263.45 | H30: 287.85 | I30: 295.70 | J30: 300.05 | K30: 291.35 | L30: 279.15 | M30: 24.83607
A31: 22 | B31: ARVIND | C31: 389.2 | D31: 391.90 | E31: 384.30 | F31: 379.40 | G31: 371.80 | H31: 396.80 | I31: 404.40 | J31: 409.30 | K31: 399.5 | L31: 387 | M31: 13.10397
A32: 23 | B32: ASHOKLEY | C32: 149.55 | D32: 148.72 | E32: 146.93 | F32: 144.32 | G32: 142.53 | H32: 151.33 | I32: 153.12 | J32: 155.73 | K32: 150.5 | L32: 146.1 | M32: 134.59379
A33: 24 | B33: ASIANPAINT | C33: 1299.5 | D33: 1306.17 | E33: 1282.33 | F33: 1265.17 | G33: 1241.33 | H33: 1323.33 | I33: 1347.17 | J33: 1364.33 | K33: 1330 | L33: 1289 | M33: 7.69331
A34: 25 | B34: AUROPHARMA | C34: 578.8 | D34: 580.03 | E34: 566.72 | F34: 554.63 | G34: 541.32 | H34: 592.12 | I34: 605.43 | J34: 617.52 | K34: 593.35 | L34: 567.95 | M34: 65.24564
A35: 26 | B35: DMART | C35: 1544.05 | D35: 1529.33 | E35: 1504.72 | F35: 1465.38 | G35: 1440.77 | H35: 1568.67 | I35: 1593.28 | J35: 1632.62 | K35: 1553.95 | L35: 1490 | M35: 11.45537
A36: 27 | B36: AXISBANK | C36: 547.75 | D36: 546.95 | E36: 544.00 | F36: 540.25 | G36: 537.30 | H36: 550.70 | I36: 553.65 | J36: 557.40 | K36: 549.9 | L36: 543.2 | M36: 80.15443
A37: 28 | B37: BAJAJ-AUTO | C37: 2796.05 | D37: 2797.55 | E37: 2760.15 | F37: 2724.25 | G37: 2686.85 | H37: 2833.45 | I37: 2870.85 | J37: 2906.75 | K37: 2834.95 | L37: 2761.65 | M37: 2.61407
A38: 29 | B38: BAJFINANCE | C38: 2077.1 | D38: 2083.05 | E38: 2059.10 | F38: 2041.10 | G38: 2017.15 | H38: 2101.05 | I38: 2125.00 | J38: 2143.00 | K38: 2107 | L38: 2065.05 | M38: 7.27259
A39: 30 | B39: BAJAJFINSV | C39: 5887.85 | D39: 5935.98 | E39: 5816.97 | F39: 5746.08 | G39: 5627.07 | H39: 6006.87 | I39: 6125.88 | J39: 6196.77 | K39: 6055 | L39: 5865.1 | M39: 1.17673
A40: 31 | B40: BALKRISIND | C40: 1142.35 | D40: 1150.57 | E40: 1127.23 | F40: 1112.12 | G40: 1088.78 | H40: 1165.68 | I40: 1189.02 | J40: 1204.13 | K40: 1173.9 | L40: 1135.45 | M40: 3.28078
A41: 32 | B41: BANKBARODA | C41: 140.4 | D41: 141.80 | E41: 138.15 | F41: 135.90 | G41: 132.25 | H41: 144.05 | I41: 147.70 | J41: 149.95 | K41: 145.45 | L41: 139.55 | M41: 127.73006
A42: 33 | B42: BANKINDIA | C42: 101.6 | D42: 102.90 | E42: 99.80 | F42: 98.00 | G42: 94.90 | H42: 104.70 | I42: 107.80 | J42: 109.60 | K42: 106 | L42: 101.1 | M42: 186.36555
A43: 34 | B43: BATAINDIA | C43: 771.1 | D43: 771.20 | E43: 761.75 | F43: 752.40 | G43: 742.95 | H43: 780.55 | I43: 790.00 | J43: 799.35 | K43: 780.65 | L43: 761.85 | M43: 5.49834
A44: 35 | B44: BERGEPAINT | C44: 298.25 | D44: 299.38 | E44: 293.07 | F44: 287.88 | G44: 281.57 | H44: 304.57 | I44: 310.88 | J44: 316.07 | K44: 305.7 | L44: 294.2 | M44: 10.9578
A45: 36 | B45: BEL | C45: 122.8 | D45: 123.12 | E45: 121.68 | F45: 120.57 | G45: 119.13 | H45: 124.23 | I45: 125.67 | J45: 126.78 | K45: 124.55 | L45: 122 | M45: 43.80242
A46: 37 | B46: BHARATFIN | C46: 1141.9 | D46: 1145.95 | E46: 1131.00 | F46: 1120.10 | G46: 1105.15 | H46: 1156.85 | I46: 1171.80 | J46: 1182.70 | K46: 1160.9 | L46: 1135.05 | M46: 6.66837
A47: 38 | B47: BHARATFORG | C47: 659.15 | D47: 661.77 | E47: 647.58 | F47: 636.02 | G47: 621.83 | H47: 673.33 | I47: 687.52 | J47: 699.08 | K47: 675.95 | L47: 650.2 | M47: 15.3212
A48: 39 | B48: BHEL | C48: 83.45 | D48: 83.28 | E48: 79.72 | F48: 75.98 | G48: 72.42 | H48: 87.02 | I48: 90.58 | J48: 94.32 | K48: 86.85 | L48: 79.55 | M48: 639.43559
A49: 40 | B49: BPCL | C49: 405.35 | D49: 405.43 | E49: 400.22 | F49: 395.08 | G49: 389.87 | H49: 410.57 | I49: 415.78 | J49: 420.92 | K49: 410.65 | L49: 400.3 | M49: 49.02822
A50: 41 | B50: BHARTIARTL | C50: 379.15 | D50: 377.37 | E50: 373.03 | F50: 366.92 | G50: 362.58 | H50: 383.48 | I50: 387.82 | J50: 393.93 | K50: 381.7 | L50: 371.25 | M50: 34.771
A51: 42 | B51: INFRATEL | C51: 304.9 | D51: 307.28 | E51: 300.77 | F51: 296.63 | G51: 290.12 | H51: 311.42 | I51: 317.93 | J51: 322.07 | K51: 313.8 | L51: 303.15 | M51: 26.31933
A52: 43 | B52: BIOCON | C52: 676.45 | D52: 672.75 | E52: 663.50 | F52: 650.55 | G52: 641.30 | H52: 685.70 | I52: 694.95 | J52: 707.90 | K52: 682 | L52: 659.8 | M52: 17.03895
A53: 44 | B53: BOSCHLTD | C53: 18556.75 | D53: 18415.60 | E53: 18161.20 | F53: 17765.65 | G53: 17511.25 | H53: 18811.15 | I53: 19065.55 | J53: 19461.10 | K53: 18670 | L53: 18020.05 | M53: 0.11277
A54: 45 | B54: BRITANNIA | C54: 5805.1 | D54: 5817.12 | E54: 5766.23 | F54: 5727.37 | G54: 5676.48 | H54: 5855.98 | I54: 5906.87 | J54: 5945.73 | K54: 5868 | L54: 5778.25 | M54: 0.84912
A55: 46 | B55: CRISIL | C55: 1684.75 | D55: 1686.68 | E55: 1662.12 | F55: 1639.48 | G55: 1614.92 | H55: 1709.32 | I55: 1733.88 | J55: 1756.52 | K55: 1711.25 | L55: 1664.05 | M55: 0.05019
A56: 47 | B56: CADILAHC | C56: 366.75 | D56: 370.92 | E56: 361.33 | F56: 355.92 | G56: 346.33 | H56: 376.33 | I56: 385.92 | J56: 391.33 | K56: 380.5 | L56: 365.5 | M56: 18.39175
A57: 48 | B57: CANBK | C57: 256.85 | D57: 258.65 | E57: 253.40 | F57: 249.95 | G57: 244.70 | H57: 262.10 | I57: 267.35 | J57: 270.80 | K57: 263.9 | L57: 255.2 | M57: 73.82033
A58: 49 | B58: CASTROLIND | C58: 175 | D58: 176.90 | E58: 172.10 | F58: 169.20 | G58: 164.40 | H58: 179.80 | I58: 184.60 | J58: 187.50 | K58: 181.7 | L58: 174 | M58: 11.82769
A59: 50 | B59: CENTRALBK | C59: 72.1 | D59: 71.43 | E59: 70.37 | F59: 68.63 | G59: 67.57 | H59: 73.17 | I59: 74.23 | J59: 75.97 | K59: 72.5 | L59: 69.7 | M59: 5.84063
A60: 51 | B60: CENTURYTEX | C60: 950.65 | D60: 949.25 | E60: 936.55 | F60: 922.45 | G60: 909.75 | H60: 963.35 | I60: 976.05 | J60: 990.15 | K60: 961.95 | L60: 935.15 | M60: 5.40875
A61: 52 | B61: CHOLAFIN | C61: 1543.1 | D61: 1545.20 | E61: 1523.95 | F61: 1504.80 | G61: 1483.55 | H61: 1564.35 | I61: 1585.60 | J61: 1604.75 | K61: 1566.45 | L61: 1526.05 | M61: 2.23334
A62: 53 | B62: CIPLA | C62: 530.6 | D62: 533.63 | E62: 524.67 | F62: 518.73 | G62: 509.77 | H62: 539.57 | I62: 548.53 | J62: 554.47 | K62: 542.6 | L62: 527.7 | M62: 26.56979
A63: 54 | B63: COALINDIA | C63: 282.35 | D63: 281.95 | E63: 276.90 | F63: 271.45 | G63: 266.40 | H63: 287.40 | I63: 292.45 | J63: 297.90 | K63: 287 | L63: 276.5 | M63: 59.34011
A64: 55 | B64: COLPAL | C64: 1241.7 | D64: 1243.52 | E64: 1228.63 | F64: 1215.57 | G64: 1200.68 | H64: 1256.58 | I64: 1271.47 | J64: 1284.53 | K64: 1258.4 | L64: 1230.45 | M64: 2.89834
A65: 56 | B65: CONCOR | C65: 1373.4 | D65: 1372.45 | E65: 1356.95 | F65: 1340.50 | G65: 1325.00 | H65: 1388.90 | I65: 1404.40 | J65: 1420.85 | K65: 1387.95 | L65: 1356 | M65: 3.17498
A66: 57 | B66: COROMANDEL | C66: 462.4 | D66: 456.50 | E66: 445.05 | F66: 427.70 | G66: 416.25 | H66: 473.85 | I66: 485.30 | J66: 502.65 | K66: 467.95 | L66: 439.15 | M66: 0.94606
A67: 58 | B67: CROMPTON | C67: 226.4 | D67: 226.68 | E67: 224.72 | F67: 223.03 | G67: 221.07 | H67: 228.37 | I67: 230.33 | J67: 232.02 | K67: 228.65 | L67: 225 | M67: 9.27321
A68: 59 | B68: CUMMINSIND | C68: 710.35 | D68: 713.18 | E68: 699.37 | F68: 688.38 | G68: 674.57 | H68: 724.17 | I68: 737.98 | J68: 748.97 | K68: 727 | L68: 702.2 | M68: 5.51135
A69: 60 | B69: DLF | C69: 205.2 | D69: 206.37 | E69: 202.43 | F69: 199.67 | G69: 195.73 | H69: 209.13 | I69: 213.07 | J69: 215.83 | K69: 210.3 | L69: 203.6 | M69: 62.82591
A70: 61 | B70: DABUR | C70: 385.55 | D70: 382.60 | E70: 378.20 | F70: 370.85 | G70: 366.45 | H70: 389.95 | I70: 394.35 | J70: 401.70 | K70: 387 | L70: 375.25 | M70: 14.83955
A71: 62 | B71: DALMIABHA | C71: 2742 | D71: 2734.08 | E71: 2688.17 | F71: 2634.33 | G71: 2588.42 | H71: 2787.92 | I71: 2833.83 | J71: 2887.67 | K71: 2780 | L71: 2680.25 | M71: 1.02165
A72: 63 | B72: DHFL | C72: 624.3 | D72: 625.93 | E72: 618.37 | F72: 612.43 | G72: 604.87 | H72: 631.87 | I72: 639.43 | J72: 645.37 | K72: 633.5 | L72: 620 | M72: 19.94161
A73: 64 | B73: DISHTV | C73: 73.5 | D73: 73.93 | E73: 72.62 | F73: 71.73 | G73: 70.42 | H73: 74.82 | I73: 76.13 | J73: 77.02 | K73: 75.25 | L73: 73.05 | M73: 38.71888
A74: 65 | B74: DIVISLAB | C74: 1066.75 | D74: 1071.70 | E74: 1051.40 | F74: 1036.05 | G74: 1015.75 | H74: 1087.05 | I74: 1107.35 | J74: 1122.70 | K74: 1092 | L74: 1056.35 | M74: 7.53542
A75: 66 | B75: LALPATHLAB | C75: 879.55 | D75: 881.18 | E75: 873.37 | F75: 867.18 | G75: 859.37 | H75: 887.37 | I75: 895.18 | J75: 901.37 | K75: 889 | L75: 875 | M75: 0.09777
A76: 67 | B76: DRREDDY | C76: 1980.7 | D76: 1989.28 | E76: 1964.02 | F76: 1947.33 | G76: 1922.07 | H76: 2005.97 | I76: 2031.23 | J76: 2047.92 | K76: 2014.55 | L76: 1972.6 | M76: 4.9067
A77: 68 | B77: EDELWEISS | C77: 339.2 | D77: 337.33 | E77: 332.67 | F77: 326.13 | G77: 321.47 | H77: 343.87 | I77: 348.53 | J77: 355.07 | K77: 342 | L77: 330.8 | M77: 33.54858
A78: 69 | B78: EICHERMOT | C78: 30510.7 | D78: 30533.62 | E78: 30317.23 | F78: 30123.77 | G78: 29907.38 | H78: 30727.08 | I78: 30943.47 | J78: 31136.93 | K78: 30750 | L78: 30340.15 | M78: 0.20231
A79: 70 | B79: EMAMILTD | C79: 1040.45 | D79: 1042.82 | E79: 1033.63 | F79: 1026.82 | G79: 1017.63 | H79: 1049.63 | I79: 1058.82 | J79: 1065.63 | K79: 1052 | L79: 1036 | M79: 0.82131
A80: 71 | B80: ENDURANCE | C80: 1304.95 | D80: 1290.47 | E80: 1256.03 | F80: 1207.12 | G80: 1172.68 | H80: 1339.38 | I80: 1373.82 | J80: 1422.73 | K80: 1324.9 | L80: 1241.55 | M80: 0.76508
A81: 72 | B81: ENGINERSIN | C81: 136.1 | D81: 137.12 | E81: 134.03 | F81: 131.97 | G81: 128.88 | H81: 139.18 | I81: 142.27 | J81: 144.33 | K81: 140.2 | L81: 135.05 | M81: 17.30965
A82: 73 | B82: EXIDEIND | C82: 257.85 | D82: 259.28 | E82: 255.07 | F82: 252.28 | G82: 248.07 | H82: 262.07 | I82: 266.28 | J82: 269.07 | K82: 263.5 | L82: 256.5 | M82: 12.31821
A83: 74 | B83: FEDERALBNK | C83: 86.8 | D83: 86.73 | E83: 86.07 | F83: 85.33 | G83: 84.67 | H83: 87.47 | I83: 88.13 | J83: 88.87 | K83: 87.4 | L83: 86 | M83: 73.02674
A84: 75 | B84: GAIL | C84: 342.95 | D84: 340.37 | E84: 334.78 | F84: 326.62 | G84: 321.03 | H84: 348.53 | I84: 354.12 | J84: 362.28 | K84: 345.95 | L84: 332.2 | M84: 45.47368
A85: 76 | B85: GMRINFRA | C85: 18.2 | D85: 18.23 | E85: 17.87 | F85: 17.53 | G85: 17.17 | H85: 18.57 | I85: 18.93 | J85: 19.27 | K85: 18.6 | L85: 17.9 | M85: 201.05048
A86: 77 | B86: GSKCONS | C86: 6443.05 | D86: 6492.77 | E86: 6375.33 | F86: 6307.62 | G86: 6190.18 | H86: 6560.48 | I86: 6677.92 | J86: 6745.63 | K86: 6610.2 | L86: 6425.05 | M86: 0.28161
A87: 78 | B87: GLAXO | C87: 2416.4 | D87: 2408.45 | E87: 2387.95 | F87: 2359.50 | G87: 2339.00 | H87: 2436.90 | I87: 2457.40 | J87: 2485.85 | K87: 2428.95 | L87: 2380 | M87: 0.09028
A88: 79 | B88: GLENMARK | C88: 531.95 | D88: 532.00 | E88: 524.05 | F88: 516.15 | G88: 508.20 | H88: 539.90 | I88: 547.85 | J88: 555.75 | K88: 539.95 | L88: 524.1 | M88: 8.52809
A89: 80 | B89: GODREJCP | C89: 1133.95 | D89: 1131.98 | E89: 1119.27 | F89: 1104.58 | G89: 1091.87 | H89: 1146.67 | I89: 1159.38 | J89: 1174.07 | K89: 1144.7 | L89: 1117.3 | M89: 3.62933
A90: 81 | B90: GODREJIND | C90: 565.85 | D90: 569.38 | E90: 557.87 | F90: 549.88 | G90: 538.37 | H90: 577.37 | I90: 588.88 | J90: 596.87 | K90: 580.9 | L90: 561.4 | M90: 2.97852
A91: 82 | B91: GRUH | C91: 681.3 | D91: 685.40 | E91: 674.00 | F91: 666.70 | G91: 655.30 | H91: 692.70 | I91: 704.10 | J91: 711.40 | K91: 696.8 | L91: 678.1 | M91: 2.55626
A92: 83 | B92: GPPL | C92: 119.85 | D92: 122.37 | E92: 116.73 | F92: 113.62 | G92: 107.98 | H92: 125.48 | I92: 131.12 | J92: 134.23 | K92: 128 | L92: 119.25 | M92: 2.13406
A93: 84 | B93: GSPL | C93: 174.35 | D93: 174.95 | E93: 172.40 | F93: 170.45 | G93: 167.90 | H93: 176.90 | I93: 179.45 | J93: 181.40 | K93: 177.5 | L93: 173 | M93: 3.91695
A94: 85 | B94: HCLTECH | C94: 905.1 | D94: 903.20 | E94: 896.90 | F94: 888.70 | G94: 882.40 | H94: 911.40 | I94: 917.70 | J94: 925.90 | K94: 909.5 | L94: 895 | M94: 9.92916
A95: 86 | B95: HDFCBANK | C95: 2032.6 | D95: 2038.03 | E95: 2023.37 | F95: 2014.13 | G95: 1999.47 | H95: 2047.27 | I95: 2061.93 | J95: 2071.17 | K95: 2052.7 | L95: 2028.8 | M95: 8.37811
A96: 87 | B96: HAVELLS | C96: 548.7 | D96: 555.12 | E96: 540.78 | F96: 532.87 | G96: 518.53 | H96: 563.03 | I96: 577.37 | J96: 585.28 | K96: 569.45 | L96: 547.2 | M96: 20.2862
A97: 88 | B97: HEROMOTOCO | C97: 3610.4 | D97: 3599.87 | E97: 3575.73 | F97: 3541.07 | G97: 3516.93 | H97: 3634.53 | I97: 3658.67 | J97: 3693.33 | K97: 3624 | L97: 3565.2 | M97: 3.09517
A98: 89 | B98: HEXAWARE | C98: 442.9 | D98: 445.93 | E98: 432.57 | F98: 422.23 | G98: 408.87 | H98: 456.27 | I98: 469.63 | J98: 479.97 | K98: 459.3 | L98: 435.6 | M98: 26.38474
A99: 90 | B99: HINDALCO | C99: 242.5 | D99: 242.27 | E99: 239.63 | F99: 236.77 | G99: 234.13 | H99: 245.13 | I99: 247.77 | J99: 250.63 | K99: 244.9 | L99: 239.4 | M99: 68.12212
A100: 91 | B100: HINDPETRO | C100: 315.05 | D100: 315.32 | E100: 310.78 | F100: 306.52 | G100: 301.98 | H100: 319.58 | I100: 324.12 | J100: 328.38 | K100: 319.85 | L100: 311.05 | M100: 55.08625
A101: 92 | B101: HINDUNILVR | C101: 1572.7 | D101: 1578.07 | E101: 1558.33 | F101: 1543.97 | G101: 1524.23 | H101: 1592.43 | I101: 1612.17 | J101: 1626.53 | K101: 1597.8 | L101: 1563.7 | M101: 9.44652
A102: 93 | B102: HINDZINC | C102: 289.3 | D102: 289.85 | E102: 286.50 | F102: 283.70 | G102: 280.35 | H102: 292.65 | I102: 296.00 | J102: 298.80 | K102: 293.2 | L102: 287.05 | M102: 10.46698
A103: 94 | B103: HUDCO | C103: 61 | D103: 61.27 | E103: 59.68 | F103: 58.37 | G103: 56.78 | H103: 62.58 | I103: 64.17 | J103: 65.48 | K103: 62.85 | L103: 59.95 | M103: 36.9264
A104: 95 | B104: HDFC | C104: 1809.75 | D104: 1814.27 | E104: 1799.78 | F104: 1789.82 | G104: 1775.33 | H104: 1824.23 | I104: 1838.72 | J104: 1848.68 | K104: 1828.75 | L104: 1804.3 | M104: 11.60204
A105: 96 | B105: ITC | C105: 274.05 | D105: 274.75 | E105: 271.75 | F105: 269.45 | G105: 266.45 | H105: 277.05 | I105: 280.05 | J105: 282.35 | K105: 277.75 | L105: 272.45 | M105: 88.30998
A106: 97 | B106: ICICIBANK | C106: 289.9 | D106: 292.32 | E106: 285.88 | F106: 281.87 | G106: 275.43 | H106: 296.33 | I106: 302.77 | J106: 306.78 | K106: 298.75 | L106: 288.3 | M106: 129.69969
A107: 98 | B107: ICICIPRULI | C107: 418.25 | D107: 419.68 | E107: 413.57 | F107: 408.88 | G107: 402.77 | H107: 424.37 | I107: 430.48 | J107: 435.17 | K107: 425.8 | L107: 415 | M107: 3.62799
A108: 99 | B108: IDBI | C108: 65.15 | D108: 65.03 | E108: 64.17 | F108: 63.18 | G108: 62.32 | H108: 66.02 | I108: 66.88 | J108: 67.87 | K108: 65.9 | L108: 64.05 | M108: 96.64972
A109: 100 | B109: IDFCBANK | C109: 40.85 | D109: 41.33 | E109: 40.27 | F109: 39.68 | G109: 38.62 | H109: 41.92 | I109: 42.98 | J109: 43.57 | K109: 42.4 | L109: 40.75 | M109: 96.55468
A110: 101 | B110: IDFC | C110: 51.65 | D110: 51.95 | E110: 51.10 | F110: 50.55 | G110: 49.70 | H110: 52.50 | I110: 53.35 | J110: 53.90 | K110: 52.8 | L110: 51.4 | M110: 14.2143
A111: 102 | B111: IRB | C111: 236.75 | D111: 238.32 | E111: 232.83 | F111: 228.92 | G111: 223.43 | H111: 242.23 | I111: 247.72 | J111: 251.63 | K111: 243.8 | L111: 234.4 | M111: 16.76467
A112: 103 | B112: IDEA | C112: 62.3 | D112: 62.15 | E112: 61.10 | F112: 59.90 | G112: 58.85 | H112: 63.35 | I112: 64.40 | J112: 65.60 | K112: 63.2 | L112: 60.95 | M112: 169.78988
A113: 104 | B113: IBULHSGFIN | C113: 1220.25 | D113: 1213.60 | E113: 1202.40 | F113: 1184.55 | G113: 1173.35 | H113: 1231.45 | I113: 1242.65 | J113: 1260.50 | K113: 1224.8 | L113: 1195.75 | M113: 16.60295
A114: 105 | B114: INDIANB | C114: 326.55 | D114: 329.47 | E114: 321.33 | F114: 316.12 | G114: 307.98 | H114: 334.68 | I114: 342.82 | J114: 348.03 | K114: 337.6 | L114: 324.25 | M114: 11.44948
A115: 106 | B115: INDHOTEL | C115: 146.3 | D115: 146.03 | E115: 143.27 | F115: 140.23 | G115: 137.47 | H115: 149.07 | I115: 151.83 | J115: 154.87 | K115: 148.8 | L115: 143 | M115: 21.26601
A116: 107 | B116: IOC | C116: 172.45 | D116: 171.93 | E116: 169.87 | F116: 167.28 | G116: 165.22 | H116: 174.52 | I116: 176.58 | J116: 179.17 | K116: 174 | L116: 169.35 | M116: 109.05026
A117: 108 | B117: IGL | C117: 268.85 | D117: 267.70 | E117: 265.40 | F117: 261.95 | G117: 259.65 | H117: 271.15 | I117: 273.45 | J117: 276.90 | K117: 270 | L117: 264.25 | M117: 43.5332
A118: 109 | B118: INDUSINDBK | C118: 1877.3 | D118: 1888.12 | E118: 1859.18 | F118: 1841.07 | G118: 1812.13 | H118: 1906.23 | I118: 1935.17 | J118: 1953.28 | K118: 1917.05 | L118: 1870 | M118: 8.55287
A119: 110 | B119: NAUKRI | C119: 1252.25 | D119: 1228.27 | E119: 1186.53 | F119: 1120.82 | G119: 1079.08 | H119: 1293.98 | I119: 1335.72 | J119: 1401.43 | K119: 1270 | L119: 1162.55 | M119: 0.86062
A120: 111 | B120: INFY | C120: 1216.7 | D120: 1216.48 | E120: 1206.42 | F120: 1196.13 | G120: 1186.07 | H120: 1226.77 | I120: 1236.83 | J120: 1247.12 | K120: 1226.55 | L120: 1206.2 | M120: 16.94467
A121: 112 | B121: INDIGO | C121: 1218.15 | D121: 1231.38 | E121: 1196.82 | F121: 1175.48 | G121: 1140.92 | H121: 1252.72 | I121: 1287.28 | J121: 1308.62 | K121: 1265.95 | L121: 1210.05 | M121: 11.38431
A122: 113 | B122: IPCALAB | C122: 689.3 | D122: 684.13 | E122: 671.57 | F122: 653.83 | G122: 641.27 | H122: 701.87 | I122: 714.43 | J122: 732.17 | K122: 696.7 | L122: 666.4 | M122: 7.81823
A123: 114 | B123: JSWENERGY | C123: 76.65 | D123: 76.85 | E123: 75.70 | F123: 74.75 | G123: 73.60 | H123: 77.80 | I123: 78.95 | J123: 79.90 | K123: 78 | L123: 75.9 | M123: 7.81264
A124: 115 | B124: JSWSTEEL | C124: 331.75 | D124: 329.18 | E124: 325.92 | F124: 320.08 | G124: 316.82 | H124: 335.02 | I124: 338.28 | J124: 344.12 | K124: 332.45 | L124: 323.35 | M124: 48.98604
A125: 116 | B125: JINDALSTEL | C125: 234.3 | D125: 235.12 | E125: 230.43 | F125: 226.57 | G125: 221.88 | H125: 238.98 | I125: 243.67 | J125: 247.53 | K125: 239.8 | L125: 231.25 | M125: 47.42204
A126: 117 | B126: JUBLFOOD | C126: 2576.45 | D126: 2613.82 | E126: 2527.63 | F126: 2478.82 | G126: 2392.63 | H126: 2662.63 | I126: 2748.82 | J126: 2797.63 | K126: 2700 | L126: 2565 | M126: 15.81977
A127: 118 | B127: JUBILANT | C127: 783.7 | D127: 791.58 | E127: 770.67 | F127: 757.63 | G127: 736.72 | H127: 804.62 | I127: 825.53 | J127: 838.57 | K127: 812.5 | L127: 778.55 | M127: 3.33175
A128: 119 | B128: KARURVYSYA | C128: 101.15 | D128: 100.25 | E128: 99.00 | F128: 96.85 | G128: 95.60 | H128: 102.40 | I128: 103.65 | J128: 105.80 | K128: 101.5 | L128: 98.1 | M128: 9.56985
A129: 120 | B129: KOTAKBANK | C129: 1284.25 | D129: 1287.87 | E129: 1274.83 | F129: 1265.42 | G129: 1252.38 | H129: 1297.28 | I129: 1310.32 | J129: 1319.73 | K129: 1300.9 | L129: 1278.45 | M129: 10.9459
A130: 121 | B130: L&TFH | C130: 171.85 | D130: 172.33 | E130: 169.77 | F130: 167.68 | G130: 165.12 | H130: 174.42 | I130: 176.98 | J130: 179.07 | K130: 174.9 | L130: 170.25 | M130: 34.21698
A131: 122 | B131: LICHSGFIN | C131: 487.65 | D131: 491.68 | E131: 481.82 | F131: 475.98 | G131: 466.12 | H131: 497.52 | I131: 507.38 | J131: 513.22 | K131: 501.55 | L131: 485.85 | M131: 21.73171
A132: 123 | B132: LT | C132: 1380.6 | D132: 1393.65 | E132: 1362.35 | F132: 1344.10 | G132: 1312.80 | H132: 1411.90 | I132: 1443.20 | J132: 1461.45 | K132: 1424.95 | L132: 1375.4 | M132: 68.14062
A133: 124 | B133: LUPIN | C133: 781.05 | D133: 782.97 | E133: 767.03 | F133: 753.02 | G133: 737.08 | H133: 796.98 | I133: 812.92 | J133: 826.93 | K133: 798.9 | L133: 768.95 | M133: 26.0232
A134: 125 | B134: MRF | C134: 76392.25 | D134: 76357.08 | E134: 75285.17 | F134: 74178.08 | G134: 73106.17 | H134: 77464.17 | I134: 78536.08 | J134: 79643.17 | K134: 77429 | L134: 75250 | M134: 0.05286
A135: 126 | B135: MGL | C135: 842.4 | D135: 838.92 | E135: 828.38 | F135: 814.37 | G135: 803.83 | H135: 852.93 | I135: 863.47 | J135: 877.48 | K135: 849.45 | L135: 824.9 | M135: 3.35396
A136: 127 | B136: M&MFIN | C136: 473.4 | D136: 481.92 | E136: 460.33 | F136: 447.27 | G136: 425.68 | H136: 494.98 | I136: 516.57 | J136: 529.63 | K136: 503.5 | L136: 468.85 | M136: 15.51182
A137: 128 | B137: M&M | C137: 870.25 | D137: 865.32 | E137: 854.93 | F137: 839.62 | G137: 829.23 | H137: 880.63 | I137: 891.02 | J137: 906.33 | K137: 875.7 | L137: 850 | M137: 46.66224
A138: 129 | B138: MANAPPURAM | C138: 107.9 | D138: 108.20 | E138: 105.90 | F138: 103.90 | G138: 101.60 | H138: 110.20 | I138: 112.50 | J138: 114.50 | K138: 110.5 | L138: 106.2 | M138: 35.18861
A139: 130 | B139: MRPL | C139: 96.7 | D139: 97.77 | E139: 94.98 | F139: 93.27 | G139: 90.48 | H139: 99.48 | I139: 102.27 | J139: 103.98 | K139: 100.55 | L139: 96.05 | M139: 12.33745
A140: 131 | B140: MARICO | C140: 320.6 | D140: 320.23 | E140: 318.17 | F140: 315.73 | G140: 313.67 | H140: 322.67 | I140: 324.73 | J140: 327.17 | K140: 322.3 | L140: 317.8 | M140: 5.64273
A141: 132 | B141: MARUTI | C141: 8714.9 | D141: 8744.97 | E141: 8649.93 | F141: 8584.97 | G141: 8489.93 | H141: 8809.93 | I141: 8904.97 | J141: 8969.93 | K141: 8840 | L141: 8680 | M141: 6.65121
A142: 133 | B142: MFSL | C142: 475.1 | D142: 475.38 | E142: 471.02 | F142: 466.93 | G142: 462.57 | H142: 479.47 | I142: 483.83 | J142: 487.92 | K142: 479.75 | L142: 471.3 | M142: 7.24253
A143: 134 | B143: MINDTREE | C143: 1018.45 | D143: 1020.28 | E143: 1003.57 | F143: 988.68 | G143: 971.97 | H143: 1035.17 | I143: 1051.88 | J143: 1066.77 | K143: 1037 | L143: 1005.4 | M143: 11.99307
A144: 135 | B144: MOTHERSUMI | C144: 318.2 | D144: 317.02 | E144: 313.73 | F144: 309.27 | G144: 305.98 | H144: 321.48 | I144: 324.77 | J144: 329.23 | K144: 320.3 | L144: 312.55 | M144: 17.31215
A145: 136 | B145: MPHASIS | C145: 1035.75 | D145: 1045.25 | E145: 1015.50 | F145: 995.25 | G145: 965.50 | H145: 1065.50 | I145: 1095.25 | J145: 1115.50 | K145: 1075 | L145: 1025 | M145: 4.10042
A146: 137 | B146: MUTHOOTFIN | C146: 396.55 | D146: 396.10 | E146: 388.30 | F146: 380.05 | G146: 372.25 | H146: 404.35 | I146: 412.15 | J146: 420.40 | K146: 403.9 | L146: 387.85 | M146: 8.39344
A147: 138 | B147: NATCOPHARM | C147: 796.7 | D147: 797.23 | E147: 791.97 | F147: 787.23 | G147: 781.97 | H147: 801.97 | I147: 807.23 | J147: 811.97 | K147: 802.5 | L147: 792.5 | M147: 0.54547
A148: 139 | B148: NBCC | C148: 94.9 | D148: 95.08 | E148: 93.67 | F148: 92.43 | G148: 91.02 | H148: 96.32 | I148: 97.73 | J148: 98.97 | K148: 96.5 | L148: 93.85 | M148: 16.55605
A149: 140 | B149: NHPC | C149: 26.7 | D149: 26.90 | E149: 26.25 | F149: 25.80 | G149: 25.15 | H149: 27.35 | I149: 28.00 | J149: 28.45 | K149: 27.55 | L149: 26.45 | M149: 77.55998
A150: 141 | B150: NMDC | C150: 120.1 | D150: 120.75 | E150: 118.40 | F150: 116.70 | G150: 114.35 | H150: 122.45 | I150: 124.80 | J150: 126.50 | K150: 123.1 | L150: 119.05 | M150: 48.82861
A151: 142 | B151: NTPC | C151: 165.95 | D151: 166.68 | E151: 163.97 | F151: 161.98 | G151: 159.27 | H151: 168.67 | I151: 171.38 | J151: 173.37 | K151: 169.4 | L151: 164.7 | M151: 59.51482
A152: 143 | B152: NATIONALUM | C152: 71 | D152: 71.80 | E152: 70.00 | F152: 69.00 | G152: 67.20 | H152: 72.80 | I152: 74.60 | J152: 75.60 | K152: 73.6 | L152: 70.8 | M152: 64.38957
A153: 144 | B153: OBEROIRLTY | C153: 511.85 | D153: 510.63 | E153: 506.27 | F153: 500.68 | G153: 496.32 | H153: 516.22 | I153: 520.58 | J153: 526.17 | K153: 515 | L153: 505.05 | M153: 1.00323
A154: 145 | B154: ONGC | C154: 175.55 | D154: 175.40 | E154: 173.40 | F154: 171.25 | G154: 169.25 | H154: 177.55 | I154: 179.55 | J154: 181.70 | K154: 177.4 | L154: 173.25 | M154: 110.1516
A155: 146 | B155: OIL | C155: 225.6 | D155: 226.88 | E155: 221.27 | F155: 216.93 | G155: 211.32 | H155: 231.22 | I155: 236.83 | J155: 241.17 | K155: 232.5 | L155: 222.55 | M155: 37.78393
A156: 147 | B156: OFSS | C156: 3809.15 | D156: 3829.83 | E156: 3760.12 | F156: 3711.08 | G156: 3641.37 | H156: 3878.87 | I156: 3948.58 | J156: 3997.62 | K156: 3899.55 | L156: 3780.8 | M156: 0.06538
A157: 148 | B157: PCJEWELLER | C157: 171.15 | D157: 172.70 | E157: 166.45 | F157: 161.75 | G157: 155.50 | H157: 177.40 | I157: 183.65 | J157: 188.35 | K157: 178.95 | L157: 168 | M157: 114.23858
A158: 149 | B158: PIIND | C158: 846.5 | D158: 843.20 | E158: 836.35 | F158: 826.20 | G158: 819.35 | H158: 853.35 | I158: 860.20 | J158: 870.35 | K158: 850.05 | L158: 833.05 | M158: 0.80629
A159: 150 | B159: PNBHOUSING | C159: 1237.3 | D159: 1245.80 | E159: 1221.60 | F159: 1205.90 | G159: 1181.70 | H159: 1261.50 | I159: 1285.70 | J159: 1301.40 | K159: 1270 | L159: 1230.1 | M159: 0.68824
A160: 151 | B160: PAGEIND | C160: 24402.65 | D160: 24334.55 | E160: 24069.10 | F160: 23735.55 | G160: 23470.10 | H160: 24668.10 | I160: 24933.55 | J160: 25267.10 | K160: 24600 | L160: 24001 | M160: 0.10011
A161: 152 | B161: PETRONET | C161: 213.7 | D161: 214.98 | E161: 211.07 | F161: 208.43 | G161: 204.52 | H161: 217.62 | I161: 221.53 | J161: 224.17 | K161: 218.9 | L161: 212.35 | M161: 34.54099
A162: 153 | B162: PIDILITIND | C162: 1168.95 | D162: 1166.55 | E162: 1154.10 | F162: 1139.25 | G162: 1126.80 | H162: 1181.40 | I162: 1193.85 | J162: 1208.70 | K162: 1179 | L162: 1151.7 | M162: 13.15415
A163: 154 | B163: PEL | C163: 2405.75 | D163: 2420.25 | E163: 2365.50 | F163: 2325.25 | G163: 2270.50 | H163: 2460.50 | I163: 2515.25 | J163: 2555.50 | K163: 2475 | L163: 2380 | M163: 1.91846
A164: 155 | B164: PFC | C164: 80.45 | D164: 80.25 | E164: 78.90 | F164: 77.35 | G164: 76.00 | H164: 81.80 | I164: 83.15 | J164: 84.70 | K164: 81.6 | L164: 78.7 | M164: 138.92815
A165: 156 | B165: POWERGRID | C165: 207 | D165: 207.48 | E165: 205.27 | F165: 203.53 | G165: 201.32 | H165: 209.22 | I165: 211.43 | J165: 213.17 | K165: 209.7 | L165: 205.75 | M165: 88.59017
A166: 157 | B166: PRESTIGE | C166: 261.05 | D166: 264.95 | E166: 255.95 | F166: 250.85 | G166: 241.85 | H166: 270.05 | I166: 279.05 | J166: 284.15 | K166: 273.95 | L166: 259.85 | M166: 0.75921
A167: 158 | B167: PGHH | C167: 9242.3 | D167: 9283.23 | E167: 9162.77 | F167: 9083.23 | G167: 8962.77 | H167: 9362.77 | I167: 9483.23 | J167: 9562.77 | K167: 9403.7 | L167: 9203.7 | M167: 0.03659
A168: 159 | B168: PNB | C168: 85.65 | D168: 86.70 | E168: 84.20 | F168: 82.75 | G168: 80.25 | H168: 88.15 | I168: 90.65 | J168: 92.10 | K168: 89.2 | L168: 85.25 | M168: 277.5835
A169: 160 | B169: RBLBANK | C169: 527.45 | D169: 525.97 | E169: 523.08 | F169: 518.72 | G169: 515.83 | H169: 530.33 | I169: 533.22 | J169: 537.58 | K169: 528.85 | L169: 521.6 | M169: 9.12425
A170: 161 | B170: RAJESHEXPO | C170: 626.1 | D170: 624.62 | E170: 617.23 | F170: 608.37 | G170: 600.98 | H170: 633.48 | I170: 640.87 | J170: 649.73 | K170: 632 | L170: 615.75 | M170: 1.70998
A171: 162 | B171: RELCAPITAL | C171: 416.85 | D171: 414.30 | E171: 407.75 | F171: 398.65 | G171: 392.10 | H171: 423.40 | I171: 429.95 | J171: 439.05 | K171: 420.85 | L171: 405.2 | M171: 34.58816
A172: 163 | B172: RCOM | C172: 15.95 | D172: 16.03 | E172: 15.27 | F172: 14.58 | G172: 13.82 | H172: 16.72 | I172: 17.48 | J172: 18.17 | K172: 16.8 | L172: 15.35 | M172: 2010.30693
A173: 164 | B173: RELIANCE | C173: 917.45 | D173: 919.95 | E173: 911.90 | F173: 906.35 | G173: 898.30 | H173: 925.50 | I173: 933.55 | J173: 939.10 | K173: 928 | L173: 914.4 | M173: 81.73396
A174: 165 | B174: RELINFRA | C174: 426.8 | D174: 427.73 | E174: 421.87 | F174: 416.93 | G174: 411.07 | H174: 432.67 | I174: 438.53 | J174: 443.47 | K174: 433.6 | L174: 422.8 | M174: 17.38632
A175: 166 | B175: RPOWER | C175: 35.75 | D175: 35.97 | E175: 35.23 | F175: 34.72 | G175: 33.98 | H175: 36.48 | I175: 37.22 | J175: 37.73 | K175: 36.7 | L175: 35.45 | M175: 59.41929
A176: 167 | B176: RECLTD | C176: 119.6 | D176: 118.72 | E176: 116.58 | F176: 113.57 | G176: 111.43 | H176: 121.73 | I176: 123.87 | J176: 126.88 | K176: 120.85 | L176: 115.7 | M176: 54.59791
A177: 168 | B177: SRF | C177: 1926.05 | D177: 1928.58 | E177: 1892.27 | F177: 1858.48 | G177: 1822.17 | H177: 1962.37 | I177: 1998.68 | J177: 2032.47 | K177: 1964.9 | L177: 1894.8 | M177: 4.68148
A178: 169 | B178: SHREECEM | C178: 16825.65 | D178: 16762.75 | E178: 16525.65 | F178: 16225.65 | G178: 15988.55 | H178: 17062.75 | I178: 17299.85 | J178: 17599.85 | K178: 16999.85 | L178: 16462.75 | M178: 0.2672
A179: 170 | B179: SRTRANSFIN | C179: 1526.2 | D179: 1524.52 | E179: 1499.08 | F179: 1471.97 | G179: 1446.53 | H179: 1551.63 | I179: 1577.07 | J179: 1604.18 | K179: 1549.95 | L179: 1497.4 | M179: 4.66817
A180: 171 | B180: SIEMENS | C180: 1049 | D180: 1063.20 | E180: 1028.90 | F180: 1008.80 | G180: 974.50 | H180: 1083.30 | I180: 1117.60 | J180: 1137.70 | K180: 1097.5 | L180: 1043.1 | M180: 3.61747
A181: 172 | B181: SBIN | C181: 264.3 | D181: 266.02 | E181: 261.08 | F181: 257.87 | G181: 252.93 | H181: 269.23 | I181: 274.17 | J181: 277.38 | K181: 270.95 | L181: 262.8 | M181: 161.07543
A182: 173 | B182: SAIL | C182: 76.7 | D182: 76.20 | E182: 75.30 | F182: 73.90 | G182: 73.00 | H182: 77.60 | I182: 78.50 | J182: 79.90 | K182: 77.1 | L182: 74.8 | M182: 94.55624
A183: 174 | B183: SPARC | C183: 392.2 | D183: 390.77 | E183: 383.73 | F183: 375.27 | G183: 368.23 | H183: 399.23 | I183: 406.27 | J183: 414.73 | K183: 397.8 | L183: 382.3 | M183: 2.57834
A184: 175 | B184: SUNPHARMA | C184: 499.5 | D184: 499.83 | E184: 489.72 | F184: 479.93 | G184: 469.82 | H184: 509.62 | I184: 519.73 | J184: 529.52 | K184: 509.95 | L184: 490.05 | M184: 82.58927
A185: 176 | B185: SUNTV | C185: 940.2 | D185: 941.22 | E185: 931.08 | F185: 921.97 | G185: 911.83 | H185: 950.33 | I185: 960.47 | J185: 969.58 | K185: 951.35 | L185: 932.1 | M185: 9.6467
A186: 177 | B186: SUZLON | C186: 9.5 | D186: 9.60 | E186: 9.30 | F186: 9.10 | G186: 8.80 | H186: 9.80 | I186: 10.10 | J186: 10.30 | K186: 9.9 | L186: 9.4 | M186: 309.95345
A187: 178 | B187: SYNDIBANK | C187: 49.55 | D187: 49.67 | E187: 48.93 | F187: 48.32 | G187: 47.58 | H187: 50.28 | I187: 51.02 | J187: 51.63 | K187: 50.4 | L187: 49.05 | M187: 23.87374
A188: 179 | B188: SYNGENE | C188: 608.75 | D188: 609.93 | E188: 601.12 | F188: 593.48 | G188: 584.67 | H188: 617.57 | I188: 626.38 | J188: 634.02 | K188: 618.75 | L188: 602.3 | M188: 1.46772
A189: 180 | B189: TV18BRDCST | C189: 56.3 | D189: 56.27 | E189: 55.13 | F189: 53.97 | G189: 52.83 | H189: 57.43 | I189: 58.57 | J189: 59.73 | K189: 57.4 | L189: 55.1 | M189: 22.70027
A190: 181 | B190: TVSMOTOR | C190: 595.6 | D190: 592.18 | E190: 583.17 | F190: 570.73 | G190: 561.72 | H190: 604.62 | I190: 613.63 | J190: 626.07 | K190: 601.2 | L190: 579.75 | M190: 16.18721
A191: 182 | B191: TATACHEM | C191: 725 | D191: 730.02 | E191: 717.03 | F191: 709.07 | G191: 696.08 | H191: 737.98 | I191: 750.97 | J191: 758.93 | K191: 743 | L191: 722.05 | M191: 3.05939
A192: 183 | B192: TATACOMM | C192: 620.55 | D192: 626.08 | E192: 602.97 | F192: 585.38 | G192: 562.27 | H192: 643.67 | I192: 666.78 | J192: 684.37 | K192: 649.2 | L192: 608.5 | M192: 4.11796
A193: 184 | B193: TCS | C193: 3523.5 | D193: 3518.50 | E193: 3493.00 | F193: 3462.50 | G193: 3437.00 | H193: 3549.00 | I193: 3574.50 | J193: 3605.00 | K193: 3544 | L193: 3488 | M193: 17.62656
A194: 185 | B194: TATAGLOBAL | C194: 257.5 | D194: 259.07 | E194: 255.43 | F194: 253.37 | G194: 249.73 | H194: 261.13 | I194: 264.77 | J194: 266.83 | K194: 262.7 | L194: 257 | M194: 22.35734
A195: 186 | B195: TATAMTRDVR | C195: 170.35 | D195: 171.28 | E195: 169.12 | F195: 167.88 | G195: 165.72 | H195: 172.52 | I195: 174.68 | J195: 175.92 | K195: 173.45 | L195: 170.05 | M195: 62.65876
A196: 187 | B196: TATAMOTORS | C196: 294.65 | D196: 295.88 | E196: 291.77 | F196: 288.88 | G196: 284.77 | H196: 298.77 | I196: 302.88 | J196: 305.77 | K196: 300 | L196: 293 | M196: 98.16561
A197: 188 | B197: TATAPOWER | C197: 83.5 | D197: 83.15 | E197: 81.95 | F197: 80.40 | G197: 79.20 | H197: 84.70 | I197: 85.90 | J197: 87.45 | K197: 84.35 | L197: 81.6 | M197: 72.523
A198: 189 | B198: TATASTEEL | C198: 575.35 | D198: 577.57 | E198: 567.13 | F198: 558.92 | G198: 548.48 | H198: 585.78 | I198: 596.22 | J198: 604.43 | K198: 588 | L198: 569.35 | M198: 64.77911
A199: 190 | B199: TECHM | C199: 677.85 | D199: 679.20 | E199: 671.90 | F199: 665.95 | G199: 658.65 | H199: 685.15 | I199: 692.45 | J199: 698.40 | K199: 686.5 | L199: 673.25 | M199: 26.84315
A200: 191 | B200: RAMCOCEM | C200: 789.65 | D200: 787.48 | E200: 777.17 | F200: 764.68 | G200: 754.37 | H200: 799.97 | I200: 810.28 | J200: 822.77 | K200: 797.8 | L200: 775 | M200: 4.45027
A201: 192 | B201: TITAN | C201: 914.5 | D201: 919.00 | E201: 907.50 | F201: 900.50 | G201: 889.00 | H201: 926.00 | I201: 937.50 | J201: 944.50 | K201: 930.5 | L201: 912 | M201: 9.99806
A202: 193 | B202: TORNTPHARM | C202: 1346.5 | D202: 1351.98 | E202: 1326.97 | F202: 1307.43 | G202: 1282.42 | H202: 1371.52 | I202: 1396.53 | J202: 1416.07 | K202: 1377 | L202: 1332.45 | M202: 0.91485
A203: 194 | B203: TORNTPOWER | C203: 242.1 | D203: 239.97 | E203: 236.13 | F203: 230.17 | G203: 226.33 | H203: 245.93 | I203: 249.77 | J203: 255.73 | K203: 243.8 | L203: 234 | M203: 10.8868
A204: 195 | B204: UPL | C204: 704.85 | D204: 709.67 | E204: 696.43 | F204: 688.02 | G204: 674.78 | H204: 718.08 | I204: 731.32 | J204: 739.73 | K204: 722.9 | L204: 701.25 | M204: 7.56109
A205: 196 | B205: ULTRACEMCO | C205: 3716.05 | D205: 3730.68 | E205: 3686.37 | F205: 3656.68 | G205: 3612.37 | H205: 3760.37 | I205: 3804.68 | J205: 3834.37 | K205: 3775 | L205: 3701 | M205: 3.47743
... 30 more rows

Sheet MidCap Intra
L5: Back To Main Page
A6: FOR INTRA DAY TRADING | K6: =Main!B10 -> 2018-05-30
A9: Sr.no | B9: Scrip | C9: CLOSE RATE | D9: Pivot Point | E9: Supports | H9: Resistances
C10: Point | E10: S1 | F10: S2 | G10: S3 | H10: R1 | I10: R2 | J10: R3 | K10: HIGH | L10: LOW | M10: Total Trade Quanity in Lakhs
A11: 1 | B11: 3MINDIA | C11: 19983.5 | D11: 19939.33 | E11: 19838.72 | F11: 19693.93 | G11: 19593.32 | H11: 20084.12 | I11: 20184.73 | J11: 20329.52 | K11: 20039.95 | L11: 19794.55 | M11: 0.0124
A12: 2 | B12: 8KMILES | C12: 638.1 | D12: 636.65 | E12: 625.30 | F12: 612.50 | G12: 601.15 | H12: 649.45 | I12: 660.80 | J12: 673.60 | K12: 648 | L12: 623.85 | M12: 2.36383
A13: 3 | B13: AARTIIND | C13: 1208.9 | D13: 1214.30 | E13: 1199.60 | F13: 1190.30 | G13: 1175.60 | H13: 1223.60 | I13: 1238.30 | J13: 1247.60 | K13: 1229 | L13: 1205 | M13: 0.25555
A14: 4 | B14: ABAN | C14: 155.8 | D14: 156.23 | E14: 153.72 | F14: 151.63 | G14: 149.12 | H14: 158.32 | I14: 160.83 | J14: 162.92 | K14: 158.75 | L14: 154.15 | M14: 5.42073
A15: 5 | B15: ABB | C15: 1225.9 | D15: 1216.63 | E15: 1202.12 | F15: 1178.33 | G15: 1163.82 | H15: 1240.42 | I15: 1254.93 | J15: 1278.72 | K15: 1231.15 | L15: 1192.85 | M15: 0.39185
A16: 6 | B16: ABCAPITAL | C16: 149.1 | D16: 148.67 | E16: 145.63 | F16: 142.17 | G16: 139.13 | H16: 152.13 | I16: 155.17 | J16: 158.63 | K16: 151.7 | L16: 145.2 | M16: 20.30951
A17: 7 | B17: ABFRL | C17: 149.25 | D17: 148.17 | E17: 146.43 | F17: 143.62 | G17: 141.88 | H17: 150.98 | I17: 152.72 | J17: 155.53 | K17: 149.9 | L17: 145.35 | M17: 4.32826
A18: 8 | B18: ACC | C18: 1310 | D18: 1316.30 | E18: 1294.90 | F18: 1279.80 | G18: 1258.40 | H18: 1331.40 | I18: 1352.80 | J18: 1367.90 | K18: 1337.7 | L18: 1301.2 | M18: 8.94054
A19: 9 | B19: ADANIPORTS | C19: 377.85 | D19: 378.30 | E19: 372.75 | F19: 367.65 | G19: 362.10 | H19: 383.40 | I19: 388.95 | J19: 394.05 | K19: 383.85 | L19: 373.2 | M19: 33.94813
A20: 10 | B20: ADANIPOWER | C20: 20.5 | D20: 20.70 | E20: 19.85 | F20: 19.20 | G20: 18.35 | H20: 21.35 | I20: 22.20 | J20: 22.85 | K20: 21.55 | L20: 20.05 | M20: 193.3421
A21: 11 | B21: ADANITRANS | C21: 140.05 | D21: 146.02 | E21: 128.03 | F21: 116.02 | G21: 98.03 | H21: 158.03 | I21: 176.02 | J21: 188.03 | K21: 164 | L21: 134 | M21: 10.39569
A22: 12 | B22: ADVENZYMES | C22: 239.5 | D22: 236.60 | E22: 228.30 | F22: 217.10 | G22: 208.80 | H22: 247.80 | I22: 256.10 | J22: 267.30 | K22: 244.9 | L22: 225.4 | M22: 14.97598
A23: 13 | B23: AEGISCHEM | C23: 266.9 | D23: 268.33 | E23: 258.87 | F23: 250.83 | G23: 241.37 | H23: 276.37 | I23: 285.83 | J23: 293.87 | K23: 277.8 | L23: 260.3 | M23: 0.68652
A24: 14 | B24: AIAENG | C24: 1583.45 | D24: 1595.80 | E24: 1565.65 | F24: 1547.85 | G24: 1517.70 | H24: 1613.60 | I24: 1643.75 | J24: 1661.55 | K24: 1625.95 | L24: 1578 | M24: 0.82619
A25: 15 | B25: AJANTPHARM | C25: 1015.15 | D25: 1023.05 | E25: 1002.10 | F25: 989.05 | G25: 968.10 | H25: 1036.10 | I25: 1057.05 | J25: 1070.10 | K25: 1044 | L25: 1010 | M25: 1.96172
A26: 16 | B26: AKZOINDIA | C26: 1930.55 | D26: 1927.42 | E26: 1913.38 | F26: 1896.22 | G26: 1882.18 | H26: 1944.58 | I26: 1958.62 | J26: 1975.78 | K26: 1941.45 | L26: 1910.25 | M26: 0.17874
A27: 17 | B27: ALBK | C27: 42 | D27: 42.23 | E27: 41.32 | F27: 40.63 | G27: 39.72 | H27: 42.92 | I27: 43.83 | J27: 44.52 | K27: 43.15 | L27: 41.55 | M27: 35.8249
A28: 18 | B28: ALKEM | C28: 2048 | D28: 2032.50 | E28: 2009.50 | F28: 1971.00 | G28: 1948.00 | H28: 2071.00 | I28: 2094.00 | J28: 2132.50 | K28: 2055.5 | L28: 1994 | M28: 0.12811
A29: 19 | B29: ALLCARGO | C29: 126.15 | D29: 125.72 | E29: 122.43 | F29: 118.72 | G29: 115.43 | H29: 129.43 | I29: 132.72 | J29: 136.43 | K29: 129 | L29: 122 | M29: 1.98233
A30: 20 | B30: AMARAJABAT | C30: 791.55 | D30: 792.78 | E30: 780.77 | F30: 769.98 | G30: 757.97 | H30: 803.57 | I30: 815.58 | J30: 826.37 | K30: 804.8 | L30: 782 | M30: 3.13868
A31: 21 | B31: AMBUJACEM | C31: 208.3 | D31: 210.05 | E31: 206.10 | F31: 203.90 | G31: 199.95 | H31: 212.25 | I31: 216.20 | J31: 218.40 | K31: 214 | L31: 207.85 | M31: 14.59474
A32: 22 | B32: ANDHRABANK | C32: 36.7 | D32: 37.00 | E32: 36.25 | F32: 35.80 | G32: 35.05 | H32: 37.45 | I32: 38.20 | J32: 38.65 | K32: 37.75 | L32: 36.55 | M32: 43.33108
A33: 23 | B33: APLAPOLLO | C33: 1931.9 | D33: 1921.57 | E33: 1900.33 | F33: 1868.77 | G33: 1847.53 | H33: 1953.13 | I33: 1974.37 | J33: 2005.93 | K33: 1942.8 | L33: 1890 | M33: 0.43159
A34: 24 | B34: APLLTD | C34: 439.95 | D34: 437.15 | E34: 428.50 | F34: 417.05 | G34: 408.40 | H34: 448.60 | I34: 457.25 | J34: 468.70 | K34: 445.8 | L34: 425.7 | M34: 0.37487
A35: 25 | B35: APOLLOHOSP | C35: 1004.9 | D35: 995.82 | E35: 973.73 | F35: 942.57 | G35: 920.48 | H35: 1026.98 | I35: 1049.07 | J35: 1080.23 | K35: 1017.9 | L35: 964.65 | M35: 4.44641
A36: 26 | B36: APOLLOTYRE | C36: 280 | D36: 283.50 | E36: 275.65 | F36: 271.30 | G36: 263.45 | H36: 287.85 | I36: 295.70 | J36: 300.05 | K36: 291.35 | L36: 279.15 | M36: 24.83607
A37: 27 | B37: ARVIND | C37: 389.2 | D37: 391.90 | E37: 384.30 | F37: 379.40 | G37: 371.80 | H37: 396.80 | I37: 404.40 | J37: 409.30 | K37: 399.5 | L37: 387 | M37: 13.10397
A38: 28 | B38: ASAHIINDIA | C38: 347.85 | D38: 350.28 | E38: 344.57 | F38: 341.28 | G38: 335.57 | H38: 353.57 | I38: 359.28 | J38: 362.57 | K38: 356 | L38: 347 | M38: 0.08842
A39: 29 | B39: ASHOKA | C39: 259.7 | D39: 263.70 | E39: 254.30 | F39: 248.90 | G39: 239.50 | H39: 269.10 | I39: 278.50 | J39: 283.90 | K39: 273.1 | L39: 258.3 | M39: 2.18426
A40: 30 | B40: ASHOKLEY | C40: 149.55 | D40: 148.72 | E40: 146.93 | F40: 144.32 | G40: 142.53 | H40: 151.33 | I40: 153.12 | J40: 155.73 | K40: 150.5 | L40: 146.1 | M40: 134.59379
A41: 31 | B41: ASIANPAINT | C41: 1299.5 | D41: 1306.17 | E41: 1282.33 | F41: 1265.17 | G41: 1241.33 | H41: 1323.33 | I41: 1347.17 | J41: 1364.33 | K41: 1330 | L41: 1289 | M41: 7.69331
A42: 32 | B42: ASTRAL | C42: 960.1 | D42: 958.67 | E42: 944.43 | F42: 928.77 | G42: 914.53 | H42: 974.33 | I42: 988.57 | J42: 1004.23 | K42: 972.9 | L42: 943 | M42: 0.35388
A43: 33 | B43: ATUL | C43: 2709.45 | D43: 2717.90 | E43: 2692.55 | F43: 2675.65 | G43: 2650.30 | H43: 2734.80 | I43: 2760.15 | J43: 2777.05 | K43: 2743.25 | L43: 2701 | M43: 0.03362
A44: 34 | B44: AUBANK | C44: 683.35 | D44: 683.92 | E44: 677.83 | F44: 672.32 | G44: 666.23 | H44: 689.43 | I44: 695.52 | J44: 701.03 | K44: 690 | L44: 678.4 | M44: 1.03637
A45: 35 | B45: AUROPHARMA | C45: 578.8 | D45: 580.03 | E45: 566.72 | F45: 554.63 | G45: 541.32 | H45: 592.12 | I45: 605.43 | J45: 617.52 | K45: 593.35 | L45: 567.95 | M45: 65.24564
A46: 36 | B46: AVANTIFEED | C46: 1819.55 | D46: 1834.02 | E46: 1798.53 | F46: 1777.52 | G46: 1742.03 | H46: 1855.03 | I46: 1890.52 | J46: 1911.53 | K46: 1869.5 | L46: 1813 | M46: 1.25515
A47: 37 | B47: AXISBANK | C47: 547.75 | D47: 546.95 | E47: 544.00 | F47: 540.25 | G47: 537.30 | H47: 550.70 | I47: 553.65 | J47: 557.40 | K47: 549.9 | L47: 543.2 | M47: 80.15443
A48: 38 | B48: BAJAJ-AUTO | C48: 2796.05 | D48: 2797.55 | E48: 2760.15 | F48: 2724.25 | G48: 2686.85 | H48: 2833.45 | I48: 2870.85 | J48: 2906.75 | K48: 2834.95 | L48: 2761.65 | M48: 2.61407
A49: 39 | B49: BAJAJCORP | C49: 463.45 | D49: 463.35 | E49: 458.85 | F49: 454.25 | G49: 449.75 | H49: 467.95 | I49: 472.45 | J49: 477.05 | K49: 467.85 | L49: 458.75 | M49: 0.3476
A50: 40 | B50: BAJAJELEC | C50: 549.65 | D50: 551.77 | E50: 542.93 | F50: 536.22 | G50: 527.38 | H50: 558.48 | I50: 567.32 | J50: 574.03 | K50: 560.6 | L50: 545.05 | M50: 4.3952
A51: 41 | B51: BAJAJFINSV | C51: 5887.85 | D51: 5935.98 | E51: 5816.97 | F51: 5746.08 | G51: 5627.07 | H51: 6006.87 | I51: 6125.88 | J51: 6196.77 | K51: 6055 | L51: 5865.1 | M51: 1.17673
A52: 42 | B52: BAJAJHIND | C52: 7.6 | D52: 7.65 | E52: 7.50 | F52: 7.40 | G52: 7.25 | H52: 7.75 | I52: 7.90 | J52: 8.00 | K52: 7.8 | L52: 7.55 | M52: 38.26898
A53: 43 | B53: BAJAJHLDNG | C53: 2766.05 | D53: 2777.62 | E53: 2743.43 | F53: 2720.82 | G53: 2686.63 | H53: 2800.23 | I53: 2834.42 | J53: 2857.03 | K53: 2811.8 | L53: 2755 | M53: 0.03554
A54: 44 | B54: BAJFINANCE | C54: 2077.1 | D54: 2083.05 | E54: 2059.10 | F54: 2041.10 | G54: 2017.15 | H54: 2101.05 | I54: 2125.00 | J54: 2143.00 | K54: 2107 | L54: 2065.05 | M54: 7.27259
A55: 45 | B55: BALKRISIND | C55: 1142.35 | D55: 1150.57 | E55: 1127.23 | F55: 1112.12 | G55: 1088.78 | H55: 1165.68 | I55: 1189.02 | J55: 1204.13 | K55: 1173.9 | L55: 1135.45 | M55: 3.28078
A56: 46 | B56: BALLARPUR | C56: 11.1 | D56: 11.25 | E56: 10.90 | F56: 10.70 | G56: 10.35 | H56: 11.45 | I56: 11.80 | J56: 12.00 | K56: 11.6 | L56: 11.05 | M56: 4.14342
A57: 47 | B57: BALMLAWRIE | C57: 223.6 | D57: 222.67 | E57: 217.93 | F57: 212.27 | G57: 207.53 | H57: 228.33 | I57: 233.07 | J57: 238.73 | K57: 227.4 | L57: 217 | M57: 1.6102
A58: 48 | B58: BALRAMCHIN | C58: 71.6 | D58: 72.15 | E58: 69.55 | F58: 67.50 | G58: 64.90 | H58: 74.20 | I58: 76.80 | J58: 78.85 | K58: 74.75 | L58: 70.1 | M58: 91.2632
A59: 49 | B59: BANKBARODA | C59: 140.4 | D59: 141.80 | E59: 138.15 | F59: 135.90 | G59: 132.25 | H59: 144.05 | I59: 147.70 | J59: 149.95 | K59: 145.45 | L59: 139.55 | M59: 127.73006
A60: 50 | B60: BANKINDIA | C60: 101.6 | D60: 102.90 | E60: 99.80 | F60: 98.00 | G60: 94.90 | H60: 104.70 | I60: 107.80 | J60: 109.60 | K60: 106 | L60: 101.1 | M60: 186.36555
A61: 51 | B61: BASF | C61: 2018.75 | D61: 2021.63 | E61: 1993.27 | F61: 1967.78 | G61: 1939.42 | H61: 2047.12 | I61: 2075.48 | J61: 2100.97 | K61: 2050 | L61: 1996.15 | M61: 0.10653
A62: 52 | B62: BATAINDIA | C62: 771.1 | D62: 771.20 | E62: 761.75 | F62: 752.40 | G62: 742.95 | H62: 780.55 | I62: 790.00 | J62: 799.35 | K62: 780.65 | L62: 761.85 | M62: 5.49834
A63: 53 | B63: BBTC | C63: 1537 | D63: 1541.27 | E63: 1517.48 | F63: 1497.97 | G63: 1474.18 | H63: 1560.78 | I63: 1584.57 | J63: 1604.08 | K63: 1565.05 | L63: 1521.75 | M63: 1.54794
A64: 54 | B64: BEL | C64: 122.8 | D64: 123.12 | E64: 121.68 | F64: 120.57 | G64: 119.13 | H64: 124.23 | I64: 125.67 | J64: 126.78 | K64: 124.55 | L64: 122 | M64: 43.80242
A65: 55 | B65: BEML | C65: 945.25 | D65: 946.40 | E65: 934.85 | F65: 924.45 | G65: 912.90 | H65: 956.80 | I65: 968.35 | J65: 978.75 | K65: 957.95 | L65: 936 | M65: 7.54782
A66: 56 | B66: BERGEPAINT | C66: 298.25 | D66: 299.38 | E66: 293.07 | F66: 287.88 | G66: 281.57 | H66: 304.57 | I66: 310.88 | J66: 316.07 | K66: 305.7 | L66: 294.2 | M66: 10.9578
A67: 57 | B67: BFUTILITIE | C67: 378.2 | D67: 378.93 | E67: 372.92 | F67: 367.63 | G67: 361.62 | H67: 384.22 | I67: 390.23 | J67: 395.52 | K67: 384.95 | L67: 373.65 | M67: 5.24213
A68: 58 | B68: BGRENERGY | C68: 95.55 | D68: 96.55 | E68: 93.80 | F68: 92.05 | G68: 89.30 | H68: 98.30 | I68: 101.05 | J68: 102.80 | K68: 99.3 | L68: 94.8 | M68: 0.80742
A69: 59 | B69: BHARATFIN | C69: 1141.9 | D69: 1145.95 | E69: 1131.00 | F69: 1120.10 | G69: 1105.15 | H69: 1156.85 | I69: 1171.80 | J69: 1182.70 | K69: 1160.9 | L69: 1135.05 | M69: 6.66837
A70: 60 | B70: BHARATFORG | C70: 659.15 | D70: 661.77 | E70: 647.58 | F70: 636.02 | G70: 621.83 | H70: 673.33 | I70: 687.52 | J70: 699.08 | K70: 675.95 | L70: 650.2 | M70: 15.3212
A71: 61 | B71: BHARTIARTL | C71: 379.15 | D71: 377.37 | E71: 373.03 | F71: 366.92 | G71: 362.58 | H71: 383.48 | I71: 387.82 | J71: 393.93 | K71: 381.7 | L71: 371.25 | M71: 34.771
A72: 62 | B72: BHEL | C72: 83.45 | D72: 83.28 | E72: 79.72 | F72: 75.98 | G72: 72.42 | H72: 87.02 | I72: 90.58 | J72: 94.32 | K72: 86.85 | L72: 79.55 | M72: 639.43559
A73: 63 | B73: BHUSANSTL | C73: 38.7 | D73: 37.68 | E73: 36.67 | F73: 34.63 | G73: 33.62 | H73: 39.72 | I73: 40.73 | J73: 42.77 | K73: 38.7 | L73: 35.65 | M73: 72.80718
A74: 64 | B74: BIOCON | C74: 676.45 | D74: 672.75 | E74: 663.50 | F74: 650.55 | G74: 641.30 | H74: 685.70 | I74: 694.95 | J74: 707.90 | K74: 682 | L74: 659.8 | M74: 17.03895
A75: 65 | B75: BIRLACORPN | C75: 743.55 | D75: 745.08 | E75: 735.17 | F75: 726.78 | G75: 716.87 | H75: 753.47 | I75: 763.38 | J75: 771.77 | K75: 755 | L75: 736.7 | M75: 0.43549
A76: 66 | B76: BLISSGVS | C76: 179.6 | D76: 179.98 | E76: 178.62 | F76: 177.63 | G76: 176.27 | H76: 180.97 | I76: 182.33 | J76: 183.32 | K76: 181.35 | L76: 179 | M76: 1.02033
A77: 67 | B77: BLUEDART | C77: 3413.45 | D77: 3464.57 | E77: 3322.63 | F77: 3231.82 | G77: 3089.88 | H77: 3555.38 | I77: 3697.32 | J77: 3788.13 | K77: 3606.5 | L77: 3373.75 | M77: 0.05844
A78: 68 | B78: BLUESTARCO | C78: 704.15 | D78: 703.38 | E78: 700.77 | F78: 697.38 | G78: 694.77 | H78: 706.77 | I78: 709.38 | J78: 712.77 | K78: 706 | L78: 700 | M78: 0.49107
A79: 69 | B79: BOMDYEING | C79: 267.15 | D79: 267.28 | E79: 263.22 | F79: 259.28 | G79: 255.22 | H79: 271.22 | I79: 275.28 | J79: 279.22 | K79: 271.35 | L79: 263.35 | M79: 13.74897
A80: 70 | B80: BOSCHLTD | C80: 18556.75 | D80: 18415.60 | E80: 18161.20 | F80: 17765.65 | G80: 17511.25 | H80: 18811.15 | I80: 19065.55 | J80: 19461.10 | K80: 18670 | L80: 18020.05 | M80: 0.11277
A81: 71 | B81: BPCL | C81: 405.35 | D81: 405.43 | E81: 400.22 | F81: 395.08 | G81: 389.87 | H81: 410.57 | I81: 415.78 | J81: 420.92 | K81: 410.65 | L81: 400.3 | M81: 49.02822
A82: 72 | B82: BRFL | C82: 23.4 | D82: 23.20 | E82: 22.50 | F82: 21.60 | G82: 20.90 | H82: 24.10 | I82: 24.80 | J82: 25.70 | K82: 23.9 | L82: 22.3 | M82: 1.42157
A83: 73 | B83: BRIGADE | C83: 242.35 | D83: 243.78 | E83: 238.57 | F83: 234.78 | G83: 229.57 | H83: 247.57 | I83: 252.78 | J83: 256.57 | K83: 249 | L83: 240 | M83: 0.25707
A84: 74 | B84: BRITANNIA | C84: 5805.1 | D84: 5817.12 | E84: 5766.23 | F84: 5727.37 | G84: 5676.48 | H84: 5855.98 | I84: 5906.87 | J84: 5945.73 | K84: 5868 | L84: 5778.25 | M84: 0.84912
A85: 75 | B85: BSE | C85: 828.9 | D85: 829.58 | E85: 825.37 | F85: 821.83 | G85: 817.62 | H85: 833.12 | I85: 837.33 | J85: 840.87 | K85: 833.8 | L85: 826.05 | M85: 0.89125
A86: 77 | B86: CADILAHC | C86: 366.75 | D86: 370.92 | E86: 361.33 | F86: 355.92 | G86: 346.33 | H86: 376.33 | I86: 385.92 | J86: 391.33 | K86: 380.5 | L86: 365.5 | M86: 18.39175
A87: 78 | B87: CANBK | C87: 256.85 | D87: 258.65 | E87: 253.40 | F87: 249.95 | G87: 244.70 | H87: 262.10 | I87: 267.35 | J87: 270.80 | K87: 263.9 | L87: 255.2 | M87: 73.82033
A88: 79 | B88: CANFINHOME | C88: 386.9 | D88: 390.73 | E88: 378.07 | F88: 369.23 | G88: 356.57 | H88: 399.57 | I88: 412.23 | J88: 421.07 | K88: 403.4 | L88: 381.9 | M88: 12.52925
A89: 80 | B89: CAPF | C89: 558.05 | D89: 562.67 | E89: 549.48 | F89: 540.92 | G89: 527.73 | H89: 571.23 | I89: 584.42 | J89: 592.98 | K89: 575.85 | L89: 554.1 | M89: 3.02273
A90: 81 | B90: CAPLIPOINT | C90: 537.4 | D90: 547.92 | E90: 500.58 | F90: 463.77 | G90: 416.43 | H90: 584.73 | I90: 632.07 | J90: 668.88 | K90: 595.25 | L90: 511.1 | M90: 4.52596
A91: 82 | B91: CARBORUNIV | C91: 350.2 | D91: 350.72 | E91: 347.43 | F91: 344.67 | G91: 341.38 | H91: 353.48 | I91: 356.77 | J91: 359.53 | K91: 354 | L91: 347.95 | M91: 0.4338
A92: 83 | B92: CARERATING | C92: 1319.25 | D92: 1318.35 | E92: 1306.70 | F92: 1294.15 | G92: 1282.50 | H92: 1330.90 | I92: 1342.55 | J92: 1355.10 | K92: 1330 | L92: 1305.8 | M92: 0.11128
A93: 84 | B93: CASTROLIND | C93: 175 | D93: 176.90 | E93: 172.10 | F93: 169.20 | G93: 164.40 | H93: 179.80 | I93: 184.60 | J93: 187.50 | K93: 181.7 | L93: 174 | M93: 11.82769
A94: 85 | B94: CCL | C94: 311.6 | D94: 311.45 | E94: 308.20 | F94: 304.80 | G94: 301.55 | H94: 314.85 | I94: 318.10 | J94: 321.50 | K94: 314.7 | L94: 308.05 | M94: 0.26704
A95: 86 | B95: CDSL | C95: 271 | D95: 271.63 | E95: 269.37 | F95: 267.73 | G95: 265.47 | H95: 273.27 | I95: 275.53 | J95: 277.17 | K95: 273.9 | L95: 270 | M95: 1.44481
A96: 87 | B96: CEATLTD | C96: 1385.6 | D96: 1386.10 | E96: 1365.00 | F96: 1344.40 | G96: 1323.30 | H96: 1406.70 | I96: 1427.80 | J96: 1448.40 | K96: 1407.2 | L96: 1365.5 | M96: 6.18469
A97: 88 | B97: CENTRALBK | C97: 72.1 | D97: 71.43 | E97: 70.37 | F97: 68.63 | G97: 67.57 | H97: 73.17 | I97: 74.23 | J97: 75.97 | K97: 72.5 | L97: 69.7 | M97: 5.84063
A98: 89 | B98: CENTURYPLY | C98: 279.75 | D98: 277.90 | E98: 272.35 | F98: 264.95 | G98: 259.40 | H98: 285.30 | I98: 290.85 | J98: 298.25 | K98: 283.45 | L98: 270.5 | M98: 2.22156
A99: 90 | B99: CENTURYTEX | C99: 950.65 | D99: 949.25 | E99: 936.55 | F99: 922.45 | G99: 909.75 | H99: 963.35 | I99: 976.05 | J99: 990.15 | K99: 961.95 | L99: 935.15 | M99: 5.40875
A100: 91 | B100: CERA | C100: 2882.35 | D100: 2856.83 | E100: 2825.67 | F100: 2768.98 | G100: 2737.82 | H100: 2913.52 | I100: 2944.68 | J100: 3001.37 | K100: 2888 | L100: 2800.15 | M100: 0.09094
A101: 92 | B101: CGPOWER | C101: 77.4 | D101: 77.82 | E101: 76.13 | F101: 74.87 | G101: 73.18 | H101: 79.08 | I101: 80.77 | J101: 82.03 | K101: 79.5 | L101: 76.55 | M101: 20.53582
A102: 93 | B102: CHAMBLFERT | C102: 174.95 | D102: 174.42 | E102: 172.53 | F102: 170.12 | G102: 168.23 | H102: 176.83 | I102: 178.72 | J102: 181.13 | K102: 176.3 | L102: 172 | M102: 7.48966
A103: 94 | B103: CHENNPETRO | C103: 282.25 | D103: 281.97 | E103: 278.33 | F103: 274.42 | G103: 270.78 | H103: 285.88 | I103: 289.52 | J103: 293.43 | K103: 285.6 | L103: 278.05 | M103: 6.52565
A104: 95 | B104: CHOLAFIN | C104: 1543.1 | D104: 1545.20 | E104: 1523.95 | F104: 1504.80 | G104: 1483.55 | H104: 1564.35 | I104: 1585.60 | J104: 1604.75 | K104: 1566.45 | L104: 1526.05 | M104: 2.23334
A105: 96 | B105: CIPLA | C105: 530.6 | D105: 533.63 | E105: 524.67 | F105: 518.73 | G105: 509.77 | H105: 539.57 | I105: 548.53 | J105: 554.47 | K105: 542.6 | L105: 527.7 | M105: 26.56979
A106: 97 | B106: COALINDIA | C106: 282.35 | D106: 281.95 | E106: 276.90 | F106: 271.45 | G106: 266.40 | H106: 287.40 | I106: 292.45 | J106: 297.90 | K106: 287 | L106: 276.5 | M106: 59.34011
A107: 98 | B107: COCHINSHIP | C107: 506.25 | D107: 508.03 | E107: 502.72 | F107: 499.18 | G107: 493.87 | H107: 511.57 | I107: 516.88 | J107: 520.42 | K107: 513.35 | L107: 504.5 | M107: 1.01081
A108: 99 | B108: COFFEEDAY | C108: 304.5 | D108: 305.25 | E108: 302.75 | F108: 301.00 | G108: 298.50 | H108: 307.00 | I108: 309.50 | J108: 311.25 | K108: 307.75 | L108: 303.5 | M108: 0.45008
A109: 100 | B109: COLPAL | C109: 1241.7 | D109: 1243.52 | E109: 1228.63 | F109: 1215.57 | G109: 1200.68 | H109: 1256.58 | I109: 1271.47 | J109: 1284.53 | K109: 1258.4 | L109: 1230.45 | M109: 2.89834
A110: 101 | B110: CONCOR | C110: 1373.4 | D110: 1372.45 | E110: 1356.95 | F110: 1340.50 | G110: 1325.00 | H110: 1388.90 | I110: 1404.40 | J110: 1420.85 | K110: 1387.95 | L110: 1356 | M110: 3.17498
A111: 102 | B111: COROMANDEL | C111: 462.4 | D111: 456.50 | E111: 445.05 | F111: 427.70 | G111: 416.25 | H111: 473.85 | I111: 485.30 | J111: 502.65 | K111: 467.95 | L111: 439.15 | M111: 0.94606
A112: 103 | B112: COX&KINGS | C112: 210.05 | D112: 207.27 | E112: 201.43 | F112: 192.82 | G112: 186.98 | H112: 215.88 | I112: 221.72 | J112: 230.33 | K112: 213.1 | L112: 198.65 | M112: 9.30643
A113: 104 | B113: CRISIL | C113: 1684.75 | D113: 1686.68 | E113: 1662.12 | F113: 1639.48 | G113: 1614.92 | H113: 1709.32 | I113: 1733.88 | J113: 1756.52 | K113: 1711.25 | L113: 1664.05 | M113: 0.05019
A114: 105 | B114: CROMPTON | C114: 226.4 | D114: 226.68 | E114: 224.72 | F114: 223.03 | G114: 221.07 | H114: 228.37 | I114: 230.33 | J114: 232.02 | K114: 228.65 | L114: 225 | M114: 9.27321
A115: 106 | B115: CUB | C115: 183.7 | D115: 183.37 | E115: 181.83 | F115: 179.97 | G115: 178.43 | H115: 185.23 | I115: 186.77 | J115: 188.63 | K115: 184.9 | L115: 181.5 | M115: 8.05237
A116: 107 | B116: CUMMINSIND | C116: 710.35 | D116: 713.18 | E116: 699.37 | F116: 688.38 | G116: 674.57 | H116: 724.17 | I116: 737.98 | J116: 748.97 | K116: 727 | L116: 702.2 | M116: 5.51135
A117: 108 | B117: CYIENT | C117: 764.95 | D117: 767.10 | E117: 759.20 | F117: 753.45 | G117: 745.55 | H117: 772.85 | I117: 780.75 | J117: 786.50 | K117: 775 | L117: 761.35 | M117: 1.07278
A118: 109 | B118: DABUR | C118: 385.55 | D118: 382.60 | E118: 378.20 | F118: 370.85 | G118: 366.45 | H118: 389.95 | I118: 394.35 | J118: 401.70 | K118: 387 | L118: 375.25 | M118: 14.83955
A119: 110 | B119: DBCORP | C119: 263.85 | D119: 264.50 | E119: 262.50 | F119: 261.15 | G119: 259.15 | H119: 265.85 | I119: 267.85 | J119: 269.20 | K119: 266.5 | L119: 263.15 | M119: 2.90627
A120: 111 | B120: DBL | C120: 1054.5 | D120: 1051.85 | E120: 1035.70 | F120: 1016.90 | G120: 1000.75 | H120: 1070.65 | I120: 1086.80 | J120: 1105.60 | K120: 1068 | L120: 1033.05 | M120: 2.87513
A121: 112 | B121: DBREALTY | C121: 50.45 | D121: 50.28 | E121: 48.97 | F121: 47.48 | G121: 46.17 | H121: 51.77 | I121: 53.08 | J121: 54.57 | K121: 51.6 | L121: 48.8 | M121: 4.84026
A122: 113 | B122: DCAL | C122: 319.2 | D122: 319.07 | E122: 313.13 | F122: 307.07 | G122: 301.13 | H122: 325.13 | I122: 331.07 | J122: 337.13 | K122: 325 | L122: 313 | M122: 0.80965
A123: 114 | B123: DCBBANK | C123: 186.5 | D123: 186.45 | E123: 184.10 | F123: 181.70 | G123: 179.35 | H123: 188.85 | I123: 191.20 | J123: 193.60 | K123: 188.8 | L123: 184.05 | M123: 11.22831
A124: 115 | B124: DCMSHRIRAM | C124: 282.25 | D124: 281.23 | E124: 271.22 | F124: 260.18 | G124: 250.17 | H124: 292.27 | I124: 302.28 | J124: 313.32 | K124: 291.25 | L124: 270.2 | M124: 6.23935
A125: 116 | B125: DEEPAKFERT | C125: 350.95 | D125: 348.95 | E125: 340.00 | F125: 329.05 | G125: 320.10 | H125: 359.90 | I125: 368.85 | J125: 379.80 | K125: 357.9 | L125: 338 | M125: 4.08794
A126: 117 | B126: DELTACORP | C126: 247.25 | D126: 247.33 | E126: 242.47 | F126: 237.68 | G126: 232.82 | H126: 252.12 | I126: 256.98 | J126: 261.77 | K126: 252.2 | L126: 242.55 | M126: 26.09866
A127: 118 | B127: DEN | C127: 97.9 | D127: 98.20 | E127: 96.80 | F127: 95.70 | G127: 94.30 | H127: 99.30 | I127: 100.70 | J127: 101.80 | K127: 99.6 | L127: 97.1 | M127: 0.69815
A128: 119 | B128: DENABANK | C128: 16.7 | D128: 16.77 | E128: 16.53 | F128: 16.37 | G128: 16.13 | H128: 16.93 | I128: 17.17 | J128: 17.33 | K128: 17 | L128: 16.6 | M128: 9.68534
A129: 120 | B129: DHFL | C129: 624.3 | D129: 625.93 | E129: 618.37 | F129: 612.43 | G129: 604.87 | H129: 631.87 | I129: 639.43 | J129: 645.37 | K129: 633.5 | L129: 620 | M129: 19.94161
A130: 121 | B130: DISHTV | C130: 73.5 | D130: 73.93 | E130: 72.62 | F130: 71.73 | G130: 70.42 | H130: 74.82 | I130: 76.13 | J130: 77.02 | K130: 75.25 | L130: 73.05 | M130: 38.71888
A131: 122 | B131: DIVISLAB | C131: 1066.75 | D131: 1071.70 | E131: 1051.40 | F131: 1036.05 | G131: 1015.75 | H131: 1087.05 | I131: 1107.35 | J131: 1122.70 | K131: 1092 | L131: 1056.35 | M131: 7.53542
A132: 123 | B132: DIXON | C132: 3408.85 | D132: 3416.23 | E132: 3377.62 | F132: 3346.38 | G132: 3307.77 | H132: 3447.47 | I132: 3486.08 | J132: 3517.32 | K132: 3454.85 | L132: 3385 | M132: 0.15071
A133: 124 | B133: DLF | C133: 205.2 | D133: 206.37 | E133: 202.43 | F133: 199.67 | G133: 195.73 | H133: 209.13 | I133: 213.07 | J133: 215.83 | K133: 210.3 | L133: 203.6 | M133: 62.82591
A134: 125 | B134: DMART | C134: 1544.05 | D134: 1529.33 | E134: 1504.72 | F134: 1465.38 | G134: 1440.77 | H134: 1568.67 | I134: 1593.28 | J134: 1632.62 | K134: 1553.95 | L134: 1490 | M134: 11.45537
A135: 126 | B135: DREDGECORP | C135: 571.65 | D135: 572.88 | E135: 565.77 | F135: 559.88 | G135: 552.77 | H135: 578.77 | I135: 585.88 | J135: 591.77 | K135: 580 | L135: 567 | M135: 1.24394
A136: 127 | B136: DRREDDY | C136: 1980.7 | D136: 1989.28 | E136: 1964.02 | F136: 1947.33 | G136: 1922.07 | H136: 2005.97 | I136: 2031.23 | J136: 2047.92 | K136: 2014.55 | L136: 1972.6 | M136: 4.9067
A137: 128 | B137: ECLERX | C137: 1279.6 | D137: 1280.52 | E137: 1274.08 | F137: 1268.57 | G137: 1262.13 | H137: 1286.03 | I137: 1292.47 | J137: 1297.98 | K137: 1286.95 | L137: 1275 | M137: 0.09779
A138: 129 | B138: EDELWEISS | C138: 339.2 | D138: 337.33 | E138: 332.67 | F138: 326.13 | G138: 321.47 | H138: 343.87 | I138: 348.53 | J138: 355.07 | K138: 342 | L138: 330.8 | M138: 33.54858
A139: 130 | B139: EICHERMOT | C139: 30510.7 | D139: 30533.62 | E139: 30317.23 | F139: 30123.77 | G139: 29907.38 | H139: 30727.08 | I139: 30943.47 | J139: 31136.93 | K139: 30750 | L139: 30340.15 | M139: 0.20231
A140: 131 | B140: EIDPARRY | C140: 248.05 | D140: 247.42 | E140: 241.83 | F140: 235.62 | G140: 230.03 | H140: 253.63 | I140: 259.22 | J140: 265.43 | K140: 253 | L140: 241.2 | M140: 1.0667
A141: 132 | B141: EIHOTEL | C141: 177.65 | D141: 175.57 | E141: 172.33 | F141: 167.02 | G141: 163.78 | H141: 180.88 | I141: 184.12 | J141: 189.43 | K141: 178.8 | L141: 170.25 | M141: 2.2832
A142: 133 | B142: EMAMILTD | C142: 1040.45 | D142: 1042.82 | E142: 1033.63 | F142: 1026.82 | G142: 1017.63 | H142: 1049.63 | I142: 1058.82 | J142: 1065.63 | K142: 1052 | L142: 1036 | M142: 0.82131
A143: 134 | B143: ENDURANCE | C143: 1304.95 | D143: 1290.47 | E143: 1256.03 | F143: 1207.12 | G143: 1172.68 | H143: 1339.38 | I143: 1373.82 | J143: 1422.73 | K143: 1324.9 | L143: 1241.55 | M143: 0.76508
A144: 135 | B144: ENGINERSIN | C144: 136.1 | D144: 137.12 | E144: 134.03 | F144: 131.97 | G144: 128.88 | H144: 139.18 | I144: 142.27 | J144: 144.33 | K144: 140.2 | L144: 135.05 | M144: 17.30965
A145: 136 | B145: EQUITAS | C145: 161.3 | D145: 162.07 | E145: 159.23 | F145: 157.17 | G145: 154.33 | H145: 164.13 | I145: 166.97 | J145: 169.03 | K145: 164.9 | L145: 160 | M145: 9.87879
A146: 137 | B146: ERIS | C146: 771.35 | D146: 774.22 | E146: 763.48 | F146: 755.62 | G146: 744.88 | H146: 782.08 | I146: 792.82 | J146: 800.68 | K146: 784.95 | L146: 766.35 | M146: 0.07661
A147: 138 | B147: EROSMEDIA | C147: 143.55 | D147: 143.87 | E147: 142.13 | F147: 140.72 | G147: 138.98 | H147: 145.28 | I147: 147.02 | J147: 148.43 | K147: 145.6 | L147: 142.45 | M147: 7.11445
A148: 139 | B148: ESCORTS | C148: 931.15 | D148: 931.33 | E148: 917.87 | F148: 904.58 | G148: 891.12 | H148: 944.62 | I148: 958.08 | J148: 971.37 | K148: 944.8 | L148: 918.05 | M148: 15.96733
A149: 140 | B149: EVEREADY | C149: 257.65 | D149: 256.97 | E149: 254.23 | F149: 250.82 | G149: 248.08 | H149: 260.38 | I149: 263.12 | J149: 266.53 | K149: 259.7 | L149: 253.55 | M149: 0.82898
A150: 141 | B150: EXIDEIND | C150: 257.85 | D150: 259.28 | E150: 255.07 | F150: 252.28 | G150: 248.07 | H150: 262.07 | I150: 266.28 | J150: 269.07 | K150: 263.5 | L150: 256.5 | M150: 12.31821
A151: 142 | B151: FCONSUMER | C151: 56.15 | D151: 55.92 | E151: 55.28 | F151: 54.42 | G151: 53.78 | H151: 56.78 | I151: 57.42 | J151: 58.28 | K151: 56.55 | L151: 55.05 | M151: 21.04507
A152: 143 | B152: FEDERALBNK | C152: 86.8 | D152: 86.73 | E152: 86.07 | F152: 85.33 | G152: 84.67 | H152: 87.47 | I152: 88.13 | J152: 88.87 | K152: 87.4 | L152: 86 | M152: 73.02674
A153: 144 | B153: FINCABLES | C153: 679.8 | D153: 675.50 | E153: 667.40 | F153: 655.00 | G153: 646.90 | H153: 687.90 | I153: 696.00 | J153: 708.40 | K153: 683.6 | L153: 663.1 | M153: 0.68755
A154: 145 | B154: FINPIPE | C154: 615.5 | D154: 618.50 | E154: 612.00 | F154: 608.50 | G154: 602.00 | H154: 622.00 | I154: 628.50 | J154: 632.00 | K154: 625 | L154: 615 | M154: 0.77503
A155: 146 | B155: FLFL | C155: 437.7 | D155: 436.42 | E155: 427.83 | F155: 417.97 | G155: 409.38 | H155: 446.28 | I155: 454.87 | J155: 464.73 | K155: 445 | L155: 426.55 | M155: 1.31282
A156: 147 | B156: FSL | C156: 73.25 | D156: 73.27 | E156: 72.08 | F156: 70.92 | G156: 69.73 | H156: 74.43 | I156: 75.62 | J156: 76.78 | K156: 74.45 | L156: 72.1 | M156: 66.21193
A157: 148 | B157: GAIL | C157: 342.95 | D157: 340.37 | E157: 334.78 | F157: 326.62 | G157: 321.03 | H157: 348.53 | I157: 354.12 | J157: 362.28 | K157: 345.95 | L157: 332.2 | M157: 45.47368
A158: 149 | B158: GATI | C158: 98.1 | D158: 99.03 | E158: 96.17 | F158: 94.23 | G158: 91.37 | H158: 100.97 | I158: 103.83 | J158: 105.77 | K158: 101.9 | L158: 97.1 | M158: 11.29679
A159: 150 | B159: GDL | C159: 199.8 | D159: 199.45 | E159: 194.00 | F159: 188.20 | G159: 182.75 | H159: 205.25 | I159: 210.70 | J159: 216.50 | K159: 204.9 | L159: 193.65 | M159: 6.31424
A160: 151 | B160: GEPIL | C160: 861.3 | D160: 862.90 | E160: 850.80 | F160: 840.30 | G160: 828.20 | H160: 873.40 | I160: 885.50 | J160: 896.00 | K160: 875 | L160: 852.4 | M160: 0.0348
A161: 152 | B161: GESHIP | C161: 336.9 | D161: 336.82 | E161: 332.08 | F161: 327.27 | G161: 322.53 | H161: 341.63 | I161: 346.37 | J161: 351.18 | K161: 341.55 | L161: 332 | M161: 0.16937
A162: 153 | B162: GET&D | C162: 314.8 | D162: 316.68 | E162: 308.37 | F162: 301.93 | G162: 293.62 | H162: 323.12 | I162: 331.43 | J162: 337.87 | K162: 325 | L162: 310.25 | M162: 0.33011
A163: 154 | B163: GHCL | C163: 283.3 | D163: 283.75 | E163: 280.00 | F163: 276.70 | G163: 272.95 | H163: 287.05 | I163: 290.80 | J163: 294.10 | K163: 287.5 | L163: 280.45 | M163: 1.18727
A164: 155 | B164: GICRE | C164: 750 | D164: 744.90 | E164: 732.15 | F164: 714.30 | G164: 701.55 | H164: 762.75 | I164: 775.50 | J164: 793.35 | K164: 757.65 | L164: 727.05 | M164: 2.47667
A165: 156 | B165: GILLETTE | C165: 6550.3 | D165: 6549.15 | E165: 6513.75 | F165: 6477.20 | G165: 6441.80 | H165: 6585.70 | I165: 6621.10 | J165: 6657.65 | K165: 6584.55 | L165: 6512.6 | M165: 0.0291
A166: 157 | B166: GLAXO | C166: 2416.4 | D166: 2408.45 | E166: 2387.95 | F166: 2359.50 | G166: 2339.00 | H166: 2436.90 | I166: 2457.40 | J166: 2485.85 | K166: 2428.95 | L166: 2380 | M166: 0.09028
A167: 158 | B167: GLENMARK | C167: 531.95 | D167: 532.00 | E167: 524.05 | F167: 516.15 | G167: 508.20 | H167: 539.90 | I167: 547.85 | J167: 555.75 | K167: 539.95 | L167: 524.1 | M167: 8.52809
A168: 159 | B168: GMDCLTD | C168: 118.65 | D168: 120.00 | E168: 117.15 | F168: 115.65 | G168: 112.80 | H168: 121.50 | I168: 124.35 | J168: 125.85 | K168: 122.85 | L168: 118.5 | M168: 1.5703
A169: 160 | B169: GMRINFRA | C169: 18.2 | D169: 18.23 | E169: 17.87 | F169: 17.53 | G169: 17.17 | H169: 18.57 | I169: 18.93 | J169: 19.27 | K169: 18.6 | L169: 17.9 | M169: 201.05048
A170: 161 | B170: GNFC | C170: 469.55 | D170: 476.48 | E170: 458.07 | F170: 446.58 | G170: 428.17 | H170: 487.97 | I170: 506.38 | J170: 517.87 | K170: 494.9 | L170: 465 | M170: 18.41714
A171: 162 | B171: GODFRYPHLP | C171: 758.15 | D171: 772.82 | E171: 721.93 | F171: 685.72 | G171: 634.83 | H171: 809.03 | I171: 859.92 | J171: 896.13 | K171: 823.7 | L171: 736.6 | M171: 9.48877
A172: 163 | B172: GODREJAGRO | C172: 644 | D172: 645.62 | E172: 638.43 | F172: 632.87 | G172: 625.68 | H172: 651.18 | I172: 658.37 | J172: 663.93 | K172: 652.8 | L172: 640.05 | M172: 0.67253
A173: 164 | B173: GODREJCP | C173: 1133.95 | D173: 1131.98 | E173: 1119.27 | F173: 1104.58 | G173: 1091.87 | H173: 1146.67 | I173: 1159.38 | J173: 1174.07 | K173: 1144.7 | L173: 1117.3 | M173: 3.62933
A174: 165 | B174: GODREJIND | C174: 565.85 | D174: 569.38 | E174: 557.87 | F174: 549.88 | G174: 538.37 | H174: 577.37 | I174: 588.88 | J174: 596.87 | K174: 580.9 | L174: 561.4 | M174: 2.97852
A175: 166 | B175: GODREJPROP | C175: 738.55 | D175: 739.15 | E175: 732.60 | F175: 726.65 | G175: 720.10 | H175: 745.10 | I175: 751.65 | J175: 757.60 | K175: 745.7 | L175: 733.2 | M175: 1.06867
A176: 167 | B176: GPPL | C176: 119.85 | D176: 122.37 | E176: 116.73 | F176: 113.62 | G176: 107.98 | H176: 125.48 | I176: 131.12 | J176: 134.23 | K176: 128 | L176: 119.25 | M176: 2.13406
A177: 168 | B177: GRANULES | C177: 82 | D177: 81.53 | E177: 79.62 | F177: 77.23 | G177: 75.32 | H177: 83.92 | I177: 85.83 | J177: 88.22 | K177: 83.45 | L177: 79.15 | M177: 78.26402
A178: 169 | B178: GRAPHITE | C178: 865.35 | D178: 860.25 | E178: 839.60 | F178: 813.85 | G178: 793.20 | H178: 886.00 | I178: 906.65 | J178: 932.40 | K178: 880.9 | L178: 834.5 | M178: 47.7144
A179: 170 | B179: GRASIM | C179: 1057.8 | D179: 1061.40 | E179: 1046.80 | F179: 1035.80 | G179: 1021.20 | H179: 1072.40 | I179: 1087.00 | J179: 1098.00 | K179: 1076 | L179: 1050.4 | M179: 6.72245
A180: 171 | B180: GREAVESCOT | C180: 128.45 | D180: 128.23 | E180: 126.72 | F180: 124.98 | G180: 123.47 | H180: 129.97 | I180: 131.48 | J180: 133.22 | K180: 129.75 | L180: 126.5 | M180: 5.07665
A181: 172 | B181: GREENPLY | C181: 267.75 | D181: 271.22 | E181: 261.73 | F181: 255.72 | G181: 246.23 | H181: 277.23 | I181: 286.72 | J181: 292.73 | K181: 280.7 | L181: 265.2 | M181: 0.69342
A182: 173 | B182: GRUH | C182: 681.3 | D182: 685.40 | E182: 674.00 | F182: 666.70 | G182: 655.30 | H182: 692.70 | I182: 704.10 | J182: 711.40 | K182: 696.8 | L182: 678.1 | M182: 2.55626
A183: 174 | B183: GSFC | C183: 116.85 | D183: 117.87 | E183: 114.98 | F183: 113.12 | G183: 110.23 | H183: 119.73 | I183: 122.62 | J183: 124.48 | K183: 120.75 | L183: 116 | M183: 16.98756
A184: 175 | B184: GSKCONS | C184: 6443.05 | D184: 6492.77 | E184: 6375.33 | F184: 6307.62 | G184: 6190.18 | H184: 6560.48 | I184: 6677.92 | J184: 6745.63 | K184: 6610.2 | L184: 6425.05 | M184: 0.28161
A185: 176 | B185: GSPL | C185: 174.35 | D185: 174.95 | E185: 172.40 | F185: 170.45 | G185: 167.90 | H185: 176.90 | I185: 179.45 | J185: 181.40 | K185: 177.5 | L185: 173 | M185: 3.91695
A186: 177 | B186: GUJALKALI | C186: 668.85 | D186: 667.97 | E186: 653.23 | F186: 637.62 | G186: 622.88 | H186: 683.58 | I186: 698.32 | J186: 713.93 | K186: 682.7 | L186: 652.35 | M186: 1.38233
A187: 178 | B187: GUJFLUORO | C187: 790.75 | D187: 796.25 | E187: 783.50 | F187: 776.25 | G187: 763.50 | H187: 803.50 | I187: 816.25 | J187: 823.50 | K187: 809 | L187: 789 | M187: 0.41126
A188: 179 | B188: GUJGASLTD | C188: 862 | D188: 867.22 | E188: 854.88 | F188: 847.77 | G188: 835.43 | H188: 874.33 | I188: 886.67 | J188: 893.78 | K188: 879.55 | L188: 860.1 | M188: 0.05019
A189: 180 | B189: GULFOILLUB | C189: 877.9 | D189: 887.63 | E189: 865.27 | F189: 852.63 | G189: 830.27 | H189: 900.27 | I189: 922.63 | J189: 935.27 | K189: 910 | L189: 875 | M189: 0.15383
A190: 181 | B190: GVKPIL | C190: 13.25 | D190: 13.52 | E190: 12.88 | F190: 12.52 | G190: 11.88 | H190: 13.88 | I190: 14.52 | J190: 14.88 | K190: 14.15 | L190: 13.15 | M190: 29.5295
A191: 182 | B191: HATHWAY | C191: 29.85 | D191: 30.30 | E191: 29.15 | F191: 28.45 | G191: 27.30 | H191: 31.00 | I191: 32.15 | J191: 32.85 | K191: 31.45 | L191: 29.6 | M191: 10.52865
A192: 183 | B192: HATSUN | C192: 718.75 | D192: 722.58 | E192: 713.17 | F192: 707.58 | G192: 698.17 | H192: 728.17 | I192: 737.58 | J192: 743.17 | K192: 732 | L192: 717 | M192: 0.08524
A193: 184 | B193: HAVELLS | C193: 548.7 | D193: 555.12 | E193: 540.78 | F193: 532.87 | G193: 518.53 | H193: 563.03 | I193: 577.37 | J193: 585.28 | K193: 569.45 | L193: 547.2 | M193: 20.2862
A194: 185 | B194: HCC | C194: 15.65 | D194: 15.85 | E194: 15.35 | F194: 15.05 | G194: 14.55 | H194: 16.15 | I194: 16.65 | J194: 16.95 | K194: 16.35 | L194: 15.55 | M194: 65.80313
A195: 186 | B195: HCL-INSYS | C195: 45.5 | D195: 45.63 | E195: 44.97 | F195: 44.43 | G195: 43.77 | H195: 46.17 | I195: 46.83 | J195: 47.37 | K195: 46.3 | L195: 45.1 | M195: 8.84364
A196: 187 | B196: HCLTECH | C196: 905.1 | D196: 903.20 | E196: 896.90 | F196: 888.70 | G196: 882.40 | H196: 911.40 | I196: 917.70 | J196: 925.90 | K196: 909.5 | L196: 895 | M196: 9.92916
A197: 188 | B197: HDFC | C197: 1809.75 | D197: 1814.27 | E197: 1799.78 | F197: 1789.82 | G197: 1775.33 | H197: 1824.23 | I197: 1838.72 | J197: 1848.68 | K197: 1828.75 | L197: 1804.3 | M197: 11.60204
A198: 189 | B198: HDFCBANK | C198: 2032.6 | D198: 2038.03 | E198: 2023.37 | F198: 2014.13 | G198: 1999.47 | H198: 2047.27 | I198: 2061.93 | J198: 2071.17 | K198: 2052.7 | L198: 2028.8 | M198: 8.37811
A199: 190 | B199: HDIL | C199: 28.05 | D199: 28.08 | E199: 27.52 | F199: 26.98 | G199: 26.42 | H199: 28.62 | I199: 29.18 | J199: 29.72 | K199: 28.65 | L199: 27.55 | M199: 50.57634
A200: 191 | B200: HEG | C200: 3531.05 | D200: 3508.47 | E200: 3437.93 | F200: 3344.82 | G200: 3274.28 | H200: 3601.58 | I200: 3672.12 | J200: 3765.23 | K200: 3579 | L200: 3415.35 | M200: 6.55798
A201: 192 | B201: HEIDELBERG | C201: 149 | D201: 150.10 | E201: 147.00 | F201: 145.00 | G201: 141.90 | H201: 152.10 | I201: 155.20 | J201: 157.20 | K201: 153.2 | L201: 148.1 | M201: 1.00347
A202: 193 | B202: HERITGFOOD | C202: 712 | D202: 710.63 | E202: 701.37 | F202: 690.73 | G202: 681.47 | H202: 721.27 | I202: 730.53 | J202: 741.17 | K202: 719.9 | L202: 700 | M202: 0.26233
A203: 194 | B203: HEROMOTOCO | C203: 3610.4 | D203: 3599.87 | E203: 3575.73 | F203: 3541.07 | G203: 3516.93 | H203: 3634.53 | I203: 3658.67 | J203: 3693.33 | K203: 3624 | L203: 3565.2 | M203: 3.09517
A204: 195 | B204: HEXAWARE | C204: 442.9 | D204: 445.93 | E204: 432.57 | F204: 422.23 | G204: 408.87 | H204: 456.27 | I204: 469.63 | J204: 479.97 | K204: 459.3 | L204: 435.6 | M204: 26.38474
A205: 196 | B205: HFCL | C205: 26.15 | D205: 26.18 | E205: 25.87 | F205: 25.58 | G205: 25.27 | H205: 26.47 | I205: 26.78 | J205: 27.07 | K205: 26.5 | L205: 25.9 | M205: 23.60166
A206: 197 | B206: HIMATSEIDE | C206: 354.05 | D206: 354.85 | E206: 348.70 | F206: 343.35 | G206: 337.20 | H206: 360.20 | I206: 366.35 | J206: 371.70 | K206: 361 | L206: 349.5 | M206: 0.28163
... 305 more rows

Sheet Bulk Deals
E6: Back To Main Page
A7: Subject : | B7: BULK DEAL | D7: =Main!B10 -> 2018-05-30
A9: Date | B9: Scrip code | C9: Scrip Name | D9: Client Name | E9: Buy / Sell | F9: Quantity Traded | G9: Trade Price / Wt.Avg.trade price | H9: Exchange
A10: 2018-05-29 | B10: 537766 | C10: BCP | D10: KAMAL BABULAL AGARWAL | E10: SELL | F10: 91,823 | G10: 179.71 | H10: BSE
A11: 2018-05-29 | B11: 537766 | C11: BCP | D11: KAMAL BABULAL AGARWAL | E11: BUY | F11: 81,823 | G11: 180.7 | H11: BSE
A12: 2018-05-29 | B12: 539131 | C12: CLLIMITED | D12: ADSERVE ADVISORY AND CONSULTANCY SERVICES PRIVATE LIMITED | E12: SELL | F12: 29,887 | G12: 21.78 | H12: BSE
A13: 2018-05-29 | B13: 539131 | C13: CLLIMITED | D13: ADSERVE ADVISORY AND CONSULTANCY SERVICES PRIVATE LIMITED | E13: BUY | F13: 4,026 | G13: 22.37 | H13: BSE
A14: 2018-05-29 | B14: 538568 | C14: FRUTION | D14: NARESH KUMAR GUPTA | E14: BUY | F14: 31,200 | G14: 10.14 | H14: BSE
A15: 2018-05-29 | B15: 538568 | C15: FRUTION | D15: YOGYA ENTERPRISES LIMITED | E15: SELL | F15: 31,110 | G15: 10.14 | H15: BSE
A16: 2018-05-29 | B16: 540266 | C16: GLCL | D16: NIMESH GANPATBHAI PARMAR | E16: BUY | F16: 75,000 | G16: 36 | H16: BSE
A17: 2018-05-29 | B17: 540266 | C17: GLCL | D17: HIMANSHU CHANDRAKANT BHANSALI | E17: SELL | F17: 20,000 | G17: 36 | H17: BSE
A18: 2018-05-29 | B18: 540266 | C18: GLCL | D18: RAKESH TILAK RAJ SANGHAVI | E18: SELL | F18: 50,000 | G18: 36 | H18: BSE
A19: 2018-05-29 | B19: 540266 | C19: GLCL | D19: KAMLESH MOTTYBHAI PATEL | E19: BUY | F19: 20,000 | G19: 36 | H19: BSE
A20: 2018-05-29 | B20: 540152 | C20: IGRL | D20: GLOBE FINCAP LIMITED | E20: SELL | F20: 80,000 | G20: 10.2 | H20: BSE
A21: 2018-05-29 | B21: 540152 | C21: IGRL | D21: GUINESS SECURITIES LIMITED | E21: BUY | F21: 88,000 | G21: 10.16 | H21: BSE
A22: 2018-05-29 | B22: 536709 | C22: INDRENEW | D22: JAYESH D SHAH | E22: SELL | F22: 47,500 | G22: 22.15 | H22: BSE
A23: 2018-05-29 | B23: 536709 | C23: INDRENEW | D23: SURESH LEKHRAJ PURSWANEY | E23: BUY | F23: 23,512 | G23: 22.15 | H23: BSE
A24: 2018-05-29 | B24: 536709 | C24: INDRENEW | D24: VASHDEV HUKUMAL LILARAMANI | E24: BUY | F24: 24,000 | G24: 22.15 | H24: BSE
A25: 2018-05-29 | B25: 539521 | C25: NAVIGANT | D25: NAYSAA SEURITIES LIMITED | E25: SELL | F25: 20,000 | G25: 14.4 | H25: BSE
A26: 2018-05-29 | B26: 539521 | C26: NAVIGANT | D26: NAYSAA SEURITIES LIMITED | E26: BUY | F26: 20,000 | G26: 14 | H26: BSE
A27: 2018-05-29 | B27: 539521 | C27: NAVIGANT | D27: VEERAN DEEPA | E27: SELL | F27: 30,000 | G27: 14.12 | H27: BSE
A28: 2018-05-29 | B28: 539521 | C28: NAVIGANT | D28: MANMADHAN NAIR GOPALAN NAIR | E28: BUY | F28: 60,000 | G28: 14.33 | H28: BSE
A29: 2018-05-29 | B29: 507966 | C29: RASRESOR | D29: VISHAMBER TEKCHAND SHEWAKRAMANI | E29: BUY | F29: 160,000 | G29: 26.85 | H29: BSE
A30: 2018-05-29 | B30: 507966 | C30: RASRESOR | D30: TEKCHAND R SHEWAKRAMANI HUF | E30: SELL | F30: 160,000 | G30: 26.85 | H30: BSE
A31: 2018-05-29 | B31: 531925 | C31: SHAQUAK | D31: ANUMITA INFRASTRUCTURE PRIVATE LIMITED | E31: BUY | F31: 305,083 | G31: 3.17 | H31: BSE
A32: 2018-05-29 | B32: 531925 | C32: SHAQUAK | D32: MAGAN MERCANTILE PVT LTD | E32: SELL | F32: 238,006 | G32: 3.17 | H32: BSE
A33: 2018-05-29 | B33: 505515 | C33: SHYMINV | D33: P R TRADERS | E33: SELL | F33: 91,000 | G33: 12.15 | H33: BSE
A34: 2018-05-29 | B34: 519566 | C34: SIMRAN | D34: SONIA GULATI | E34: SELL | F34: 20,577 | G34: 89.13 | H34: BSE
A35: 2018-05-29 | B35: 540252 | C35: VOL | D35: VIVIDOFFSET PRINTERS PRIVATELIMITED | E35: BUY | F35: 76,500 | G35: 44.43 | H35: BSE
A36: 2018-05-29 | B36: 540252 | C36: VOL | D36: SAGAR RAJESHBHAI JHAVERI | E36: SELL | F36: 60,000 | G36: 44 | H36: BSE
A37: 2018-05-29 | B37: 502986 | C37: VTL | D37: HDFC MUTUAL FUND | E37: BUY | F37: 573,000 | G37: 1245 | H37: BSE
A38: 2018-05-29 | B38: GSS | C38: GSS Infotech Limited | D38: LIMITED HANS METALS | E38: BUY | F38: 152,132 | G38: 105.46 | H38: NSE
A39: 2018-05-29 | B39: JUSTDIAL | C39: Justdial Ltd. | D39: A.P.T. PORTFOLIO PRIVATE LIMITED | E39: BUY | F39: 906,594 | G39: 605.18 | H39: NSE
A40: 2018-05-29 | B40: JUSTDIAL | C40: Justdial Ltd. | D40: ALPHAGREP COMMODITIES PRIVATE LIMITED | E40: BUY | F40: 360,061 | G40: 604.22 | H40: NSE
A41: 2018-05-29 | B41: JUSTDIAL | C41: Justdial Ltd. | D41: CROSSLAND TRADING CO | E41: BUY | F41: 1,883,013 | G41: 603.92 | H41: NSE
A42: 2018-05-29 | B42: JUSTDIAL | C42: Justdial Ltd. | D42: GKN SECURITIES | E42: BUY | F42: 489,103 | G42: 603.88 | H42: NSE
A43: 2018-05-29 | B43: JUSTDIAL | C43: Justdial Ltd. | D43: MAHAVEER EQUIBIZ | E43: BUY | F43: 339,826 | G43: 607.75 | H43: NSE
A44: 2018-05-29 | B44: JUSTDIAL | C44: Justdial Ltd. | D44: N.K. SECURITIES | E44: BUY | F44: 443,730 | G44: 607.18 | H44: NSE
A45: 2018-05-29 | B45: JUSTDIAL | C45: Justdial Ltd. | D45: PURITY TRADEMAX LLP | E45: BUY | F45: 597,908 | G45: 608.52 | H45: NSE
A46: 2018-05-29 | B46: JUSTDIAL | C46: Justdial Ltd. | D46: SHAASTRA SECURITIES TRADING PRIVATE LIMITED | E46: BUY | F46: 897,784 | G46: 602.56 | H46: NSE
A47: 2018-05-29 | B47: JUSTDIAL | C47: Justdial Ltd. | D47: SHARE INDIA SECURITIES LIMITED | E47: BUY | F47: 375,902 | G47: 608.98 | H47: NSE
A48: 2018-05-29 | B48: JUSTDIAL | C48: Justdial Ltd. | D48: VAIBHAV STOCK & DERIVATIVES BROKING PVT. LTD | E48: BUY | F48: 378,786 | G48: 606.9 | H48: NSE
A49: 2018-05-29 | B49: JUSTDIAL | C49: Justdial Ltd. | D49: WAY2WEALTH SECURITIES P LTD | E49: BUY | F49: 709,370 | G49: 608.06 | H49: NSE
A50: 2018-05-29 | B50: KSK | C50: KSK Energy Ventures Limit | D50: J M GLOBAL EQUITIES PRIVATE LIMITED | E50: BUY | F50: 2,254,730 | G50: 3.63 | H50: NSE
A51: 2018-05-29 | B51: RCOM | C51: Reliance Comm. Ltd. | D51: ADROIT FINANCIAL SERVICES PRIVATE LIMITED | E51: BUY | F51: 16,496,895 | G51: 16.04 | H51: NSE
A52: 2018-05-29 | B52: RCOM | C52: Reliance Comm. Ltd. | D52: SHAASTRA SECURITIES TRADING PRIVATE LIMITED | E52: BUY | F52: 17,546,955 | G52: 16.05 | H52: NSE
A53: 2018-05-29 | B53: TATAMTRDVR | C53: Tata Motors DVR 'A' Ord | D53: ICICI PRUDENTIAL MUTUAL FUND | E53: BUY | F53: 2,750,000 | G53: 170.97 | H53: NSE
A54: 2018-05-29 | B54: GSS | C54: GSS Infotech Limited | D54: LIMITED HANS METALS | E54: SELL | F54: 152,132 | G54: 103.7 | H54: NSE
A55: 2018-05-29 | B55: JUSTDIAL | C55: Justdial Ltd. | D55: A.P.T. PORTFOLIO PRIVATE LIMITED | E55: SELL | F55: 906,594 | G55: 605.45 | H55: NSE
A56: 2018-05-29 | B56: JUSTDIAL | C56: Justdial Ltd. | D56: ALPHAGREP COMMODITIES PRIVATE LIMITED | E56: SELL | F56: 358,581 | G56: 604.85 | H56: NSE
A57: 2018-05-29 | B57: JUSTDIAL | C57: Justdial Ltd. | D57: CROSSLAND TRADING CO | E57: SELL | F57: 1,883,013 | G57: 604.58 | H57: NSE
A58: 2018-05-29 | B58: JUSTDIAL | C58: Justdial Ltd. | D58: GKN SECURITIES | E58: SELL | F58: 489,103 | G58: 603.83 | H58: NSE
A59: 2018-05-29 | B59: JUSTDIAL | C59: Justdial Ltd. | D59: MAHAVEER EQUIBIZ | E59: SELL | F59: 339,826 | G59: 608.23 | H59: NSE
A60: 2018-05-29 | B60: JUSTDIAL | C60: Justdial Ltd. | D60: N.K. SECURITIES | E60: SELL | F60: 443,730 | G60: 607.42 | H60: NSE
A61: 2018-05-29 | B61: JUSTDIAL | C61: Justdial Ltd. | D61: PURITY TRADEMAX LLP | E61: SELL | F61: 597,908 | G61: 608.58 | H61: NSE
A62: 2018-05-29 | B62: JUSTDIAL | C62: Justdial Ltd. | D62: SHAASTRA SECURITIES TRADING PRIVATE LIMITED | E62: SELL | F62: 897,784 | G62: 603.18 | H62: NSE
A63: 2018-05-29 | B63: JUSTDIAL | C63: Justdial Ltd. | D63: SHARE INDIA SECURITIES LIMITED | E63: SELL | F63: 375,902 | G63: 612.02 | H63: NSE
A64: 2018-05-29 | B64: JUSTDIAL | C64: Justdial Ltd. | D64: VAIBHAV STOCK & DERIVATIVES BROKING PVT. LTD | E64: SELL | F64: 378,786 | G64: 607.13 | H64: NSE
A65: 2018-05-29 | B65: JUSTDIAL | C65: Justdial Ltd. | D65: WAY2WEALTH SECURITIES P LTD | E65: SELL | F65: 709,370 | G65: 608.37 | H65: NSE
A66: 2018-05-29 | B66: KSK | C66: KSK Energy Ventures Limit | D66: J M GLOBAL EQUITIES PRIVATE LIMITED | E66: SELL | F66: 582,404 | G66: 3.62 | H66: NSE
A67: 2018-05-29 | B67: RCOM | C67: Reliance Comm. Ltd. | D67: ADROIT FINANCIAL SERVICES PRIVATE LIMITED | E67: SELL | F67: 16,448,751 | G67: 16.05 | H67: NSE
A68: 2018-05-29 | B68: RCOM | C68: Reliance Comm. Ltd. | D68: SHAASTRA SECURITIES TRADING PRIVATE LIMITED | E68: SELL | F68: 17,546,955 | G68: 16.07 | H68: NSE
A69: 2018-05-29 | B69: VISESHINFO | C69: Visesh Infotecnics Limite | D69: GLOBE FINCAP LTD | E69: SELL | F69: 26,000,000 | G69: 0.1 | H69: NSE

Sheet Call Tracker (Equity & F&O)
M5: Back To Main Page
A6: Retail Research Technical Calls & Fundamental Performance Report for the month of May -2018
M7: =Main!B10 -> 2018-05-30
B8: Positional Call
A9: Sr.no | B9: Date | D9: Company | E9: Rec | F9: Rec Price | G9: Stop Loss*** | H9: Call Closed At | I9: Target | J9: Remark | K9: Profit / Loss per Share | L9: Gain / Loss % | M9: Status | N9: Closed Date | O9: NSE Closed Price
A10: 1 | B10: 2018-02-12 | D10: ITC | E10: Buy | F10: 271.5 | G10: 250 | H10: 285 | I10: 310 | J10: Profit of Rs.13.5/- | K10: =H10-F10 -> 13.5 | L10: =K10/F10 -> 4.97% | M10: Successful | N10: 2018-05-02 | R10: P
A11: 1 | B11: 2018-04-05 | D11: RECLTD | E11: Buy | F11: 129 | G11: 122 | H11: 121 | I11: 140 | J11: Loss of Rs.8/- | K11: =H11-F11 -> -8 | L11: =K11/F11 -> -6.20% | M11: Unsuccessful | N11: 2018-05-10 | R11: R
A12: 2 | B12: 2018-04-11 | D12: FEDERALBNK | E12: Buy | F12: 98.75 | G12: 94 | H12: 103.45 | I12: 106-109 | J12: Profit of Rs.4.7/- | K12: =H12-F12 -> 4.7 | L12: =K12/F12 -> 4.76% | M12: Successful | N12: 2019-05-09 | R12: R
A13: 4 | B13: 2018-04-18 | D13: BHEL | E13: Buy$ | F13: =(81+88.5)/2 -> 84.75 | G13: 79 | H13: 78.75 | I13: 100 | J13: Loss of Rs.6/- | K13: =H13-F13 -> -6 | L13: =K13/F13 -> -7.08% | M13: Unsuccessful | N13: 2018-05-14 | R13: A
A14: 5 | B14: 2018-04-20 | D14: HINDZINC | E14: Sell | F14: 325.5 | G14: 340 | H14: 314.5 | I14: 310-305 | J14: Profit of Rs.11/- | K14: =F14-H14 -> 11 | L14: =K14/F14 -> 3.38% | M14: Successful | N14: 2018-05-02 | R14: H
A15: 6 | B15: 2018-04-26 | D15: HCLTECH | E15: Buy | F15: 1060 | G15: 1018 | H15: 1015 | I15: 1130-1150 | J15: Loss of Rs.45/- | K15: =H15-F15 -> -45 | L15: -4.25% | M15: Unsuccessful | N15: 2018-05-02 | R15: H
A16: 7 | B16: 2018-04-27 | D16: PFC | E16: Buy | F16: 85.8 | G16: 82.5 | H16: 89.45 | I16: 91-93 | J16: Profit of Rs.3.65/- | K16: =H16-F16 -> 3.65 | L16: 4.25% | M16: Successful | N16: 2018-05-02 | R16: H
A17: 8 | B17: 2018-04-30 | D17: HEXAWARE | E17: Sell | F17: 447 | G17: 464 | H17: 428.5 | I17: 410-400 | J17: Profit of Rs.18.5/- | K17: =F17-H17 -> 18.5 | L17: 4.14% | M17: Successful | N17: 2018-05-05 | R17: H
A18: 9 | B18: 2018-05-04 | D18: GLENMARK | E18: Buy | F18: 544 | G18: 520 | H18: 513 | I18: 580-585 | J18: Loss of Rs.31/- | K18: =H18-F18 -> -31 | L18: -5.70% | M18: Unsuccessful | N18: 2018-05-11 | R18: R
A19: 10 | B19: 2018-05-04 | D19: L&TFH | E19: Buy | F19: 177.5 | G19: 169 | H19: 183.25 | I19: 190-195 | J19: Profit of Rs.5.75/- | K19: =H19-F19 -> 5.75 | L19: 3.24% | M19: Successful | N19: 2018-05-08 | R19: H
A20: 11 | B20: 2018-05-04 | D20: HCLTECH | E20: Buy | F20: 920-930 | G20: 890 | I20: 980-990 | J20: Open | O20: =VLOOKUP(D20,Sheet2!$A$1:M2159,6,0) -> 905.1 | R20: H
A21: 12 | B21: 2018-05-07 | D21: ADANIPORTS | E21: Sell | F21: 415 | G21: 437 | H21: 397.5 | I21: 380-370 | J21: Profit of Rs.17.5/- | K21: =F21-H21 -> 17.5 | L21: =K21/F21 -> 4.22% | M21: Successful | N21: 2018-05-15 | R21: H
A22: 13 | B22: 2018-05-08 | D22: ADVENZYMES | E22: Buy | F22: 252 | G22: 239 | H22: 239 | I22: 270-272 | J22: Loss of Rs.13/- | K22: =H22-F22 -> -13 | L22: =K22/F22 -> -5.16% | M22: Unsuccessful | N22: 2018-05-10 | R22: R
A23: 14 | B23: 2018-05-09 | D23: INFRATEL | E23: Buy | F23: 326.5 | G23: 310 | H23: 306.5 | I23: 355-360 | J23: Loss of Rs.20/- | K23: =H23-F23 -> -20 | L23: =K23/F23 -> -6.13% | M23: Unsuccessful | N23: 2018-05-29 | R23: R
A24: 15 | B24: 2018-05-11 | D24: CHENNPETRO | E24: Buy | F24: 299.5 | G24: 286 | H24: 283.5 | I24: 325-330 | J24: Loss of Rs.16/- | K24: =H24-F24 -> -16 | L24: =K24/F24 -> -5.34% | M24: Unsuccessful | N24: 2018-05-21 | R24: H
A25: 16 | B25: 2018-05-18 | D25: VOLTAS | E25: Buy$ | F25: 570.25 | G25: 534 | H25: 534 | I25: 650 | J25: Loss of Rs.36.25/- | K25: =H25-F25 -> -36.25 | L25: =K25/F25 -> -6.36% | M25: Unsuccessful | N25: 2018-05-24 | R25: H
A26: 17 | B26: 2018-05-15 | D26: AVANTIFEED | E26: Buy | F26: 2172.5 | G26: 2090 | H26: 2020 | I26: 2320-2340 | J26: Loss of Rs.152.5/- | K26: =H26-F26 -> -152.5 | L26: =K26/F26 -> -7.02% | M26: Unsuccessful | N26: 2018-05-16 | R26: R
A27: 18 | B27: 2018-05-16 | D27: PIDILITIND | E27: Sell | F27: 1091 | G27: 1140 | H27: 1055 | I27: 1040-1020 | J27: Profit of Rs.36/- | K27: =F27-H27 -> 36 | L27: =K27/F27 -> 3.30% | M27: Successful | N27: 2018-05-25 | R27: H
A28: 19 | B28: 2018-05-17 | D28: ALLCARGO | E28: Buy | F28: 131 | G28: 124 | H28: 123 | I28: 142-145 | J28: Loss of Rs.8/- | K28: =H28-F28 -> -8 | L28: =K28/F28 -> -6.11% | M28: Unsuccessful | N28: 2018-05-22 | R28: H
A29: 20 | B29: 2018-05-21 | D29: UPL | E29: Buy | F29: 689.5 | G29: 662 | H29: 722 | I29: 735-745 | J29: Profit of Rs.32.5/- | K29: =H29-F29 -> 32.5 | L29: =K29/F29 -> 4.71% | M29: Successful | N29: 2018-05-28 | R29: H
A30: 21 | B30: 2018-05-25 | D30: MARUTI | E30: Buy | F30: 8440 | G30: 8190 | H30: 8640 | I30: 8850-8900 | J30: Part profit of Rs.200/- | K30: =H30-F30 -> 200 | L30: =K30/F30 -> 2.37% | M30: Successful | N30: 2018-05-28 | R30: R
A31: 22 | B31: 2018-05-28 | D31: SIEMENS | E31: Buy | F31: 1058 | G31: 1020 | H31: 1092.5 | I31: 1110-1120 | J31: Profit of Rs.34.5/- | K31: =H31-F31 -> 34.5 | L31: 3.26% | M31: Successful | N31: 2018-05-28 | R31: R
A32: 23 | B32: 2018-05-29 | D32: CHOLAFIN | E32: Buy | F32: 1527-1533 | G32: 1460 | I32: 1620-1640 | J32: Open | O32: =VLOOKUP(D32,Sheet2!$A$1:M2171,6,0) -> 1543.1 | R32: R
A36: CLBS = Closing Basis *** | F36: Reinitiated $
A37: Dividend adjusted <> | F37: Revised stoploss #
A39: Master Trade High Risk
A40: Sr.no | B40: Date | D40: Company | E40: Rec | F40: Rec Price | G40: Stop Loss | H40: Call Closed At | I40: Target | J40: Remark | K40: Profit / Loss per share | L40: Gain / Loss per Lot | M40: Lot | N40: Status | O40: Closed Date
A41: 1 | B41: 2018-05-10 | D41: AXISBANK MAY FUT | E41: Sell | F41: 548.25 | G41: 563 | H41: 563 | I41: 525 | J41: Loss of 8.75/- | K41: =F41-H41 -> -14.75 | L41: =M41*K41 -> -17700 | M41: 1200 | N41: Unsuccessful | O41: 2018-05-15 | R41: H
D42: AXISBANK MAY 530 PE | E42: Sell | F42: 9.5 | H42: 3.5 | K42: 6 | L42: =M41*K42 -> 7200
A43: 2 | B43: 2018-05-21 | D43: NIFTY MAY FUT | E43: Buy | F43: 10530 | G43: 10480 | H43: 10480 | I43: 10630-10650 | J43: Loss of Rs.50/- | K43: =+H43-F43 -> -50 | L43: =M43*K43 -> -3750 | M43: 75 | N43: Unsuccessful | O43: 2018-05-23 | R43: A
A49: Master Trade Medium Risk
A50: Sr.no | B50: Date | D50: Company | E50: Rec | F50: Rec Price | G50: Stop Loss | H50: Call Closed At | I50: Target | J50: Remark | K50: Profit/Loss per lot | L50: Gain / Loss per Lot | M50: Lot | N50: Status | O50: Closed Date
A51: 1 | B51: 2018-05-05 | D51: NIFTY MAY 10550 PE | E51: Buy | F51: 90.5 | G51: 58 | H51: 58.00 | I51: 130-150 | J51: Loss of Rs.32.5/- | K51: =H51-F51 -> -32.50 | L51: =K51*M51 -> -2437.50 | M51: 75 | N51: Unsuccessful | O51: 2018-05-11 | R51: H
A52: 2 | B52: 2018-05-09 | D52: JUBLFOOD MAT 2500 PE | E52: Buy | F52: 50 | G52: 30 | H52: 63.5 | I52: 80-90 | J52: Profit of Rs.13.5/- | K52: 13.50 | L52: 3375.00 | M52: 250 | N52: Successful | O52: 2018-05-09 | R52: H
A53: 3 | B53: 2018-05-10 | D53: BankNifty 10 May 26100 PE | E53: Buy | F53: 18 | H53: 0 | I53: 50 | J53: Loss of Rs.18/- | K53: -18.00 | L53: -720.00 | M53: 40 | N53: Unsuccessful | O53: 2018-05-10 | R53: A
A54: 4 | B54: 2018-05-15 | D54: DRREDDY MAY 1950 PE | E54: Buy | F54: 36.5 | G54: 16 | H54: 44 | I54: 65-70 | J54: Profit of Rs.7.5/- | K54: 7.50 | L54: 1875.00 | M54: 250 | N54: Successful | O54: 2018-05-17 | R54: H
A55: 5 | B55: 2018-05-16 | D55: AMBUJACEM MAY 220 CE | E55: Buy | F55: 2.55 | H55: 3.85 | I55: 5 | J55: Profit of Rs.1.30/- | K55: 1.30 | L55: 3250.00 | M55: 2500 | N55: Successful | O55: 2018-05-17 | R55: H
A56: 6 | B56: 2018-05-21 | D56: VEDL MAY 270 PE | E56: Buy | F56: 5.75 | G56: 2 | H56: 7.75 | I56: 10-12.0 | J56: Profit of Rs.2/- | K56: 2.00 | L56: 3500.00 | M56: 1750 | N56: Successful | O56: 2018-05-21 | R56: H
A57: 7 | B57: 2018-05-25 | D57: AMBUJACEM MAY 215 CE | E57: Buy | F57: 2.40-2.70 | I57: 5 | J57: Open | R57: H
B62: Smart Delivery Trade
A63: Sr.no | B63: Date | D63: Company | E63: Rec | F63: Rec Price | G63: Stop Loss*** | H63: Call Closed At | I63: Target | J63: Remark | K63: Profit / Loss per Share | L63: Gain / Loss % | M63: Status | N63: Closed Date | O63: NSE Closed Price
A64: 1 | B64: 2018-02-15 | D64: ACC | E64: Buy$ | F64: 1585 | G64: 1520 | H64: 1520 | I64: 1750 | J64: Loss of Rs.65/- | K64: =H64-F64 -> -65 | L64: =K64/F64 -> -4.10% | M64: Unsuccessful | N64: 2018-05-08 | R64: R
A65: 2 | B65: 2018-04-09 | D65: SUNPHARMA | E65: Buy | F65: 515.5 | G65: 500 | H65: 536 | I65: 540-545 | J65: Profit of Rs.20.5/- | K65: 20.5 | L65: 3.98% | M65: Successful | N65: 2018-05-03 | R65: R
A66: 3 | B66: 2018-04-23 | D66: TATACOMM | E66: Buy | F66: 631 | G66: 615 | H66: 608 | I66: 660-665 | J66: Loss of Rs.23/- | K66: -23 | L66: -3.65% | M66: Unsuccessful | N66: 2018-05-07 | R66: R
A67: 4 | B67: 2018-04-24 | D67: IOC | E67: Buy | F67: 162 | G67: 157 | H67: 166.75 | I67: 170-172 | J67: Profit of Rs.4.75/- | K67: 4.75 | L67: 2.93% | M67: Successful | N67: 2018-05-08 | R67: H
A68: 5 | B68: 2018-04-25 | D68: NTPC | E68: Buy | F68: 169.5 | G68: 164.8 | H68: 176 | I68: 177-180 | J68: Profit of Rs.6.5/- | K68: 6.5 | L68: 3.83% | M68: Successful | N68: 2018-05-03 | R68: H
A69: 6 | B69: 2018-04-30 | D69: AMBUJACEM | E69: Buy | F69: 251 | G69: 240 | H69: 238.5 | I69: 265-270 | J69: Loss of Rs.12.5/- | K69: -12.5 | L69: -4.98% | M69: Unsuccessful | N69: 2018-05-05 | R69: H
A70: 7 | B70: 2018-04-30 | D70: RAMCOCEM | E70: Buy | F70: 822.5 | G70: 805 | H70: 843 | I70: 850 | J70: Profit of Rs.20.5/- | K70: 20.5 | L70: 2.49% | M70: Successful | N70: 2018-05-08 | R70: R
A71: 8 | B71: 2018-05-02 | D71: DHFL | E71: Sell | F71: 637.5 | G71: 662 | H71: 663.5 | I71: 610-600 | J71: Loss of Rs.26/- | K71: =F71-H71 -> -26 | L71: -4.08% | M71: Unsuccessful | N71: 2018-05-02 | R71: H
A72: 9 | B72: 2018-05-02 | D72: DELTACORP | E72: Buy | F72: 272 | G72: 263 | H72: 263 | I72: 283-285 | J72: Loss of Rs.9/- | K72: =H72-F72 -> -9 | L72: -3.31% | M72: Unsuccessful | N72: 2018-05-02 | R72: R
A73: 10 | B73: 2018-05-03 | D73: PFC | E73: Buy | F73: 85.1 | G73: 82.5 | H73: 82 | I73: 89-90 | J73: Loss of Rs.3.1/- | K73: -3.1 | L73: =K73/F73 -> -3.64% | M73: Unsuccessful | N73: 2018-05-14 | R73: H
A74: 11 | B74: 2018-05-04 | D74: RADICO | E74: Buy | F74: 393 | G74: 382 | H74: 405.5 | I74: 412-416 | J74: Profit of Rs.12.5/- | K74: 12.5 | L74: =K74/F74 -> 3.18% | M74: Successful | N74: 2018-05-07 | R74: R
A75: 12 | B75: 2018-05-08 | D75: TATAMOTORS | E75: Buy | F75: 331.5 | G75: 318 | H75: 343.5 | I75: 350-355 | J75: Profit of Rs.12/- | K75: 12 | L75: 3.62% | M75: Successful | N75: 2018-05-10 | R75: H
A76: 13 | B76: 2018-05-09 | D76: SUNPHARMA | E76: Buy | F76: 512 | G76: 498 | H76: 493 | I76: 535-540 | J76: Loss of Rs.19/- | K76: -19 | L76: -3.71% | M76: Unsuccessful | N76: 2018-05-11 | R76: R
A77: 14 | B77: 2018-05-09 | D77: CIPLA | E77: Buy | F77: 589 | G77: 577 | H77: 572 | I77: 615-620 | J77: Loss of Rs.17/- | K77: -17 | L77: -2.89% | M77: Unsuccessful | N77: 2018-05-11 | R77: H
A78: 15 | B78: 2018-05-14 | D78: INDIGO | E78: Buy | F78: 1164 | G78: 1130 | H78: 1215 | I78: 1215-1225 | J78: Profit of Rs.51/- | K78: =H78-F78 -> 51 | L78: 4.38% | M78: Successful | N78: 2018-05-15 | R78: R
A79: 16 | B79: 2018-05-15 | D79: ACC | E79: Buy<> | F79: 1413 | G79: 1363 | H79: 1355 | I79: 1490-1510 | J79: Loss of Rs.58/- | K79: -58 | L79: -4.10% | M79: Unsuccessful | N79: 2018-05-21 | R79: H
A80: 17 | B80: 2018-05-15 | D80: RADICO | E80: Buy | F80: 403 | G80: 390 | H80: 417.5 | I80: 425-430 | J80: Profit of Rs.14.5/- | K80: =H80-F80 -> 14.5 | L80: 3.60% | M80: Successful | N80: 2018-05-17 | R80: R
A81: 18 | B81: 2018-05-15 | D81: GHCL | E81: Buy | F81: 283 | G81: 274 | H81: 292.75 | I81: 295-300 | J81: Profit of Rs.9.75/- | K81: =H81-F81 -> 9.75 | L81: 3.45% | M81: Successful | N81: 2018-05-15 | R81: R
A82: 19 | B82: 2018-05-16 | D82: GHCL | E82: Buy | F82: 282 | G82: 274 | H82: 290.5 | I82: 295-300 | J82: Profit of Rs.8.5/- | K82: =H82-F82 -> 8.5 | L82: 3.01% | M82: Successful | N82: 2018-05-16 | R82: R
A83: 20 | B83: 2018-05-17 | D83: DLF | E83: Buy | F83: 205 | G83: 197 | H83: 197 | I83: 215 | J83: Loss of Rs.8/- | K83: -8 | L83: -3.90% | M83: Unsuccessful | N83: 2018-05-18 | R83: H
A84: 21 | B84: 2018-05-17 | D84: TATAMOTORS | E84: Buy | F84: 315.5 | G84: 305 | H84: 305 | I84: 330-335 | J84: Loss of Rs.10.5/- | K84: -10.5 | L84: -3.33% | M84: Unsuccessful | N84: 2018-05-18 | R84: R
A85: 22 | B85: 2018-05-18 | D85: CENTURYTEX | E85: Buy | F85: 1072.5 | G85: 1040 | H85: 1005 | I85: 1130-1140 | J85: Loss of Rs.67.5/- | K85: -67.5 | L85: -6.29% | M85: Unsuccessful | N85: 2018-05-21 | R85: R
A86: 23 | B86: 2018-05-21 | D86: GLENMARK | E86: Buy | F86: 502 | G86: 486 | H86: 523.5 | I86: 525-530 | J86: Profit of Rs.21.50/- | K86: =H86-F86 -> 21.5 | L86: =K86/F86 -> 4.28% | M86: Successful | N86: 2018-05-23 | R86: R
A87: 24 | B87: 2018-05-21 | D87: CIPLA | E87: Buy | F87: 534 | G87: 518 | H87: 560 | I87: 560-570 | J87: Profit of Rs.26/- | K87: =H87-F87 -> 26 | L87: =K87/F87 -> 4.87% | M87: Successful | N87: 2018-05-23 | R87: H
A88: 25 | B88: 2018-05-22 | D88: M&M | E88: Buy | F88: 818.5 | G88: 795 | H88: 838.25 | I88: 860-870 | J88: Profit of Rs.19.75/- | K88: =H88-F88 -> 19.75 | L88: =K88/F88 -> 2.41% | M88: Successful | N88: 2018-05-24 | R88: H
A89: 26 | B89: 2018-05-23 | D89: LICHSGFIN | E89: Buy | F89: 481 | G89: 470 | H89: 490.5 | I89: 500-505 | J89: Profit of Rs.9.5/- | K89: 9.5 | L89: 1.98% | M89: Successful | N89: 2018-05-28 | R89: R
A90: 27 | B90: 2018-05-23 | D90: L&TFH | E90: Buy | F90: 166 | G90: 159 | H90: 171.75 | I90: 178-180 | J90: Profit of Rs.5.75/- | K90: =H90-F90 -> 5.75 | L90: =K90/F90 -> 3.46% | M90: Successful | N90: 2018-05-28 | R90: H
A91: 28 | B91: 2018-05-24 | D91: ITC | E91: Buy<> | F91: 269 | G91: 265 | H91: 276.75 | I91: 287-290 | J91: Profit of Rs.7.75/- | K91: 7.75 | L91: 2.88% | M91: Successful | N91: 2018-05-28 | R91: R
A92: 29 | B92: 2018-05-25 | D92: BOMDYEING | E92: Buy | F92: 260.5 | G92: 249 | H92: 268.7 | I92: 275-280 | J92: Profit of Rs.8.2/- | K92: =H92-F92 -> 8.2 | L92: =K92/F92 -> 3.15% | M92: Successful | N92: 2018-05-28 | R92: H
A93: 30 | B93: 2018-05-28 | D93: CADILAHC | E93: Buy | F93: 369 | G93: 357 | H93: 380.5 | I93: 390-395 | J93: Profit of Rs.11.5/- | K93: =H93-F93 -> 11.5 | L93: =K93/F93 -> 3.12% | M93: Successful | N93: 2018-05-29 | R93: H
A94: 31 | B94: 2018-05-29 | D94: TATASTEEL | E94: Buy | F94: 575-580 | G94: 555 | I94: 600-610 | J94: Open | O94: =VLOOKUP(D94,Sheet2!$A$1:M2233,6,0) -> 575.35 | R94: R
A95: 32 | B95: 2018-05-29 | D95: RELIANCE | E95: Buy | F95: 923-927 | G95: 898 | I95: 960-970 | J95: Open | O95: =VLOOKUP(D95,Sheet2!$A$1:M2234,6,0) -> 917.45 | R95: R
A100: CLBS = Closing Basis *** | F100: Reinitiated $
A101: Dividend adjusted <> | F101: Revised stoploss #
B104: Momentum Call
A105: Sr.no | B105: Date | D105: Company | E105: Rec | F105: Rec Price | G105: Stop Loss | H105: Call Closed At | I105: Target | J105: Remark | K105: Profit / Loss per Share/Lot | L105: Gain / Loss % | M105: Gain / Loss per Lot | N105: Lot | O105: Status | P105: Closed Date | Q105: NSE Closed Price
A106: 1 | B106: 2018-04-30 | D106: RAIN | E106: Buy | F106: 326.5 | G106: 315 | H106: 315 | I106: 340-345 | J106: Loss of Rs.11.5/- | K106: =H106-F106 -> -11.5 | L106: =K106/F106 -> -3.52% | O106: Unsuccessful | P106: 2018-05-02 | R106: R
A107: 2 | B107: 2018-05-02 | D107: TATACHEM MAY FUT | E107: Buy | F107: 785 | G107: 769 | H107: 771 | I107: 800-805 | J107: Loss of Rs.14/- | K107: -14 | M107: =N107*K107 -> -10500 | N107: 750 | O107: Unsuccessful | P107: 2018-05-02 | R107: H
A108: 3 | B108: 2018-05-02 | D108: EXIDEIND | E108: Buy | F108: 251 | G108: 246 | H108: 256.5 | I108: 260-262 | J108: Profit of Rs.5.5/- | K108: 5.5 | L108: =K108/F108 -> 2.19% | O108: Successful | P108: 2018-05-07 | R108: H
A109: 4 | B109: 2018-05-03 | D109: ARVIND | E109: Buy | F109: 411 | G109: 402 | H109: 419 | I109: 423-426 | J109: Profit of Rs.8/- | K109: 8 | L109: =K109/F109 -> 1.95% | O109: Successful | P109: 2018-05-08 | R109: R
A110: 5 | B110: 2018-05-04 | D110: RAIN | E110: Buy | F110: 315.5 | G110: 307 | H110: 322.5 | I110: 325-330 | J110: Profit of Rs.7/- | K110: 7 | L110: =K110/F110 -> 2.22% | O110: Successful | P110: 2018-05-08 | R110: H
A111: 6 | B111: 2018-05-04 | D111: KPIT | E111: Buy | F111: 251.5 | G111: 245 | H111: 257.5 | I111: 262 | J111: Profit of Rs.6/- | K111: 6 | L111: =K111/F111 -> 2.39% | O111: Successful | P111: 2018-05-08 | R111: R
A112: 7 | B112: 2018-05-07 | D112: RELIANCE MAY FUT | E112: Buy | F112: 963 | G112: 953 | H112: 971.5 | I112: 980 | J112: Profit of Rs.8.5/- | K112: 8.5 | M112: =N112*K112 -> 8500 | N112: 1000 | O112: Successful | P112: 2018-05-07 | R112: R
A113: 8 | B113: 2018-05-07 | D113: CHOLAFIN | E113: Buy | F113: 1662 | G113: 1642 | H113: 1617.5 | I113: 1710-1720 | J113: Loss of Rs.44.5/- | K113: =H113-F113 -> -44.5 | L113: =K113/F113 -> -2.68% | O113: Unsuccessful | P113: 2018-05-09 | R113: R
A114: 9 | B114: 2018-05-07 | D114: SUVEN | E114: Buy | F114: 184.5 | G114: 180 | H114: 192 | I114: 192-194 | J114: Profit of Rs.7.5/- | K114: =H114-F114 -> 7.5 | L114: =K114/F114 -> 4.07% | O114: Successful | P114: 2018-05-07 | R114: R
A115: 10 | B115: 2018-05-08 | D115: BHARATFORG | E115: Buy | F115: 746.5 | G115: 730 | H115: 724.4 | I115: 770 | J115: Loss of Rs.22.1/- | K115: =H115-F115 -> -22.1 | L115: =K115/F115 -> -2.96% | O115: Unsuccessful | P115: 2018-05-11 | R115: R
A116: 11 | B116: 2018-05-09 | D116: VIPIND | E116: Buy | F116: 421 | G116: 409 | H116: 407 | I116: 440 | J116: Loss of Rs.14/- | K116: =H116-F116 -> -14 | L116: =K116/F116 -> -3.33% | O116: Unsuccessful | P116: 2018-05-11 | R116: H
A117: 12 | B117: 2018-05-09 | D117: BANKBARODA MAY FUT | E117: Buy | F117: 145.5 | G117: 144 | H117: 144 | I117: 150 | J117: Loss of Rs.1.5/- | K117: =H117-F117 -> -1.5 | M117: =N117*K117 -> -6000 | N117: 4000 | O117: Unsuccessful | P117: 2018-05-09 | R117: H
A118: 13 | B118: 2018-05-09 | D118: HEROMOTOCO MAY FUT | E118: Buy | F118: 3690 | G118: 3640 | H118: 3640 | I118: 3800 | J118: Loss of Rs.50/- | K118: -50 | M118: =N118*K118 -> -6250 | N118: 125 | O118: Unsuccessful | P118: 2018-05-07 | R118: R
A119: 14 | B119: 2018-05-14 | D119: IRB | E119: Buy | F119: 261.5 | G119: 256 | H119: 254 | I119: 270-272 | J119: Loss of Rs.7.5/- | K119: =H119-F119 -> -7.5 | L119: =K119/F119 -> -2.87% | O119: Unsuccessful | P119: 2018-05-15 | R119: R
A120: 15 | B120: 2018-05-14 | D120: HINDALCO | E120: Buy | F120: 242 | G120: 237 | H120: 248.25 | I120: 249-252 | J120: Profit of Rs.6.25/- | K120: 6.25 | L120: 2.58% | O120: Successful | P120: 2018-05-15 | R120: H
A121: 16 | B121: 2018-05-16 | D121: ARVIND | E121: Buy | F121: 414 | G121: 404 | H121: 421.5 | I121: 427-430 | J121: Profit of Rs.7.5/- | K121: 7.5 | L121: 1.81% | O121: Successful | P121: 2018-05-16 | R121: R
A122: 17 | B122: 2018-05-16 | D122: BFUTILITIE | E122: Buy | F122: 401.5 | G122: 390 | H122: 414 | I122: 417-420 | J122: Profit of Rs.12.5/- | K122: 12.5 | L122: 3.11% | O122: Successful | P122: 2018-05-16 | R122: R
A123: 18 | B123: 2018-05-16 | D123: DHFL | E123: Buy | F123: 617.5 | G123: 604 | H123: 629.5 | I123: 635-640 | J123: Profit of Rs.12/- | K123: 12 | L123: 1.94% | O123: Successful | P123: 2018-05-28 | R123: R
A124: 19 | B124: 2018-05-17 | D124: CHOLAFIN | E124: Buy | F124: 1538 | G124: 1510 | H124: 1604 | I124: 1590-1600 | J124: Profit of Rs.66/- | K124: 66 | L124: 4.29% | O124: Successful | P124: 2018-05-17 | R124: R
A125: 20 | B125: 2018-05-17 | D125: IGL | E125: Buy | F125: 274.5 | G125: 268 | H125: 268 | I125: 285-290 | J125: Loss of Rs.6.5/- | K125: -6.5 | L125: -2.37% | O125: Unsuccessful | P125: 2018-05-18 | R125: H
A126: 21 | B126: 2018-05-18 | D126: BANKNIFTY MAY FUT | E126: Buy | F126: 25880 | G126: 25770 | H126: 25880 | I126: 26050-26100 | J126: No profit no loss/- | K126: =H126-F126 -> 0 | L126: =K126/F126 -> 0.00% | O126: Neutral | P126: 2018-05-18 | R126: R
A127: 22 | B127: 2018-05-21 | D127: THOMASCOOK | E127: Buy | F127: 277 | G127: 270 | H127: 282.5 | I127: 288-290 | J127: Profit of Rs.5.5/- | K127: =H127-F127 -> 5.5 | L127: =K127/F127 -> 1.99% | O127: Successful | P127: 2018-05-28 | R127: R
A128: 23 | B128: 2018-05-22 | D128: ICICIBANK MAY FUT | E128: Buy | F128: 293.5 | G128: 288 | H128: 297.5 | I128: 300-303 | J128: Profit of Rs.4/- | K128: =H128-F128 -> 4 | M128: =N128*K128 -> 11000 | N128: 2750 | O128: Successful | P128: 2018-05-07 | R128: H
A129: 24 | B129: 2018-05-23 | D129: BFUTILITIE | E129: Buy | F129: 380 | G129: 374 | H129: 367.5 | I129: 395 | J129: Loss of Rs.12.5/- | K129: =H129-F129 -> -12.5 | L129: =K129/F129 -> -3.29% | O129: Unsuccessful | P129: 2018-05-24 | R129: R
A130: 25 | B130: 2018-05-23 | D130: BANKNIFTY MAY FUT | E130: Buy | F130: 25775 | G130: 25650 | H130: 25650 | I130: 26000 | J130: Loss of Rs.125/- | K130: =H130-F130 -> -125 | M130: =N130*K130 -> -5000 | N130: 40 | O130: Unsuccessful | P130: 2018-05-23 | R130: R
A131: 26 | B131: 2018-05-23 | D131: ARVIND | E131: Buy | F131: 386.5 | G131: 377 | H131: 393 | I131: 400-410 | J131: Profit of Rs.6.5/- | K131: =H131-F131 -> 6.5 | L131: =K131/F131 -> 1.68% | O131: Successful | P131: 2018-05-28 | R131: H
A132: 27 | B132: 2018-05-23 | D132: LT MAY FUT | E132: Buy | F132: 1331 | G132: 1315 | H132: 1342 | I132: 1350-1360 | J132: Profit of Rs.11/- | K132: =H132-F132 -> 11 | M132: =N132*K132 -> 8250 | N132: 750 | O132: Successful | P132: 2018-05-24 | R132: H
A133: 28 | B133: 2018-05-24 | D133: INDUSINDBK MAY FUT | E133: Buy | F133: 1862 | G133: 1835 | H133: 1881.5 | I133: 1910 | J133: Profit of Rs.19.5/- | K133: 19.5 | M133: =N133*K133 -> 5850 | N133: 300 | O133: Successful | P133: 2018-05-25 | R133: R
A134: 29 | B134: 2018-05-25 | D134: TATAMOTORS MAY FUT | E134: Buy | F134: 292.5 | G134: 284 | H134: 297.5 | I134: 300-305 | J134: Profit of Rs.5/- | K134: =H134-F134 -> 5 | M134: =N134*K134 -> 7500 | N134: 1500 | O134: Successful | P134: 2018-05-25 | R134: H
A135: 30 | B135: 2018-05-29 | D135: BOMDYEING | E135: Buy | F135: 267-270 | G135: 259 | I135: 282-286 | J135: Open | R135: H
A136: 31 | B136: 2018-05-29 | D136: HAVELLS JUN FUT | E136: Buy | F136: 560-562 | G136: 549 | I136: 575-580 | J136: Open | R136: H
A143: CLBS = Closing Basis *** | F143: Reinitiated $
A144: Dividend adjusted <> | F144: Revised stoploss #
B146: Quick Pick Intraday
A147: Sr.no | B147: Date | D147: Company | E147: Rec | F147: Rec Price | G147: Stop Loss*** | H147: Call Closed At | I147: Target | J147: Remark | K147: Profit / Loss per Share | L147: Gain / Loss % | M147: Status | N147: Closed Date
A148: 1 | B148: 2018-05-02 | D148: GODREJPROP | E148: Buy | F148: 817.5 | G148: 804 | H148: 804 | I148: 835-840 | J148: Loss of Rs.13.5/- | K148: =H148-F148 -> -13.5 | L148: =K148/F148 -> -1.65% | M148: Unsuccessful | N148: 2018-05-02 | R148: H
A149: 2 | B149: 2018-05-04 | D149: BFUTILITIE | E149: Buy | F149: 402.5 | G149: 395 | H149: 402.5 | I149: 415 | J149: No profit no loss/- | K149: 0 | L149: 0.00% | M149: Neutral | N149: 2018-05-04 | R149: R
A150: 3 | B150: 2018-05-09 | D150: DCBBANK | E150: Buy | F150: 197.5 | G150: 194.5 | H150: 201 | I150: 202-204 | J150: Profit of Rs. 3.5/- | K150: 3.5 | L150: 1.77% | M150: Successful | N150: 2018-05-09 | R150: H
A151: 4 | B151: 2018-05-09 | D151: BFUTILITIE | E151: Buy | F151: 401 | G151: 395 | H151: 408 | I151: 415 | J151: Profit of Rs. 7/- | K151: 7 | L151: 1.75% | M151: Successful | N151: 2018-05-09 | R151: H
A152: 5 | B152: 2018-05-10 | D152: MANAPPURAM | E152: Buy | F152: 124.75 | G152: 121.8 | H152: 121.8 | I152: 130 | J152: Loss of Rs.2.95/- | K152: -2.95 | L152: -2.36% | M152: Unsuccessful | N152: 2018-05-10 | R152: H
A153: 6 | B153: 2018-05-11 | D153: BFUTILITIE | E153: Buy | F153: 404 | G153: 397 | H153: 397 | I153: 415 | J153: Loss of Rs.7/- | K153: -7 | L153: -1.73% | M153: Unsuccessful | N153: 2018-05-11 | R153: H
A154: 7 | B154: 2018-05-18 | D154: WABAG | E154: Buy | F154: 455.5 | G154: 448 | H154: 463.5 | I154: 470-474 | J154: Profit of Rs. 8/- | K154: =H154-F154 -> 8 | L154: =K154/F154 -> 1.76% | M154: Successful | N154: 2018-05-18 | R154: R
A157: Techno -Funda (positional)
A158: Sr.no | B158: Date | D158: Company | E158: Rec | F158: Rec Price | G158: Stop Loss*** | H158: Call Closed At | I158: Target | J158: Remark | K158: Profit / Loss per Share | L158: Gain / Loss % | M158: Status | N158: Closed Date | O158: NSE Closed Price
A159: 1 | B159: 2018-04-16 | D159: ENGINERSIN | E159: Buy | F159: 158.5 | G159: 147 | H159: 146 | I159: 185-190 | J159: Loss of Rs.12.5/- | K159: =H159-F159 -> -12.5 | L159: =K159/F159 -> -7.89% | M159: Unsuccessful | N159: 2018-05-16 | R159: H
A162: CLBS = Closing Basis *** | F162: Reinitiated $
A163: Dividend adjusted <> | F163: Revised stoploss #
B168: Investment Idea
A169: Sr.no | B169: Date | D169: Company | E169: Rec | F169: Rec Price | G169: Point of Review | H169: Close Rate | I169: Target | J169: Remark | K169: Profit / Loss per Share | L169: Gain / Loss % | M169: Status | N169: Closed Date
A170: 1 | B170: 2013-11-01 | D170: L&T Finance Holding | E170: Accu | F170: 82.00 | G170: - | H170: 100 | I170: 100.00 | J170: Target Achieved | K170: =H170-F170 -> 18.00 | L170: =K170/F170 -> 21.95% | M170: Successful | N170: 2016-10-14
A171: 2 | B171: 2014-06-04 | D171: Finolex Inds | E171: Buy | F171: 257.00 | G171: - | H171: 300 | I171: 300.00 | J171: Target Achieved | K171: =H171-F171 -> 43.00 | L171: 16.73% | M171: Successful | N171: 2014-07-02
A172: =1+A171 -> 3 | B172: 2014-07-08 | D172: JK Cement | E172: Buy | F172: 393.00 | G172: - | H172: 468 | I172: 468.00 | J172: Target Achieved | K172: =H172-F172 -> 75.00 | L172: 19.08% | M172: Successful | N172: 2014-08-12
A173: 4 | B173: 2014-08-06 | D173: Finolex Cables | E173: Buy | F173: 205.00 | G173: - | H173: 275 | I173: 250.00 | J173: Target Achieved | K173: 70.00 | L173: 34.15% | M173: Successful | N173: 2014-11-19
A174: 5 | B174: 2014-09-04 | D174: Exide Inds | E174: Buy | F174: 162.00 | G174: - | H174: 190 | I174: 190.00 | J174: Target Achieved | K174: 28.00 | L174: 17.28% | M174: Successful | N174: 2015-01-02
A175: 6 | B175: 2014-09-04 | D175: Deepak Nitrite | E175: Buy | F175: 75.00 | G175: - | H175: 91.5 | I175: 95-100 | J175: Profit of Rs.16.50/- | K175: 16.50 | L175: 22.00% | M175: Successful | N175: 2014-11-11
A176: 7 | B176: 2014-10-01 | D176: Mercks | E176: Buy | F176: 850.00 | G176: - | H176: 982.5 | I176: 1050.00 | J176: Profit of Rs.132.50/- | K176: 132.50 | L176: 15.59% | M176: Successful | N176: 2015-02-04
A177: 8 | B177: 2014-10-01 | D177: Grindwell Norton | E177: Buy | F177: 475.00 | G177: - | H177: 515 | I177: 600.00 | J177: Profit of Rs.40/- | K177: 40.00 | L177: 8.42% | M177: Successful | N177: 2014-10-27
A178: 9 | B178: 2014-10-01 | D178: Snowman Logistics | E178: Buy | F178: 86.00 | G178: - | H178: 99 | I178: 140.00 | J178: Profit of Rs.13.00/- | K178: 13.00 | L178: 15.12% | M178: Successful | N178: 2014-10-27
A179: 10 | B179: 2014-10-14 | D179: Birla Corp | E179: Buy | F179: 496.60 | G179: - | H179: 621 | I179: 580.00 | J179: Target Achieved | K179: 124.40 | L179: 25.05% | M179: Successful | N179: 2016-08-23
A180: 11 | B180: 2014-10-14 | D180: Ultratech Cem | E180: Buy | F180: 2481.90 | G180: - | H180: 2840 | I180: 2870.00 | J180: Profit of Rs.358.10/- | K180: 358.10 | L180: 14.43% | M180: Successful | N180: 2015-01-13
A181: =1+A178 -> 10 | B181: 2014-10-16 | D181: Sintex Inds | E181: Buy | F181: 84.50 | G181: - | H181: 93 | I181: 110.00 | J181: Profit of Rs.8.50/- | K181: 8.50 | L181: 10.06% | M181: Successful | N181: 2014-10-27
A182: =1+A181 -> 11 | B182: 2014-10-16 | D182: HSIL | E182: Buy | F182: 401.00 | G182: - | H182: 428 | I182: 450.00 | J182: Profit of Rs.27.00/- | K182: 27.00 | L182: 6.73% | M182: Successful | N182: 2015-01-16
A183: 12 | B183: 2014-10-16 | D183: Eveready Inds | E183: Buy | F183: 101.00 | G183: - | H183: 112 | I183: 120.00 | J183: Profit of Rs.11.00/- | K183: 11.00 | L183: 10.89% | M183: Successful | N183: 2014-10-27
A184: 13 | B184: 2014-11-11 | D184: Pennar Inds | E184: Buy | F184: 59.00 | G184: - | H184: 76 | I184: 76.00 | J184: Target Achieved | K184: 17.00 | L184: 28.81% | M184: Successful | N184: 2017-10-24
A185: 14 | B185: 2014-11-11 | D185: Snowman Logistics | E185: Buy | F185: 99.00 | G185: - | H185: 120 | I185: 120.00 | J185: Profit of Rs.21/- | K185: 21.00 | L185: 21.21% | M185: Successful | N185: 2014-11-17
A186: 15 | B186: 2014-11-13 | D186: Dharamsi Morarji Chem | E186: Buy | F186: 22.00 | G186: - | H186: 33.55 | I186: 32.00 | J186: Profit of Rs 11.55/- | K186: 11.55 | L186: 52.50% | M186: Successful | N186: 2015-07-03
A187: 16 | B187: 2014-12-03 | D187: Tatachem | E187: Buy | F187: 440.00 | G187: - | H187: 520 | I187: 520.00 | J187: Profit of Rs 80.00/- | K187: 80.00 | L187: 18.18% | M187: Successful | N187: 2015-07-23
A188: 17 | B188: 2014-12-03 | D188: Advanta | E188: Buy | F188: 360.00 | G188: - | H188: 427 | I188: 425.00 | J188: Profit of Rs.67.00/- | K188: 67.00 | L188: 18.61% | M188: Successful | N188: 2015-02-23
A189: 18 | B189: 2015-01-08 | D189: GDL | E189: Buy | F189: 360.00 | G189: - | H189: 455 | I189: 420.00 | J189: Profit of Rs.95.00/- | K189: 95.00 | L189: 26.39% | M189: Successful | N189: 2015-01-20
A190: 19 | B190: 2015-01-08 | D190: NRB Bearing | E190: Buy | F190: 130.00 | H190: 175.5 | I190: 165.00 | J190: Profit of Rs 45.50/- | K190: 45.50 | L190: 35.00% | M190: Successful | N190: 2017-12-19
A191: 20 | B191: 2015-02-05 | D191: GSFC | E191: Accu | F191: 98.00 | H191: 120 | I191: 120.00 | J191: Target Achieved | K191: 22.00 | L191: 22.45% | M191: Successful | N191: 2017-01-18
A192: 21 | B192: 2015-02-05 | D192: Sundrmfast | E192: Accu | F192: 196.00 | H192: 262 | I192: 255.00 | J192: Target Achieved | K192: 66.00 | L192: 33.67% | M192: Successful | N192: 2016-08-17
A193: 22 | B193: 2015-03-04 | D193: GPPL | E193: Accu | F193: 230-240 | I193: 280-285 | J193: Open
A194: 23 | B194: 2015-03-04 | D194: ORIENTCEM | E194: Accu | F194: 185.00 | H194: 224 | I194: 220-225 | J194: Target Achieved | K194: 39.00 | L194: =K194/F194 -> 21.08% | M194: Successful | N194: 2016-10-04
A195: 24 | B195: 2015-03-27 | D195: PFS | E195: Accu | F195: 49-50 | I195: 67.00 | J195: Open
A196: 25 | B196: 2015-03-30 | D196: Walchandnagar Ind Ltd | E196: Accu | F196: 183.50 | H196: 219 | I196: 218.00 | J196: Profit of Rs.35.50/- | K196: 35.50 | L196: =K196/F196 -> 19.35% | M196: Successful | N196: 2015-04-09
A197: 26 | B197: 2015-04-20 | D197: Kalpataru Power Transmission Ltd | E197: Accu | F197: =(227+237)/2 -> 232.00 | H197: 298 | I197: 298.00 | J197: Target Achieved | K197: 66.00 | L197: 28.45% | M197: Successful | N197: 2017-03-29
A198: 27 | B198: 2015-05-04 | D198: Mastek Ltd | E198: Buy | F198: 385.00 | H198: =212.5+331 -> 543.5 | I198: 510.00 | J198: Profit of Rs 158.50/- | K198: 158.50 | L198: 41.17% | M198: Successful | N198: 2015-08-19
A199: 28 | B199: 2015-05-04 | D199: Suprajit Eng | E199: Buy | F199: 115.50 | H199: 146 | I199: 142.00 | J199: Profit of Rs 30.50/- | K199: 30.50 | L199: 26.41% | M199: Successful | N199: 2015-07-17
A200: 29 | B200: 2015-05-27 | D200: TCI | E200: Buy | F200: 237.50 | H200: 279.5 | I200: 278.00 | J200: Target Achieved | K200: 42.00 | L200: 17.68% | M200: Successful | N200: 2015-08-06
A201: 30 | B201: 2015-06-19 | D201: HSIL | E201: Accu | F201: 340.00 | H201: 448 | I201: 448.00 | J201: Target Achieved | K201: 108.00 | L201: 31.76% | M201: Successful | N201: 2017-10-10
A202: 31 | B202: 2015-07-06 | D202: Capital First | E202: Accu | F202: 390.00 | H202: 460 | I202: 460.00 | J202: Target Achieved | K202: 70.00 | L202: 17.95% | M202: Successful | N202: 2016-04-18
A203: 32 | B203: 2015-07-10 | D203: Dolphin OffShore | E203: Accu | F203: 118-127 | I203: 172.00 | J203: Open
A204: 33 | B204: 2015-08-03 | D204: Allcargo logistics | E204: Accu | F204: 297.50 | H204: 350 | I204: 360.00 | J204: Profit of Rs 52.50/- | K204: 52.50 | L204: =K204/F204 -> 17.65% | M204: Successful | N204: 2015-08-16
A205: 34 | B205: 2015-08-03 | D205: Camline Fine | E205: Accu | F205: 115.50 | H205: 149 | I205: 140.00 | J205: Profit of Rs 33.50/- | K205: 33.50 | L205: 29.00% | M205: Successful | N205: 2017-01-05
A206: 35 | B206: 2015-09-04 | D206: TCI | E206: Accu | F206: 226.00 | H206: 292 | I206: 292.00 | J206: Target Achieved | K206: 66.00 | L206: 29.20% | M206: Successful | N206: 2015-10-09
A207: 36 | B207: 2015-09-07 | D207: Kalpataru Power Transmission Ltd | E207: Accu | F207: 232.50 | H207: 312.5 | I207: 310.00 | J207: Target Achieved | K207: 80.00 | L207: 34.41% | M207: Successful | N207: 2017-03-29
A208: 37 | B208: 2015-09-21 | D208: LLOYD ELECTRIC & ENG LTD | E208: Accu | F208: 196.50 | H208: 238 | I208: 238.00 | J208: Target Achieved | K208: 41.50 | L208: 21.12% | M208: Successful | N208: 2015-10-14
A209: 38 | B209: 2015-09-24 | D209: L&T Finance Holding | E209: Accu | F209: 65.00 | H209: 82 | I209: 82.00 | J209: Target Achieved | K209: 17.00 | L209: 26.15% | M209: Successful | N209: 2016-07-27
A210: 39 | B210: 2015-10-14 | D210: KEC International ltd | E210: Accu | F210: 144.00 | H210: 182.5 | I210: 181.00 | J210: Target Achieved | K210: 38.50 | L210: 26.74% | M210: Successful | N210: 2017-03-23
A211: 40 | B211: 2015-10-14 | D211: Gruh Finance | E211: Accu | F211: 264.00 | H211: 311 | I211: 311.00 | J211: Target Achieved | K211: 47.00 | L211: 17.80% | M211: Successful | N211: 2016-08-22
A212: 41 | B212: 2015-11-10 | D212: Pidilitind | E212: Buy | F212: 549.50 | H212: 630 | I212: 630.00 | J212: Target Achieved | K212: 80.50 | L212: 14.65% | M212: Successful | N212: 2016-02-19
A213: 42 | B213: 2015-12-04 | D213: Zensar Technology | E213: Accu | F213: 1027.50 | H213: 1315 | I213: 1250.00 | J213: Target Achieved | K213: =H213-F213 -> 287.50 | L213: 27.98% | M213: Successful | N213: 2018-05-24
A214: 43 | B214: 2015-12-29 | D214: Vinati Organics Ltd | E214: Accu | F214: 465.00 | H214: 540 | I214: 540.00 | J214: Target Achieved | K214: 75.00 | L214: =K214/F214 -> 16.13% | M214: Successful | N214: 2016-06-09
A215: 44 | B215: 2016-01-11 | D215: GSFC | E215: Buy | F215: 81.00 | H215: 110 | I215: 110.00 | J215: Target Achieved | K215: 29.00 | L215: 35.80% | M215: Successful | N215: 2017-01-10
A216: 45 | B216: 2016-01-13 | D216: SSWL | E216: Buy | F216: 417.50 | H216: 547 | I216: 535.00 | J216: Target Achieved | K216: 129.50 | L216: 31.02% | M216: Successful | N216: 2016-07-27
A217: 46 | B217: 2016-02-08 | D217: Persistent System Ltd | E217: Accu | F217: 650.00 | H217: 800 | I217: 800.00 | J217: Target Achieved | K217: 150.00 | L217: 23.08% | M217: Successful | N217: 2018-02-23
A218: 47 | B218: 2016-03-04 | D218: UPL | E218: Accu | F218: 437.50 | H218: 504.5 | I218: 522.00 | J218: Profit of Rs.67/- | K218: 67.00 | L218: 15.31% | M218: Successful | N218: 2016-04-20
A219: 48 | B219: 2016-03-09 | D219: Ashoka Buildcon Ltd | E219: Accu | F219: 189.50 | H219: 218 | I219: 218.00 | J219: Target Achieved | K219: 28.50 | L219: 15.04% | M219: Successful | N219: 2017-10-26
A220: 49 | B220: 2016-04-11 | D220: PTC INDIA FIN SERV LTD | E220: Accu | F220: 36-37 | I220: 60.00 | J220: Open
A221: 50 | B221: 2016-04-12 | D221: CAMLINFINE $ | E221: Accu | F221: 93.00 | H221: 149 | I221: 140.00 | J221: Profit of Rs 56/- | K221: 56.00 | L221: =K221/F221 -> 60.22% | M221: Successful | N221: 2017-01-05
A222: 51 | B222: 2016-04-12 | D222: Greaves Cotton Ltd. | E222: Accu | F222: 130.00 | H222: 150 | I222: 150-155 | J222: Target Achieved | K222: 20.00 | L222: 15.38% | M222: Successful | N222: 2016-07-13
A223: 52 | B223: 2016-04-13 | D223: DHFL | E223: Accu | F223: 196.00 | H223: 299 | I223: 299.00 | J223: Target Achieved | K223: 103.00 | L223: 52.55% | M223: Successful | N223: 2016-09-07
A224: 53 | B224: 2016-04-13 | D224: Magma | E224: Accu | F224: 88.00 | H224: 103 | I224: 103.00 | J224: Target Achieved | K224: 15.00 | L224: 17.05% | M224: Successful | N224: 2016-06-09
A225: 54 | B225: 2016-05-02 | D225: KEC International ltd $ | E225: Accu | F225: 127.50 | H225: 148 | I225: 148-150 | J225: Target Achieved | K225: 20.50 | L225: 16.08% | M225: Successful | N225: 2016-07-13
A226: 55 | B226: 2016-05-03 | D226: Mindtree | E226: Accu | F226: 675.00 | H226: 815 | I226: 790-800 | J226: Target Achieved | K226: 140.00 | L226: 20.74% | M226: Successful | N226: 2018-02-23
A227: 56 | B227: 2016-06-01 | D227: Atulauto | E227: Accu | F227: 495-505 | I227: 565-570 | J227: Open
A228: 57 | B228: 2016-06-06 | D228: TRITURBINE | E228: Accu | F228: 110.00 | H228: 126.5 | I228: 125.00 | J228: Profit of Rs.16.50/- | K228: 16.50 | L228: =K228/F228 -> 15.00% | M228: Successful | N228: 2016-07-01
A229: 58 | B229: 2016-06-17 | D229: Pennar Industries Ltd | E229: Accu | F229: 44.00 | H229: 69.5 | I229: 69.50 | J229: Profit of Rs.25.50/- | K229: 25.50 | L229: =K229/F229 -> 57.95% | M229: Successful | N229: 2017-08-30
A230: 59 | B230: 2016-06-28 | D230: EVEREADY INDS. IND. LTD. | E230: Accu | F230: 262.50 | H230: 340 | I230: 333.00 | J230: Profit of Rs.77.50/- | K230: 77.50 | L230: =K230/F230 -> 29.52% | M230: Successful | N230: 2017-10-09
A231: 60 | B231: 2016-06-28 | D231: FIEM INDUSTRIES LIMITED | E231: Accu | F231: 840.00 | H231: 1230 | I231: 1230.00 | J231: Target Achieved | K231: 390.00 | L231: =K231/F231 -> 46.43% | M231: Successful | N231: 2016-10-06
A232: 61 | B232: 2016-07-05 | D232: Bajaj Corp Ltd | E232: Accu | F232: 395 | H232: 468.50 | I232: 510.00 | J232: Part profit of Rs.73.50/- | K232: 73.50 | L232: =K232/F232 -> 19% | M232: Successful | N232: 2017-08-30
A233: 62 | B233: 2016-08-02 | D233: GPPL $ | E233: Buy | F233: 167-172 | I233: 198-200 | J233: Open
A234: 63 | B234: 2016-08-04 | D234: WONDERLA HOLIDAYS LTD | E234: Accu | F234: 395-405 | I234: 475.00 | J234: Open
A235: 64 | B235: 2016-08-11 | D235: CAMLINFINE | E235: Accu | F235: 86.50 | H235: 130 | I235: 130.00 | J235: Profit of Rs.43.50/- | K235: =H235-F235 -> 43.50 | L235: =K235/F235 -> 50.29% | M235: Successful | N235: 2017-12-22
A236: 65 | B236: 2016-08-18 | D236: GRANULES | E236: Accu | F236: 133.5 | H236: 126.50 | I236: 178.00 | J236: Exit | K236: -7.00 | L236: -5.24% | M236: Unsuccessful | N236: 2016-09-02
A237: 66 | B237: 2016-08-31 | D237: VA TECH WABAG | E237: Accu | F237: 560.00 | H237: 725 | I237: 725.00 | J237: Target Achieved | K237: 165.00 | L237: 29.46% | M237: Successful | N237: 2016-03-27
A238: 67 | B238: 2016-09-01 | D238: SKIPPER LIMITED | E238: Accu | F238: 160.50 | H238: 210 | I238: 210.00 | J238: Target Achieved | K238: 49.50 | L238: 30.84% | M238: Successful | N238: 2017-05-16
... 61 more rows

Sheet Call Tracker (Currency) (hidden)
A1: Master Trade High Risk
A2: Sr.no | B2: Date | C2: Company | D2: Rec | E2: Rec Price | F2: Stop Loss | G2: Call Closed At | H2: Target | I2: Remark | K2: Profit / Loss per share | L2: Gain / Loss per Lot | M2: Lot | N2: Status | O2: Closed Date
A3: 1 | B3: 2017-05-08 | C3: USDINR MAY FUT | D3: Buy | E3: 64.3935 | F3: 64.29 | G3: 64.66 | H3: 64.59 | I3: Profit of Rs.0.27/- | K3: 0.27 | L3: 266.5 | M3: 1000 | N3: Successful | O3: 2017-05-09 | R3: P
A4: 2 | B4: 2017-05-08 | C4: USDINR JUN FUT | D4: Buy | E4: 64.6535 | F4: 64.45 | G4: 64.965 | H4: 65.05 | I4: Profit of Rs 0.31/- | K4: 0.31 | L4: 311.5 | M4: 1000 | N4: Successful | O4: 2017-05-09 | R4: P
A5: 3 | B5: 2017-05-09 | C5: EUROINR MAY FUT | D5: Sell | E5: 70.65 | F5: 70.8 | G5: 70.07 | H5: 70.4 | I5: Profit of Rs 0.58/- | K5: 0.58 | L5: 580 | M5: 1000 | N5: Successful | O5: 2017-05-12 | R5: P
A6: 4 | B6: 2017-05-09 | C6: GBPINR MAY FUT | D6: Buy | E6: 83.774 | F6: 83.37 | G6: 83.37 | H6: 84.77 | I6: Loss of Rs 0.40/- | K6: -0.40 | L6: -404 | M6: 1000 | N6: Unsuccessful | O6: 2017-05-11 | R6: P
A7: 5 | B7: 2017-05-11 | C7: USDINR MAY FUT | D7: Buy | E7: 64.6555 | F7: 64.55 | G7: 64.55 | H7: 64.86 | I7: Loss of Rs.0.1055/- | K7: -0.1055 | L7: =K7*M7 -> -105.50 | M7: 1000 | N7: Unsuccessful | O7: 2017-05-11 | R7: P
A8: 6 | B8: 2017-05-15 | C8: USDINR MAY FUT | D8: Buy | E8: 64.2275 | F8: 64.08 | G8: 64.46 | H8: 64.48 | I8: Profit of Rs 0.23/- | K8: 0.23 | L8: 232.5 | M8: 1000 | N8: Successful | O8: 2017-05-18 | R8: P
A9: 7 | B9: 2017-05-19 | C9: USDINR MAY FUT | D9: Sell | E9: 64.83 | F9: 65 | G9: 65 | H9: 64.5 | I9: Loss of Rs.0.17/- | K9: -0.17 | L9: -170 | M9: 1000 | N9: Unsuccessful | O9: 2017-05-19 | R9: P
A10: 8 | B10: 2017-05-23 | C10: USDINR MAY FUT | D10: Buy | E10: 64.83 | F10: 64.62 | G10: 64.95 | H10: 65.2 | I10: Profit of Rs 0.12/- | K10: 0.12 | L10: 120 | M10: 1000 | N10: Successful | O10: 2017-05-24 | R10: P
A11: 9 | B11: 2017-05-25 | C11: USDINR MAY FUT | D11: Buy | E11: 64.57 | F11: 64.25 | G11: 64.56 | H11: 65 | I11: Loss of Rs.0.01/- | K11: -0.01 | L11: -10 | M11: 1000 | N11: Neutral | O11: 2017-05-29 | R11: P
A12: 10 | B12: 2017-05-30 | C12: USDINR JUN FUT | D12: Buy | E12: 64.9125 | F12: 64.71 | G12: 64.71 | H12: 65.31 | I12: Loss of Rs.0.20/- | K12: -0.20 | L12: -202.5 | M12: 1000 | N12: Unsuccessful | O12: 2017-05-31 | R12: P
A13: 11 | B13: 2017-06-01 | C13: USDINR JUN FUT | D13: Buy | E13: 64.655 | F13: 64.45 | G13: 64.45 | H13: 65.05 | I13: Loss of Rs.0.20/- | K13: =G13-E13 -> -0.20 | L13: =K13*M13 -> -205 | M13: 1000.00 | N13: Unsuccessful | O13: 2017-06-08 | R13: P
A14: 12 | B14: 2017-06-12 | C14: USDINR JUN FUT | D14: Buy | E14: 64.45 | F14: 64 | G14: 64.7625 | H14: 65.2 | I14: Profit of Rs 0.31/- | K14: 0.31 | L14: 312.5 | M14: 1000 | N14: Successful | O14: 2017-06-16
A15: 13 | B15: 2017-06-16 | C15: USDINR JUN FUT | D15: Buy | E15: 64.51 | F15: 64.2 | G15: 64.7 | H15: 65.11 | I15: Profit of Rs 0.19/- | K15: 0.19 | L15: 190 | M15: 1000 | N15: Successful | O15: 2017-06-21
A16: 14 | B16: 2017-06-22 | C16: USDINR JUN FUT | D16: Buy | E16: 64.56 | F16: 64.2 | G16: 64.2 | H16: 65.1 | I16: Loss of Rs.0.36/- | K16: -0.36 | L16: -360 | M16: 1000.00 | N16: Unsuccessful | O16: 2017-06-30
A17: 15 | B17: 2017-07-10 | C17: USDINR JUL FUT | D17: Buy | E17: 64.67 | F17: 64.4 | G17: 64.4 | H17: 65.15 | I17: Loss of Rs.0.27/- | K17: -0.27 | L17: -270 | M17: 1000.00 | N17: Unsuccessful | O17: 2017-07-31
A18: 16 | B18: 2017-08-02 | C18: USDINR AUG FUT | D18: Buy | E18: 64.235 | F18: 63.98 | G18: 63.98 | H18: 64.75 | I18: Loss of Rs.0.26/- | K18: -0.26 | L18: -255 | M18: 1000.00 | N18: Unsuccessful | O18: 2017-08-02
A19: 17 | B19: 2017-08-08 | C19: USDINR AUG FUT | D19: Buy | E19: 63.9425 | F19: 63.6 | G19: 64.15 | H19: 64.5 | I19: Profit of Rs 0.21/- | K19: 0.21 | L19: 207.5 | M19: 1000 | N19: Successful | O19: 2017-08-10
A20: 18 | B20: 2017-08-22 | C20: USDINR AUG FUT | D20: Buy | E20: 64.1175 | F20: 63.9 | G20: 64.01 | H20: 64.5 | I20: Loss of Rs.0.11/- | K20: =G20-E20 -> -0.11 | L20: =K20*M20 -> -107.5 | M20: 1000.00 | N20: Unsuccessful | O20: 2017-08-29
A21: 19 | B21: 2017-09-01 | C21: USDINR SEP FUT | D21: Buy | E21: 64.1 | F21: 63.8 | G21: 64.205 | H21: 64.7 | I21: Profit of Rs 0.11/- | K21: 0.11 | L21: 105 | M21: 1000 | N21: Successful | O21: 2017-09-01
A22: 20 | B22: 2017-09-04 | C22: USDINR SEP FUT | D22: Buy | E22: 64.095 | F22: 63.8 | G22: 64.195 | H22: 64.7 | I22: Profit of Rs 0.10/- | K22: 0.10 | L22: =K22*M22 -> 100 | M22: 1000 | N22: Successful | O22: 2017-09-04
A23: 21 | B23: 2017-09-05 | C23: USDINR SEP FUT | D23: Buy | E23: 64.25 | F23: 64 | G23: 64.355 | H23: 64.75 | I23: Profit of Rs 0.11/- | K23: =G23-E23 -> 0.11 | L23: =K23*M23 -> 105 | M23: 1000 | N23: Successful | O23: 2017-09-06
A24: 22 | B24: 2017-09-06 | C24: USDINR SEP FUT | D24: Sell | E24: 64.365 | F24: 64.5 | G24: 64.265 | H24: 64 | I24: Profit of Rs 0.10/- | K24: =E24-G24 -> 0.10 | L24: 100 | M24: 1000 | N24: Successful | O24: 2017-09-06
A25: 23 | B25: 2017-09-07 | C25: USDINR SEP FUT | D25: Buy | E25: 64.145 | F25: 63.9 | G25: 64.2565 | H25: 64.65 | I25: Profit of Rs 0.11/- | K25: =G25-E25 -> 0.11 | L25: =K25*M25 -> 111.5 | M25: 1000 | N25: Successful | O25: 2017-09-14
A26: 24 | B26: 2017-09-11 | C26: JPYINR SEP FUT | D26: Sell | E26: 59.0285 | F26: 59.25 | G26: 58.645 | H26: 58.5 | I26: Profit of Rs 0.38/- | K26: =E26-G26 -> 0.38 | L26: 383.5 | M26: 1000 | N26: Successful | O26: 2017-09-12
A27: 25 | B27: 2017-09-14 | C27: USDINR SEP FUT | D27: Buy | E27: 64.145 | F27: 63.95 | G27: 64.26 | H27: 64.5 | I27: Profit of Rs 0.12/- | K27: =G27-E27 -> 0.12 | L27: 115 | M27: 1000 | N27: Successful | O27: 2017-09-19
A28: 26 | B28: 2017-09-20 | C28: USDINR SEP FUT | D28: Buy | E28: 64.3515 | F28: 64.15 | G28: 64.57 | H28: 64.75 | I28: Profit of Rs 0.22/- | K28: =G28-E28 -> 0.22 | L28: =K28*M28 -> 218.5 | M28: 1000 | N28: Successful | O28: 2017-09-21
A29: 27 | B29: 2017-09-21 | C29: USDINR SEP FUT | D29: Sell | E29: 64.795 | F29: 65.05 | G29: 65.05 | H29: 64.4 | I29: Loss of Rs.0.17/- | K29: -0.17 | L29: -170 | M29: 1000.00 | N29: Unsuccessful | O29: 2017-09-22
A30: 28 | B30: 2017-09-25 | C30: USDINR SEP FUT | D30: Buy | E30: 64.77 | F30: 64.4 | G30: 64.92 | H30: 65.1 | I30: Profit of Rs 0.15/- | K30: =G30-E30 -> 0.15 | L30: =K30*M30 -> 150 | M30: 1000 | N30: Successful | O30: 2017-09-25
A31: 29 | B31: 2017-09-25 | C31: USDINR SEP FUT | D31: Sell | E31: 65.1077 | F31: 65.3 | G31: 65.3 | H31: 64.5 | I31: Loss of Rs.0.19/- | K31: -0.19 | L31: -190 | M31: 1000.00 | N31: Unsuccessful | O31: 2017-09-26
A32: 30 | B32: 2017-09-27 | C32: USDINR SEP FUT | D32: Sell | E32: 65.7225 | F32: 65.83 | G32: 65.7 | H32: 65.52 | I32: Profit of Rs 0.02/- | K32: =E32-G32 -> 0.02 | L32: =K32*M32 -> 22.5 | M32: 1000 | N32: Neutral | O32: 2017-09-27
A33: 31 | B33: 2017-09-27 | C33: USDINR OCT FUT | D33: Sell | E33: 66 | F33: 66.5 | G33: 65.895 | H33: 65 | I33: Profit of Rs 0.11/- | K33: =E33-G33 -> 0.11 | L33: 105 | M33: 1000 | N33: Successful | O33: 2017-09-27
A34: 32 | B34: 2017-09-28 | C34: USDINR OCT FUT | D34: Sell | E34: 66.075 | F34: 66.3 | G34: 65.96 | H34: 65.4 | I34: Profit of Rs 0.12/- | K34: =E34-G34 -> 0.12 | L34: =K34*M34 -> 115 | M34: 1000 | N34: Successful | O34: 2017-09-28
A35: 33 | B35: 2017-09-29 | C35: GBPINR OCT fut | D35: Buy | E35: 87.745 | F35: 87.5 | G35: 87.84 | H35: 88.25 | I35: Profit of Rs 0.09/- | K35: =G35-E35 -> 0.09 | L35: 95 | M35: 1000 | N35: Successful | O35: 2017-09-29
A36: 34 | B36: 2017-09-29 | C36: USDINR OCT FUT | D36: Buy | E36: 65.514 | F36: 65.25 | G36: 65.85 | H36: 66 | I36: Profit of Rs 0.34/- | K36: 0.34 | L36: =K36*M36 -> 336 | M36: 1000 | N36: Successful | O36: 2017-10-03
A37: 35 | B37: 2017-10-09 | C37: USDINR OCT FUT | D37: Buy | E37: 65.48 | F37: 65.23 | G37: 65.5775 | H37: 65.95 | I37: Profit of Rs 0.10/- | K37: =G37-E37 -> 0.10 | L37: =K37*M37 -> 97.5 | M37: 1000 | N37: Successful | O37: 2017-10-09
A38: 36 | B38: 2017-10-10 | C38: USDINR OCT FUT | D38: Buy | E38: 65.41 | F38: 65.15 | G38: 65.5075 | H38: 66 | I38: Profit of Rs 0.10/- | K38: 0.10 | L38: 97.5 | M38: 1000 | N38: Successful | O38: 2017-10-10
A39: 37 | B39: 2017-10-11 | C39: USDINR OCT FUT | D39: Buy | E39: 65.38 | F39: 65.13 | G39: 65.13 | H39: 65.88 | I39: Loss of Rs.0.25/- | K39: -0.25 | L39: -250 | M39: 1000.00 | N39: Unsuccessful | O39: 2017-10-13
A40: 38 | B40: 2017-10-16 | C40: USDINR OCT FUT | D40: Buy | E40: 64.7925 | F40: 64.54 | G40: 64.905 | H40: 65.3 | I40: Profit of Rs 0.11/- | K40: =G40-E40 -> 0.11 | L40: =K40*M40 -> 112.5 | M40: 1000 | N40: Successful | O40: 2017-10-17
A41: 39 | B41: 2017-10-23 | C41: USDINR OCT FUT | D41: Buy | E41: 65.115 | F41: 64.85 | G41: 65.21 | H41: 65.5 | I41: Profit of Rs 0.09/- | K41: =G41-E41 -> 0.09 | L41: =K41*M41 -> 95 | M41: 1000 | N41: Successful | O41: 2017-10-25
A42: 40 | B42: 2017-10-23 | C42: JPYINR OCT FUT | D42: Buy | E42: 57.285 | F42: 57.03 | G42: 57.38 | H42: 58.4 | I42: Profit of Rs 0.10/- | K42: =G42-E42 -> 0.10 | L42: =K42*M42 -> 95 | M42: 1000 | N42: Successful | O42: 2017-10-23
A43: 41 | B43: 2017-10-26 | C43: USDINR OCT FUT | D43: Buy | E43: 64.755 | F43: 64.5 | G43: 64.87 | H43: 65.25 | I43: Profit of Rs 0.12/- | K43: 0.12 | L43: 115 | M43: 1000 | N43: Successful | O43: 2017-10-25
A44: 42 | B44: 2017-10-30 | C44: USDINR NOV FUT | D44: Buy | E44: 65.035 | F44: 64.79 | G44: 64.79 | H44: 65.5 | I44: Loss of Rs.0.24/- | K44: -0.24 | L44: -245 | M44: 1000.00 | N44: Unsuccessful | O44: 2017-11-01
A45: 43 | B45: 2017-11-01 | C45: JPYINR NOV FUT | D45: Buy | E45: 56.9875 | F45: 56.73 | G45: 57.0959 | H45: 57.5 | I45: Profit of Rs 0.11/- | K45: =G45-E45 -> 0.11 | L45: =K45*M45 -> 108.4 | M45: 1000 | N45: Successful | O45: 2017-11-07
A46: 44 | B46: 2017-11-02 | C46: USDINR NOV FUT | D46: Buy | E46: 64.7838 | F46: 64.5 | G46: 64.89 | H46: 65.25 | I46: Profit of Rs 0.11/- | K46: =G46-E46 -> 0.11 | L46: =K46*M46 -> 106.2 | M46: 1000 | N46: Successful | O46: 2017-11-06
A47: 45 | B47: 2017-11-08 | C47: USDINR NOV FUT | D47: Buy | E47: 65.1363 | F47: 64.8375 | G47: 65.235 | H47: 65.73 | I47: Profit of Rs 0.10/- | K47: =G47-E47 -> 0.10 | L47: =K47*M47 -> 98.7 | M47: 1000 | N47: Successful | O47: 2017-11-10
A48: 46 | B48: 2017-11-08 | C48: GBPINR NOV FUT | D48: Buy | E48: 85.4983 | F48: 85.25 | G48: 85.6 | H48: 86 | I48: Profit of Rs 0.10/- | K48: =G48-E48 -> 0.10 | L48: =K48*M48 -> 101.7 | M48: 1000 | N48: Successful | O48: 2017-11-09
A49: 47 | B49: 2017-11-16 | C49: EURINR NOV FUT | D49: Buy | E49: 76.8975 | F49: 76.3975 | G49: 76.3975 | H49: 77.8975 | I49: Loss of Rs.0.50/- | K49: =G49-E49 -> -0.50 | L49: -500 | M49: 1000.00 | N49: Unsuccessful | O49: 2017-11-01
A50: 48 | B50: 2017-11-16 | C50: JPYINR NOV FUT | D50: Buy | E50: 57.6625 | F50: 57.2675 | G50: 57.8075 | H50: 58.6675 | I50: Profit of Rs 0.14/- | K50: =G50-E50 -> 0.14 | L50: =K50*M50 -> 145 | M50: 1000 | N50: Successful | O50: 2017-11-17
A51: 49 | B51: 2017-11-22 | C51: EURINR NOV FUT | D51: Buy | E51: 76.175 | F51: 75.95 | G51: 76.335 | H51: 76.6 | I51: Profit of Rs 0.16/- | K51: 0.16 | L51: =K51*M51 -> 160 | M51: 1000 | N51: Successful | O51: 2017-11-22
A52: 50 | B52: 2017-11-22 | C52: USDINR NOV FUT | D52: Buy | E52: 64.87 | F52: 64.5 | G52: 64.5 | H52: 65.5 | I52: Loss of Rs.0.37/- | K52: -0.37 | L52: -370 | M52: 1000.00 | N52: Unsuccessful | O52: 2017-11-27
A53: 51 | B53: 2017-11-28 | C53: GBPINR DEC FUT | D53: Buy | E53: 86.17 | F53: 85.85 | G53: 86.46 | H53: 87 | I53: Profit of Rs 0.29/- | K53: 0.29 | L53: =K53*M53 -> 290 | M53: 1000 | N53: Successful | O53: 2017-11-29
A54: 52 | B54: 2017-11-28 | C54: JPYINR DEC FUT | D54: Buy | E54: 58.16 | F54: 57.85 | G54: 57.85 | H54: 58.6 | I54: Loss of Rs.0.31/- | K54: -0.31 | L54: -310 | M54: 1000.00 | N54: Unsuccessful | O54: 2017-11-29
A55: 53 | B55: 2017-11-28 | C55: USDINR DEC FUT | D55: Buy | E55: 64.63 | F55: 64.13 | G55: 64.13 | H55: 65.63 | I55: Loss of Rs.0.50/- | K55: -0.50 | L55: =K55*M55 -> -500 | M55: 1000.00 | N55: Unsuccessful | O55: 2017-12-15
A56: 54 | B56: 2017-11-28 | C56: EURINR DEC FUT | D56: Buy | E56: 76.93 | F56: 76.43 | G56: 76.43 | H56: 77.93 | I56: Loss of Rs.0.50/- | K56: =G56-E56 -> -0.50 | L56: =K56*M56 -> -500 | M56: 1000.00 | N56: Unsuccessful | O56: 2017-11-29
A57: 55 | B57: 2017-12-12 | C57: EURINR DEC FUT | D57: Buy | E57: 76.105 | F57: 75.7 | G57: 76.27 | H57: 76.8 | I57: Profit of Rs 0.16/- | K57: =G57-E57 -> 0.16 | L57: 165 | M57: 1000 | N57: Successful | O57: 2017-12-14
A58: 56 | B58: 2017-12-12 | C58: JPYINR DEC FUT | D58: Buy | E58: 56.975 | F58: 56.7 | G58: 57.21 | H58: 57.6 | I58: Profit of Rs 0.23/- | K58: =G58-E58 -> 0.23 | L58: =K58*M58 -> 235 | M58: 1000 | N58: Successful | O58: 2017-12-14

Sheet Sheet2 (hidden)
A1: SYMBOL | B1: SERIES | C1: OPEN | D1: HIGH | E1: LOW | F1: CLOSE | G1: LAST | H1: PREVCLOSE | I1: TOTTRDQTY | J1: TOTTRDVAL | K1: TIMESTAMP | L1: TOTALTRADES | M1: ISIN | N1: ISIN
A2: 20MICRONS | B2: EQ | C2: 42.35 | D2: 42.9 | E2: 42.05 | F2: 42.45 | G2: 42.25 | H2: 42.2 | I2: 59141 | J2: 2509198 | K2: 2018-05-29 | L2: 583 | M2: INE144J01027
A3: 21STCENMGM | B3: EQ | C3: 39.15 | D3: 39.85 | E3: 38.4 | F3: 38.4 | G3: 38.4 | H3: 39.15 | I3: 11376 | J3: 444488.1 | K3: 2018-05-29 | L3: 20 | M3: INE253B01015
A4: 3IINFOTECH | B4: EQ | C4: 4.8 | D4: 5 | E4: 4.7 | F4: 4.95 | G4: 5 | H4: 4.8 | I4: 2021943 | J4: 9839647.7 | K4: 2018-05-29 | L4: 1090 | M4: INE748C01020
A5: 3MINDIA | B5: EQ | C5: 19960.55 | D5: 20039.95 | E5: 19794.55 | F5: 19983.5 | G5: 19925 | H5: 19802.1 | I5: 1240 | J5: 24760807.75 | K5: 2018-05-29 | L5: 434 | M5: INE470A01017
A6: 3PLAND | B6: EQ | C6: 15.4 | D6: 15.4 | E6: 13 | F6: 14.2 | G6: 14.2 | H6: 13.9 | I6: 570 | J6: 7664.85 | K6: 2018-05-29 | L6: 24 | M6: INE105C01023
A7: 5PAISA | B7: EQ | C7: 408 | D7: 409.5 | E7: 392.3 | F7: 409.5 | G7: 409.5 | H7: 390 | I7: 5327 | J7: 2164016.75 | K7: 2018-05-29 | L7: 300 | M7: INE618L01018
A8: 63MOONS | B8: EQ | C8: 80.15 | D8: 81.05 | E8: 78.95 | F8: 79.15 | G8: 78.95 | H8: 80.2 | I8: 117152 | J8: 9357318.3 | K8: 2018-05-29 | L8: 1889 | M8: INE111B01023
A9: 8KMILES | B9: EQ | C9: 625.2 | D9: 648 | E9: 623.85 | F9: 638.1 | G9: 637.9 | H9: 623.35 | I9: 236383 | J9: 150556143 | K9: 2018-05-29 | L9: 8211 | M9: INE650K01021
A10: A2ZINFRA | B10: EQ | C10: 25.5 | D10: 26.1 | E10: 23.8 | F10: 24.1 | G10: 24.2 | H10: 25.7 | I10: 565619 | J10: 14137635.65 | K10: 2018-05-29 | L10: 1821 | M10: INE619I01012
A11: AARTIDRUGS | B11: EQ | C11: 529.05 | D11: 533 | E11: 523 | F11: 524.85 | G11: 523 | H11: 534.9 | I11: 7347 | J11: 3867752.95 | K11: 2018-05-29 | L11: 342 | M11: INE767A01016
A12: AARTIIND | B12: EQ | C12: 1229 | D12: 1229 | E12: 1205 | F12: 1208.9 | G12: 1205 | H12: 1218.15 | I12: 25555 | J12: 31022992.75 | K12: 2018-05-29 | L12: 3865 | M12: INE769A01020
A13: AARVEEDEN | B13: EQ | C13: 41.7 | D13: 41.7 | E13: 37.5 | F13: 37.7 | G13: 37.5 | H13: 38.6 | I13: 21333 | J13: 815382.35 | K13: 2018-05-29 | L13: 120 | M13: INE273D01019
A14: ABAN | B14: EQ | C14: 154.5 | D14: 158.75 | E14: 154.15 | F14: 155.8 | G14: 155.65 | H14: 155.1 | I14: 542073 | J14: 84815476.05 | K14: 2018-05-29 | L14: 6764 | M14: INE421A01028
A15: ABB | B15: EQ | C15: 1211.6 | D15: 1231.15 | E15: 1192.85 | F15: 1225.9 | G15: 1225 | H15: 1203.3 | I15: 39185 | J15: 47908710.65 | K15: 2018-05-29 | L15: 2938 | M15: INE117A01022
A16: ABBOTINDIA | B16: EQ | C16: 6740 | D16: 6767 | E16: 6655.05 | F16: 6686.1 | G16: 6698 | H16: 6773.65 | I16: 2143 | J16: 14378479.7 | K16: 2018-05-29 | L16: 1136 | M16: INE358A01014
A17: ABCAPITAL | B17: EQ | C17: 146 | D17: 151.7 | E17: 145.2 | F17: 149.1 | G17: 149 | H17: 146.15 | I17: 2030951 | J17: 303997059.9 | K17: 2018-05-29 | L17: 19330 | M17: INE674K01013
A18: ABFRL | B18: EQ | C18: 145.35 | D18: 149.9 | E18: 145.35 | F18: 149.25 | G18: 149.4 | H18: 146.35 | I18: 432826 | J18: 64106632.5 | K18: 2018-05-29 | L18: 4462 | M18: INE647O01011
A19: ABMINTLTD | B19: BE | C19: 20.6 | D19: 20.6 | E19: 20.6 | F19: 20.6 | G19: 20.6 | H19: 20.6 | I19: 1 | J19: 20.6 | K19: 2018-05-29 | L19: 1 | M19: INE251C01017
A20: ACC | B20: EQ | C20: 1321.05 | D20: 1337.7 | E20: 1301.2 | F20: 1310 | G20: 1310.05 | H20: 1322.5 | I20: 894054 | J20: 1172847631 | K20: 2018-05-29 | L20: 28856 | M20: INE012A01025
A21: ACCELYA | B21: EQ | C21: 1171.05 | D21: 1179 | E21: 1159.2 | F21: 1178.2 | G21: 1179 | H21: 1169.95 | I21: 2275 | J21: 2659788.45 | K21: 2018-05-29 | L21: 436 | M21: INE793A01012
A22: ACE | B22: EQ | C22: 170.55 | D22: 173.6 | E22: 166.55 | F22: 168.85 | G22: 168.85 | H22: 170.8 | I22: 297662 | J22: 50706977.7 | K22: 2018-05-29 | L22: 4277 | M22: INE731H01025
A23: ADANIENT | B23: EQ | C23: 128 | D23: 129.35 | E23: 122.75 | F23: 123.7 | G23: 122.9 | H23: 129.65 | I23: 4091255 | J23: 514583367.1 | K23: 2018-05-29 | L23: 23697 | M23: INE423A01024
A24: ADANIPORTS | B24: EQ | C24: 379.8 | D24: 383.85 | E24: 373.2 | F24: 377.85 | G24: 375 | H24: 378.9 | I24: 3394813 | J24: 1290418376 | K24: 2018-05-29 | L24: 54363 | M24: INE742F01042
A25: ADANIPOWER | B25: EQ | C25: 20.15 | D25: 21.55 | E25: 20.05 | F25: 20.5 | G25: 20.4 | H25: 20.25 | I25: 19334210 | J25: 400900458 | K25: 2018-05-29 | L25: 19389 | M25: INE814H01011
A26: ADANITRANS | B26: EQ | C26: 136.9 | D26: 164 | E26: 134 | F26: 140.05 | G26: 139.3 | H26: 138.95 | I26: 1039569 | J26: 146482188.7 | K26: 2018-05-29 | L26: 10583 | M26: INE931S01010
A27: ADFFOODS | B27: EQ | C27: 259 | D27: 265.9 | E27: 256.15 | F27: 263.85 | G27: 265.9 | H27: 259.2 | I27: 81492 | J27: 21273795.5 | K27: 2018-05-29 | L27: 2179 | M27: INE982B01019
A28: ADHUNIK | B28: EQ | C28: 3.65 | D28: 3.8 | E28: 3.65 | F28: 3.8 | G28: 3.8 | H28: 3.65 | I28: 50601 | J28: 191915.5 | K28: 2018-05-29 | L28: 58 | M28: INE400H01019
A29: ADHUNIKIND | B29: EQ | C29: 56.7 | D29: 57.85 | E29: 52.35 | F29: 57.4 | G29: 57.85 | H29: 55.1 | I29: 128657 | J29: 7175481.9 | K29: 2018-05-29 | L29: 268 | M29: INE452L01012
A30: ADLABS | B30: EQ | C30: 42.3 | D30: 44 | E30: 41.65 | F30: 41.75 | G30: 41.7 | H30: 43.05 | I30: 57728 | J30: 2458795.8 | K30: 2018-05-29 | L30: 523 | M30: INE172N01012
A31: ADORWELD | B31: EQ | C31: 365.8 | D31: 378 | E31: 359 | F31: 362.2 | G31: 364.95 | H31: 365.6 | I31: 14211 | J31: 5220166.5 | K31: 2018-05-29 | L31: 589 | M31: INE045A01017
A32: ADROITINFO | B32: EQ | C32: 29 | D32: 30.7 | E32: 29 | F32: 30 | G32: 30 | H32: 29.2 | I32: 2825 | J32: 84330.8 | K32: 2018-05-29 | L32: 28 | M32: INE737B01033
A33: ADSL | B33: EQ | C33: 20.45 | D33: 20.45 | E33: 18.5 | F33: 18.55 | G33: 18.5 | H33: 18.85 | I33: 53941 | J33: 1046049.4 | K33: 2018-05-29 | L33: 249 | M33: INE102I01027
A34: ADVANIHOTR | B34: EQ | C34: 57 | D34: 58.55 | E34: 55.5 | F34: 58 | G34: 58.5 | H34: 57.75 | I34: 7336 | J34: 421191.6 | K34: 2018-05-29 | L34: 108 | M34: INE199C01026
A35: ADVENZYMES | B35: EQ | C35: 228 | D35: 244.9 | E35: 225.4 | F35: 239.5 | G35: 234.5 | H35: 221.45 | I35: 1497598 | J35: 349980716.4 | K35: 2018-05-29 | L35: 23513 | M35: INE837H01020
A36: AEGISCHEM | B36: EQ | C36: 277.8 | D36: 277.8 | E36: 260.3 | F36: 266.9 | G36: 266 | H36: 276.65 | I36: 68652 | J36: 18564126.95 | K36: 2018-05-29 | L36: 1941 | M36: INE208C01025
A37: AFL | B37: EQ | C37: 57 | D37: 57.35 | E37: 55.15 | F37: 56.5 | G37: 55.85 | H37: 54.65 | I37: 20220 | J37: 1154098.9 | K37: 2018-05-29 | L37: 112 | M37: INE020G01017
A38: AGARIND | B38: EQ | C38: 245.1 | D38: 253 | E38: 245.1 | F38: 251.45 | G38: 251.45 | H38: 254.1 | I38: 270 | J38: 67079.05 | K38: 2018-05-29 | L38: 15 | M38: INE204E01012
A39: AGCNET | B39: EQ | C39: 115.45 | D39: 124.9 | E39: 115.15 | F39: 124.3 | G39: 124.85 | H39: 113.55 | I39: 21513 | J39: 2635548.9 | K39: 2018-05-29 | L39: 396 | M39: INE676A01019
A40: AGLSL | B40: EQ | C40: 94.2 | D40: 95.75 | E40: 93.8 | F40: 95.5 | G40: 95.75 | H40: 94.3 | I40: 8681 | J40: 820431.7 | K40: 2018-05-29 | L40: 48 | M40: INE517U01013
A41: AGRITECH | B41: EQ | C41: 121.4 | D41: 122 | E41: 119 | F41: 120.35 | G41: 121.05 | H41: 118.25 | I41: 18658 | J41: 2246372.8 | K41: 2018-05-29 | L41: 375 | M41: INE449G01018
A42: AHLEAST | B42: EQ | C42: 300.55 | D42: 305.8 | E42: 300 | F42: 304.95 | G42: 305.8 | H42: 300.35 | I42: 1194 | J42: 360313.2 | K42: 2018-05-29 | L42: 179 | M42: INE926K01017
A43: AHLUCONT | B43: EQ | C43: 403.9 | D43: 403.9 | E43: 394.6 | F43: 400.65 | G43: 401 | H43: 396.6 | I43: 45097 | J43: 17935002 | K43: 2018-05-29 | L43: 383 | M43: INE758C01029
A44: AHLWEST | B44: BE | C44: 278 | D44: 288.8 | E44: 278 | F44: 288.8 | G44: 288.8 | H44: 275.05 | I44: 968 | J44: 278604.45 | K44: 2018-05-29 | L44: 13 | M44: INE915K01010
A45: AIAENG | B45: EQ | C45: 1591.35 | D45: 1625.95 | E45: 1578 | F45: 1583.45 | G45: 1590 | H45: 1578.7 | I45: 82619 | J45: 131459755.8 | K45: 2018-05-29 | L45: 4638 | M45: INE212H01026
A46: AICHAMP | B46: BE | C46: 23.05 | D46: 23.05 | E46: 23.05 | F46: 23.05 | G46: 23.05 | H46: 23.85 | I46: 335 | J46: 7721.75 | K46: 2018-05-29 | L46: 1 | M46: INE768E01024
A47: AIFL | B47: EQ | C47: 490.25 | D47: 502 | E47: 485.15 | F47: 489.35 | G47: 487.7 | H47: 494 | I47: 95853 | J47: 47150827.1 | K47: 2018-05-29 | L47: 1569 | M47: INE428O01016
A48: AJANTPHARM | B48: EQ | C48: 1040 | D48: 1044 | E48: 1010 | F48: 1015.15 | G48: 1010.75 | H48: 1049.3 | I48: 196172 | J48: 201154275.5 | K48: 2018-05-29 | L48: 8419 | M48: INE031B01049
A49: AJMERA | B49: EQ | C49: 252.35 | D49: 253.75 | E49: 245.5 | F49: 246.75 | G49: 246.4 | H49: 251.25 | I49: 41342 | J49: 10301674.7 | K49: 2018-05-29 | L49: 1298 | M49: INE298G01027
A50: AKSHARCHEM | B50: EQ | C50: 660 | D50: 660 | E50: 630 | F50: 656.15 | G50: 658 | H50: 654 | I50: 29058 | J50: 18741813 | K50: 2018-05-29 | L50: 2192 | M50: INE542B01011
A51: AKSHOPTFBR | B51: EQ | C51: 35.5 | D51: 36.35 | E51: 34.45 | F51: 34.95 | G51: 34.85 | H51: 35.5 | I51: 1061528 | J51: 37278343.85 | K51: 2018-05-29 | L51: 2620 | M51: INE523B01011
A52: AKZOINDIA | B52: EQ | C52: 1910.25 | D52: 1941.45 | E52: 1910.25 | F52: 1930.55 | G52: 1934 | H52: 1907.85 | I52: 17874 | J52: 34613425.9 | K52: 2018-05-29 | L52: 508 | M52: INE133A01011
A53: ALANKIT | B53: EQ | C53: 32.2 | D53: 33.1 | E53: 31.25 | F53: 31.6 | G53: 31.55 | H53: 32.2 | I53: 94526 | J53: 3010716.2 | K53: 2018-05-29 | L53: 443 | M53: INE914E01040
A54: ALBERTDAVD | B54: EQ | C54: 371 | D54: 389.8 | E54: 359.4 | F54: 388 | G54: 389.8 | H54: 371.25 | I54: 6457 | J54: 2478693.4 | K54: 2018-05-29 | L54: 141 | M54: INE155C01010
A55: ALBK | B55: EQ | C55: 42.7 | D55: 43.15 | E55: 41.55 | F55: 42 | G55: 41.9 | H55: 42.8 | I55: 3582490 | J55: 151608090.1 | K55: 2018-05-29 | L55: 8441 | M55: INE428A01015
A56: ALCHEM | B56: BE | C56: 6.25 | D56: 6.25 | E56: 5.85 | F56: 6.2 | G56: 6.2 | H56: 6.15 | I56: 19938 | J56: 119539.7 | K56: 2018-05-29 | L56: 57 | M56: INE964B01033
A57: ALEMBICLTD | B57: EQ | C57: 49.45 | D57: 49.8 | E57: 48.15 | F57: 48.45 | G57: 48.65 | H57: 48.85 | I57: 129043 | J57: 6321177.8 | K57: 2018-05-29 | L57: 1089 | M57: INE426A01027
A58: ALICON | B58: EQ | C58: 638 | D58: 648 | E58: 619.35 | F58: 630 | G58: 630 | H58: 635.7 | I58: 3145 | J58: 1998037.75 | K58: 2018-05-29 | L58: 149 | M58: INE062D01024
A59: ALKALI | B59: EQ | C59: 76.15 | D59: 78 | E59: 75.95 | F59: 76.1 | G59: 76.7 | H59: 76.35 | I59: 2013 | J59: 154073.8 | K59: 2018-05-29 | L59: 57 | M59: INE773I01017
A60: ALKEM | B60: EQ | C60: 2021.85 | D60: 2055.5 | E60: 1994 | F60: 2048 | G60: 2024 | H60: 2030.9 | I60: 12811 | J60: 26085363.25 | K60: 2018-05-29 | L60: 3269 | M60: INE540L01014
A61: ALKYLAMINE | B61: EQ | C61: 683.65 | D61: 697 | E61: 675 | F61: 676.95 | G61: 675.05 | H61: 683.65 | I61: 3281 | J61: 2240180.1 | K61: 2018-05-29 | L61: 111 | M61: INE150B01021
A62: ALLCARGO | B62: EQ | C62: 126.35 | D62: 129 | E62: 122 | F62: 126.15 | G62: 126.2 | H62: 125.45 | I62: 198233 | J62: 25116498.05 | K62: 2018-05-29 | L62: 2813 | M62: INE418H01029
A63: ALLSEC | B63: EQ | C63: 313.75 | D63: 317.5 | E63: 300.5 | F63: 301.9 | G63: 301.2 | H63: 315.65 | I63: 12998 | J63: 3973077.6 | K63: 2018-05-29 | L63: 503 | M63: INE835G01018
A64: ALMONDZ | B64: BE | C64: 31.3 | D64: 31.3 | E64: 30.05 | F64: 30.1 | G64: 30.1 | H64: 31.3 | I64: 2951 | J64: 89818.55 | K64: 2018-05-29 | L64: 14 | M64: INE326B01027
A65: ALOKTEXT | B65: EQ | C65: 1.75 | D65: 1.75 | E65: 1.75 | F65: 1.75 | G65: 1.75 | H65: 1.7 | I65: 125018 | J65: 218781.5 | K65: 2018-05-29 | L65: 105 | M65: INE270A01011
A66: ALPA | B66: EQ | C66: 30.5 | D66: 32.35 | E66: 28.6 | F66: 31.35 | G66: 31.8 | H66: 30.05 | I66: 42349 | J66: 1295976.7 | K66: 2018-05-29 | L66: 340 | M66: INE385I01010
A67: ALPHAGEO | B67: EQ | C67: 722 | D67: 747.9 | E67: 722 | F67: 736.75 | G67: 732.05 | H67: 731.25 | I67: 7189 | J67: 5323824.65 | K67: 2018-05-29 | L67: 883 | M67: INE137C01018
A68: ALPSINDUS | B68: BE | C68: 2.2 | D68: 2.25 | E68: 2.05 | F68: 2.25 | G68: 2.25 | H68: 2.15 | I68: 5055 | J68: 11076.5 | K68: 2018-05-29 | L68: 15 | M68: INE093B01015
A69: AMARAJABAT | B69: EQ | C69: 794.7 | D69: 804.8 | E69: 782 | F69: 791.55 | G69: 790 | H69: 789.45 | I69: 313868 | J69: 249470385.7 | K69: 2018-05-29 | L69: 12326 | M69: INE885A01032
A70: AMBER | B70: EQ | C70: 1120.35 | D70: 1120.35 | E70: 1094.9 | F70: 1103.5 | G70: 1102 | H70: 1120.25 | I70: 8319 | J70: 9200192.2 | K70: 2018-05-29 | L70: 1197 | M70: INE371P01015
A71: AMBIKCO | B71: EQ | C71: 1335 | D71: 1347.85 | E71: 1305.9 | F71: 1318.4 | G71: 1320 | H71: 1331.9 | I71: 3176 | J71: 4199269.75 | K71: 2018-05-29 | L71: 271 | M71: INE540G01014
A72: AMBUJACEM | B72: EQ | C72: 212.4 | D72: 214 | E72: 207.85 | F72: 208.3 | G72: 208 | H72: 212.1 | I72: 1459474 | J72: 307685649.2 | K72: 2018-05-29 | L72: 17194 | M72: INE079A01024
A73: AMDIND | B73: EQ | C73: 26.1 | D73: 26.1 | E73: 25.95 | F73: 26.05 | G73: 26.05 | H73: 27.3 | I73: 9079 | J73: 236314.3 | K73: 2018-05-29 | L73: 59 | M73: INE005I01014
A74: AMJLAND | B74: EQ | C74: 26 | D74: 26.15 | E74: 25.05 | F74: 25.4 | G74: 25.15 | H74: 26.25 | I74: 31606 | J74: 812223.45 | K74: 2018-05-29 | L74: 169 | M74: INE606A01024
A75: AMRUTANJAN | B75: EQ | C75: 275 | D75: 279.8 | E75: 275 | F75: 279.45 | G75: 279.15 | H75: 276.15 | I75: 2876 | J75: 801050.45 | K75: 2018-05-29 | L75: 129 | M75: INE098F01031
A76: ANANTRAJ | B76: EQ | C76: 43.6 | D76: 43.6 | E76: 41.45 | F76: 41.6 | G76: 41.7 | H76: 43.3 | I76: 598079 | J76: 25321122.5 | K76: 2018-05-29 | L76: 2482 | M76: INE242C01024
A77: ANDHRABANK | B77: EQ | C77: 37.75 | D77: 37.75 | E77: 36.55 | F77: 36.7 | G77: 36.75 | H77: 37.9 | I77: 4333108 | J77: 159953580.4 | K77: 2018-05-29 | L77: 7142 | M77: INE434A01013
A78: ANDHRACEMT | B78: EQ | C78: 10.2 | D78: 10.4 | E78: 10.1 | F78: 10.25 | G78: 10.25 | H78: 10.2 | I78: 73061 | J78: 751753.3 | K78: 2018-05-29 | L78: 145 | M78: INE666E01012
A79: ANDHRSUGAR | B79: EQ | C79: 416.85 | D79: 421.1 | E79: 400.3 | F79: 403.1 | G79: 407 | H79: 410.05 | I79: 40303 | J79: 16399634.35 | K79: 2018-05-29 | L79: 1664 | M79: INE715B01013
A80: ANGIND | B80: BE | C80: 2.65 | D80: 2.85 | E80: 2.65 | F80: 2.85 | G80: 2.85 | H80: 2.75 | I80: 7153 | J80: 20215.05 | K80: 2018-05-29 | L80: 42 | M80: INE017D01010
A81: ANIKINDS | B81: BE | C81: 33 | D81: 34.9 | E81: 33 | F81: 33.95 | G81: 34 | H81: 34.6 | I81: 2934 | J81: 100724.25 | K81: 2018-05-29 | L81: 59 | M81: INE087B01017
A82: ANSALAPI | B82: EQ | C82: 17.45 | D82: 17.45 | E82: 16.3 | F82: 16.4 | G82: 16.35 | H82: 16.95 | I82: 112369 | J82: 1870082.85 | K82: 2018-05-29 | L82: 376 | M82: INE436A01026
A83: ANSALHSG | B83: EQ | C83: 17.45 | D83: 17.45 | E83: 16.45 | F83: 16.6 | G83: 16.5 | H83: 17.1 | I83: 22458 | J83: 378785.35 | K83: 2018-05-29 | L83: 193 | M83: INE880B01015
A84: ANTGRAPHIC | B84: BE | C84: 0.7 | D84: 0.7 | E84: 0.6 | F84: 0.65 | G84: 0.65 | H84: 0.65 | I84: 30060 | J84: 19937.3 | K84: 2018-05-29 | L84: 35 | M84: INE414B01021
A85: APARINDS | B85: EQ | C85: 733.05 | D85: 738.95 | E85: 715 | F85: 718.1 | G85: 721 | H85: 733.4 | I85: 4964 | J85: 3581819.15 | K85: 2018-05-29 | L85: 474 | M85: INE372A01015
A86: APCL | B86: EQ | C86: 171.4 | D86: 179.4 | E86: 171.35 | F86: 173.65 | G86: 172.4 | H86: 176.7 | I86: 2500 | J86: 437287.15 | K86: 2018-05-29 | L86: 111 | M86: INE071F01012
A87: APCOTEXIND | B87: EQ | C87: 553.9 | D87: 553.9 | E87: 530 | F87: 534.75 | G87: 534 | H87: 542.6 | I87: 5412 | J87: 2931862.8 | K87: 2018-05-29 | L87: 250 | M87: INE116A01024
A88: APEX | B88: EQ | C88: 605 | D88: 629 | E88: 594 | F88: 599.5 | G88: 597 | H88: 591 | I88: 347080 | J88: 211617628.7 | K88: 2018-05-29 | L88: 11504 | M88: INE346W01013
A89: APLAPOLLO | B89: EQ | C89: 1900 | D89: 1942.8 | E89: 1890 | F89: 1931.9 | G89: 1923.2 | H89: 1916.2 | I89: 43159 | J89: 83307309.5 | K89: 2018-05-29 | L89: 5017 | M89: INE702C01019
A90: APLLTD | B90: EQ | C90: 427.95 | D90: 445.8 | E90: 425.7 | F90: 439.95 | G90: 441 | H90: 426.2 | I90: 37487 | J90: 16485380.95 | K90: 2018-05-29 | L90: 1330 | M90: INE901L01018
A91: APOLLO | B91: EQ | C91: 208.7 | D91: 212.45 | E91: 202 | F91: 204.3 | G91: 203.6 | H91: 206.45 | I91: 63020 | J91: 13031362.5 | K91: 2018-05-29 | L91: 1439 | M91: INE713T01010
A92: APOLLOHOSP | B92: EQ | C92: 972.8 | D92: 1017.9 | E92: 964.65 | F92: 1004.9 | G92: 1008.75 | H92: 985.15 | I92: 444641 | J92: 439423402.4 | K92: 2018-05-29 | L92: 23327 | M92: INE437A01024
A93: APOLLOTYRE | B93: EQ | C93: 288 | D93: 291.35 | E93: 279.15 | F93: 280 | G93: 280 | H93: 287.05 | I93: 2483607 | J93: 707941240.2 | K93: 2018-05-29 | L93: 22324 | M93: INE438A01022
A94: APOLSINHOT | B94: EQ | C94: 1815 | D94: 1820 | E94: 1658.05 | F94: 1669 | G94: 1664.9 | H94: 1813.95 | I94: 2300 | J94: 3974740.4 | K94: 2018-05-29 | L94: 310 | M94: INE451F01016
A95: APTECHT | B95: EQ | C95: 241.4 | D95: 245.95 | E95: 236.6 | F95: 240.05 | G95: 240.3 | H95: 241.05 | I95: 658104 | J95: 158648716.4 | K95: 2018-05-29 | L95: 9138 | M95: INE266F01018
A96: ARCHIDPLY | B96: EQ | C96: 83.1 | D96: 85.9 | E96: 83.1 | F96: 84.05 | G96: 84.9 | H96: 83.55 | I96: 22838 | J96: 1930802.25 | K96: 2018-05-29 | L96: 381 | M96: INE877I01016
A97: ARCHIES | B97: BE | C97: 33.9 | D97: 33.9 | E97: 32.65 | F97: 33.05 | G97: 33.2 | H97: 33.9 | I97: 15390 | J97: 512803.45 | K97: 2018-05-29 | L97: 109 | M97: INE731A01020
A98: ARCOTECH | B98: EQ | C98: 23.45 | D98: 25.15 | E98: 23.15 | F98: 23.95 | G98: 23.85 | H98: 23.25 | I98: 507771 | J98: 12383709.15 | K98: 2018-05-29 | L98: 2490 | M98: INE574I01035
A99: ARIES | B99: EQ | C99: 176.4 | D99: 176.4 | E99: 167 | F99: 167.55 | G99: 168.4 | H99: 171.1 | I99: 29560 | J99: 5050279.05 | K99: 2018-05-29 | L99: 575 | M99: INE298I01015
A100: ARIHANT | B100: EQ | C100: 39.9 | D100: 39.9 | E100: 39.9 | F100: 39.9 | G100: 39.9 | H100: 38.75 | I100: 50 | J100: 1995 | K100: 2018-05-29 | L100: 1 | M100: INE413D01011
A101: ARIHANTSUP | B101: EQ | C101: 123.85 | D101: 123.9 | E101: 118.1 | F101: 120.6 | G101: 120.4 | H101: 121.75 | I101: 28276 | J101: 3412771.05 | K101: 2018-05-29 | L101: 157 | M101: INE643K01018
A102: ARMANFIN | B102: BE | C102: 384 | D102: 403.65 | E102: 375.1 | F102: 396.8 | G102: 398 | H102: 384.45 | I102: 4257 | J102: 1675626.8 | K102: 2018-05-29 | L102: 49 | M102: INE109C01017
A103: AROGRANITE | B103: EQ | C103: 62.4 | D103: 63.25 | E103: 61.2 | F103: 62.45 | G103: 62.2 | H103: 61.9 | I103: 20000 | J103: 1242694.35 | K103: 2018-05-29 | L103: 260 | M103: INE210C01013
A104: ARROWGREEN | B104: EQ | C104: 295 | D104: 299 | E104: 272.45 | F104: 274.15 | G104: 274.5 | H104: 292.6 | I104: 38581 | J104: 10973431.8 | K104: 2018-05-29 | L104: 1226 | M104: INE570D01018
A105: ARROWTEX | B105: EQ | C105: 31.9 | D105: 32.4 | E105: 31.2 | F105: 31.4 | G105: 31.55 | H105: 31.35 | I105: 5077 | J105: 159665 | K105: 2018-05-29 | L105: 37 | M105: INE933J01015
A106: ARSHIYA | B106: EQ | C106: 63.35 | D106: 66.5 | E106: 63.35 | F106: 65.4 | G106: 65.5 | H106: 63.3 | I106: 36588 | J106: 2380560.2 | K106: 2018-05-29 | L106: 273 | M106: INE968D01022
A107: ARSSINFRA | B107: BE | C107: 31.95 | D107: 32.8 | E107: 30 | F107: 32.75 | G107: 32.8 | H107: 31.25 | I107: 21887 | J107: 696470.5 | K107: 2018-05-29 | L107: 129 | M107: INE267I01010
A108: ARVIND | B108: EQ | C108: 394 | D108: 399.5 | E108: 387 | F108: 389.2 | G108: 387.25 | H108: 395.35 | I108: 1310397 | J108: 515224491.4 | K108: 2018-05-29 | L108: 31117 | M108: INE034A01011
A109: ARVSMART | B109: EQ | C109: 182.65 | D109: 182.65 | E109: 178.4 | F109: 179.9 | G109: 180.65 | H109: 180.55 | I109: 10674 | J109: 1917155.55 | K109: 2018-05-29 | L109: 514 | M109: INE034S01021
A110: ASAHIINDIA | B110: EQ | C110: 353.1 | D110: 356 | E110: 347 | F110: 347.85 | G110: 347 | H110: 351.55 | I110: 8842 | J110: 3095551.15 | K110: 2018-05-29 | L110: 440 | M110: INE439A01020
A111: ASAHISONG | B111: EQ | C111: 305.3 | D111: 306.35 | E111: 297.1 | F111: 300.1 | G111: 299 | H111: 307.45 | I111: 3167 | J111: 960676.9 | K111: 2018-05-29 | L111: 233 | M111: INE228I01012
A112: ASAL | B112: EQ | C112: 71.3 | D112: 73 | E112: 71 | F112: 72.6 | G112: 72 | H112: 70.35 | I112: 9754 | J112: 702464 | K112: 2018-05-29 | L112: 127 | M112: INE900C01027
A113: ASHAPURMIN | B113: EQ | C113: 58 | D113: 60.1 | E113: 58 | F113: 59.2 | G113: 59.45 | H113: 61.4 | I113: 117548 | J113: 6956514.9 | K113: 2018-05-29 | L113: 1226 | M113: INE348A01023
A114: ASHIANA | B114: EQ | C114: 156.15 | D114: 161.9 | E114: 156.15 | F114: 159.05 | G114: 159.45 | H114: 156.15 | I114: 118407 | J114: 18950010.3 | K114: 2018-05-29 | L114: 1792 | M114: INE365D01021
A115: ASHIMASYN | B115: EQ | C115: 24.55 | D115: 26 | E115: 24.4 | F115: 24.95 | G115: 25.05 | H115: 24.25 | I115: 94729 | J115: 2404136.1 | K115: 2018-05-29 | L115: 442 | M115: INE440A01010
A116: ASHOKA | B116: EQ | C116: 264.5 | D116: 273.1 | E116: 258.3 | F116: 259.7 | G116: 260.2 | H116: 263.65 | I116: 218426 | J116: 58123286.65 | K116: 2018-05-29 | L116: 5429 | M116: INE442H01029
A117: ASHOKLEY | B117: EQ | C117: 147.5 | D117: 150.5 | E117: 146.1 | F117: 149.55 | G117: 149.25 | H117: 146.6 | I117: 13459379 | J117: 2004077683 | K117: 2018-05-29 | L117: 60706 | M117: INE208A01029
A118: ASIANHOTNR | B118: EQ | C118: 271 | D118: 272.05 | E118: 260 | F118: 261.75 | G118: 260.25 | H118: 271 | I118: 2663 | J118: 701526.5 | K118: 2018-05-29 | L118: 90 | M118: INE363A01022
A119: ASIANPAINT | B119: EQ | C119: 1326 | D119: 1330 | E119: 1289 | F119: 1299.5 | G119: 1297.05 | H119: 1321.85 | I119: 769331 | J119: 1003919681 | K119: 2018-05-29 | L119: 31593 | M119: INE021A01026
A120: ASIANTILES | B120: EQ | C120: 430.05 | D120: 430.8 | E120: 422.2 | F120: 423.05 | G120: 423 | H120: 428.45 | I120: 18073 | J120: 7693304.15 | K120: 2018-05-29 | L120: 1341 | M120: INE022I01019
A121: ASPINWALL | B121: EQ | C121: 351.2 | D121: 360 | E121: 311 | F121: 314.95 | G121: 314 | H121: 362 | I121: 14216 | J121: 4598135 | K121: 2018-05-29 | L121: 409 | M121: INE991I01015
A122: ASSAMCO | B122: EQ | C122: 4.05 | D122: 4.15 | E122: 3.95 | F122: 4.1 | G122: 4.15 | H122: 3.95 | I122: 159463 | J122: 640545.7 | K122: 2018-05-29 | L122: 177 | M122: INE442A01024
A123: ASTEC | B123: EQ | C123: 681.65 | D123: 720 | E123: 676 | F123: 714.75 | G123: 720 | H123: 688.15 | I123: 35169 | J123: 24909232.5 | K123: 2018-05-29 | L123: 1809 | M123: INE563J01010
A124: ASTERDM | B124: EQ | C124: 181.95 | D124: 182 | E124: 178.35 | F124: 179.55 | G124: 179.5 | H124: 179.75 | I124: 68631 | J124: 12353766.75 | K124: 2018-05-29 | L124: 1312 | M124: INE914M01019
A125: ASTRAL | B125: EQ | C125: 972.9 | D125: 972.9 | E125: 943 | F125: 960.1 | G125: 962 | H125: 965.3 | I125: 35388 | J125: 33814060.55 | K125: 2018-05-29 | L125: 2599 | M125: INE006I01046
A126: ASTRAMICRO | B126: EQ | C126: 97.15 | D126: 103 | E126: 97.1 | F126: 102 | G126: 102.25 | H126: 98 | I126: 535230 | J126: 53811646 | K126: 2018-05-29 | L126: 5002 | M126: INE386C01029
A127: ASTRAZEN | B127: EQ | C127: 1178.05 | D127: 1178.7 | E127: 1160.5 | F127: 1167.45 | G127: 1165 | H127: 1185.35 | I127: 4245 | J127: 4963637.15 | K127: 2018-05-29 | L127: 301 | M127: INE203A01020
A128: ASTRON | B128: EQ | C128: 112 | D128: 114 | E128: 110.7 | F128: 111.45 | G128: 111.45 | H128: 112.8 | I128: 72459 | J128: 8158643.9 | K128: 2018-05-29 | L128: 1244 | M128: INE646X01014
A129: ATFL | B129: EQ | C129: 687.6 | D129: 703 | E129: 685.15 | F129: 699.65 | G129: 700 | H129: 695.15 | I129: 2889 | J129: 2008096.6 | K129: 2018-05-29 | L129: 230 | M129: INE209A01019
A130: ATLANTA | B130: EQ | C130: 66 | D130: 67.35 | E130: 63.95 | F130: 65.35 | G130: 65.2 | H130: 65.85 | I130: 330405 | J130: 21817199.45 | K130: 2018-05-29 | L130: 1540 | M130: INE285H01022
A131: ATLASCYCLE | B131: BE | C131: 140.45 | D131: 143 | E131: 139.05 | F131: 142.45 | G131: 142.05 | H131: 140.5 | I131: 3218 | J131: 454735.65 | K131: 2018-05-29 | L131: 83 | M131: INE446A01025
A132: ATUL | B132: EQ | C132: 2723 | D132: 2743.25 | E132: 2701 | F132: 2709.45 | G132: 2705.3 | H132: 2723.1 | I132: 3362 | J132: 9134482.7 | K132: 2018-05-29 | L132: 663 | M132: INE100A01010
A133: ATULAUTO | B133: EQ | C133: 428.05 | D133: 431.65 | E133: 426 | F133: 428.25 | G133: 428.45 | H133: 433.4 | I133: 4202 | J133: 1803268.5 | K133: 2018-05-29 | L133: 261 | M133: INE951D01028
A134: AUBANK | B134: EQ | C134: 686.1 | D134: 690 | E134: 678.4 | F134: 683.35 | G134: 682 | H134: 686.1 | I134: 103637 | J134: 70780364.25 | K134: 2018-05-29 | L134: 2882 | M134: INE949L01017
A135: AURIONPRO | B135: EQ | C135: 205.4 | D135: 209.4 | E135: 202.2 | F135: 207.1 | G135: 203.9 | H135: 207.9 | I135: 14435 | J135: 2995866 | K135: 2018-05-29 | L135: 387 | M135: INE132H01018
A136: AUROPHARMA | B136: EQ | C136: 582.6 | D136: 593.35 | E136: 567.95 | F136: 578.8 | G136: 578 | H136: 605.25 | I136: 6524564 | J136: 3799091839 | K136: 2018-05-29 | L136: 92663 | M136: INE406A01037
A137: AUSOMENT | B137: EQ | C137: 69.15 | D137: 70.95 | E137: 68.05 | F137: 69.9 | G137: 69.85 | H137: 70.2 | I137: 9609 | J137: 670677.65 | K137: 2018-05-29 | L137: 179 | M137: INE218C01016
A138: AUTOAXLES | B138: EQ | C138: 1320 | D138: 1324 | E138: 1305.25 | F138: 1309.05 | G138: 1308 | H138: 1319.95 | I138: 26710 | J138: 35196221.25 | K138: 2018-05-29 | L138: 1300 | M138: INE449A01011
A139: AUTOIND | B139: EQ | C139: 74.65 | D139: 76.45 | E139: 73.95 | F139: 75.65 | G139: 75.95 | H139: 75 | I139: 10028 | J139: 755897.45 | K139: 2018-05-29 | L139: 150 | M139: INE718H01014
A140: AUTOLITIND | B140: EQ | C140: 65.35 | D140: 65.45 | E140: 63.7 | F140: 64.2 | G140: 63.9 | H140: 64.6 | I140: 6542 | J140: 421129.2 | K140: 2018-05-29 | L140: 106 | M140: INE448A01013
A141: AVADHSUGAR | B141: EQ | C141: 376 | D141: 385 | E141: 371 | F141: 378.2 | G141: 378 | H141: 367.45 | I141: 56556 | J141: 21375881.5 | K141: 2018-05-29 | L141: 1511 | M141: INE349W01017
A142: AVANTIFEED | B142: EQ | C142: 1825 | D142: 1869.5 | E142: 1813 | F142: 1819.55 | G142: 1820 | H142: 1816.7 | I142: 125515 | J142: 230773780.2 | K142: 2018-05-29 | L142: 9165 | M142: INE871C01020
A143: AVTNPL | B143: EQ | C143: 36 | D143: 36.8 | E143: 35.6 | F143: 35.9 | G143: 35.85 | H143: 35.85 | I143: 55011 | J143: 1990013.25 | K143: 2018-05-29 | L143: 352 | M143: INE488D01021
A144: AXISBANK | B144: EQ | C144: 547 | D144: 549.9 | E144: 543.2 | F144: 547.75 | G144: 547 | H144: 546.15 | I144: 8015443 | J144: 4386213770 | K144: 2018-05-29 | L144: 82379 | M144: INE238A01034
A145: AXISCADES | B145: EQ | C145: 154 | D145: 157.8 | E145: 152.1 | F145: 152.95 | G145: 154.2 | H145: 154.45 | I145: 38540 | J145: 5952991.6 | K145: 2018-05-29 | L145: 1618 | M145: INE555B01013
A146: AXISGOLD | B146: EQ | C146: 2705.05 | D146: 2749 | E146: 2699 | F146: 2735.05 | G146: 2735.05 | H146: 2728.05 | I146: 64 | J146: 174779.1 | K146: 2018-05-29 | L146: 25 | M146: INF846K01347
A147: AXISNIFTY | B147: EQ | C147: 1081.55 | D147: 1081.55 | E147: 1081.55 | F147: 1081.55 | G147: 1081.55 | H147: 1074.13 | I147: 1 | J147: 1081.55 | K147: 2018-05-29 | L147: 1 | M147: INF846K01ZL0
A148: AYMSYNTEX | B148: EQ | C148: 60 | D148: 60 | E148: 57.1 | F148: 57.1 | G148: 57.15 | H148: 58.2 | I148: 19690 | J148: 1131821.75 | K148: 2018-05-29 | L148: 61 | M148: INE193B01039
A149: BAFNAPHARM | B149: EQ | C149: 26.75 | D149: 27 | E149: 25.15 | F149: 25.75 | G149: 25.5 | H149: 26.75 | I149: 24083 | J149: 619181.85 | K149: 2018-05-29 | L149: 242 | M149: INE878I01014
A150: BAGFILMS | B150: EQ | C150: 5.1 | D150: 5.1 | E150: 4.7 | F150: 4.85 | G150: 4.85 | H150: 5.2 | I150: 147933 | J150: 717117.8 | K150: 2018-05-29 | L150: 140 | M150: INE116D01028
A151: BAJAJ-AUTO | B151: EQ | C151: 2805.9 | D151: 2834.95 | E151: 2761.65 | F151: 2796.05 | G151: 2795 | H151: 2790.15 | I151: 261407 | J151: 731162435.8 | K151: 2018-05-29 | L151: 20890 | M151: INE917I01010
A152: BAJAJCORP | B152: EQ | C152: 467.85 | D152: 467.85 | E152: 458.75 | F152: 463.45 | G152: 463 | H152: 463.05 | I152: 34760 | J152: 16092949.1 | K152: 2018-05-29 | L152: 712 | M152: INE933K01021
A153: BAJAJELEC | B153: EQ | C153: 557.3 | D153: 560.6 | E153: 545.05 | F153: 549.65 | G153: 548.95 | H153: 554.6 | I153: 439520 | J153: 242593512.1 | K153: 2018-05-29 | L153: 12837 | M153: INE193E01025
A154: BAJAJFINSV | B154: EQ | C154: 6009.35 | D154: 6055 | E154: 5865.1 | F154: 5887.85 | G154: 5868 | H154: 6009.35 | I154: 117673 | J154: 701411090.5 | K154: 2018-05-29 | L154: 17708 | M154: INE918I01018
A155: BAJAJHIND | B155: EQ | C155: 7.75 | D155: 7.8 | E155: 7.55 | F155: 7.6 | G155: 7.65 | H155: 7.4 | I155: 3826898 | J155: 29390424.4 | K155: 2018-05-29 | L155: 3758 | M155: INE306A01021
A156: BAJAJHLDNG | B156: EQ | C156: 2811.8 | D156: 2811.8 | E156: 2755 | F156: 2766.05 | G156: 2770 | H156: 2790.2 | I156: 3554 | J156: 9872406.3 | K156: 2018-05-29 | L156: 967 | M156: INE118A01012
A157: BAJFINANCE | B157: EQ | C157: 2105 | D157: 2107 | E157: 2065.05 | F157: 2077.1 | G157: 2080 | H157: 2094.95 | I157: 727259 | J157: 1516519677 | K157: 2018-05-29 | L157: 36634 | M157: INE296A01024
A158: BALAJITELE | B158: EQ | C158: 130.95 | D158: 132 | E158: 129.5 | F158: 131.25 | G158: 131.9 | H158: 130.1 | I158: 23476 | J158: 3072752.55 | K158: 2018-05-29 | L158: 324 | M158: INE794B01026
A159: BALAMINES | B159: EQ | C159: 627.75 | D159: 630 | E159: 611.3 | F159: 616.05 | G159: 620 | H159: 627.75 | I159: 7132 | J159: 4414383.45 | K159: 2018-05-29 | L159: 696 | M159: INE050E01027
A160: BALKRISHNA | B160: EQ | C160: 73.05 | D160: 73.75 | E160: 73 | F160: 73.05 | G160: 73 | H160: 73 | I160: 6540 | J160: 478259.15 | K160: 2018-05-29 | L160: 279 | M160: INE875R01011
A161: BALKRISIND | B161: EQ | C161: 1147 | D161: 1173.9 | E161: 1135.45 | F161: 1142.35 | G161: 1140.05 | H161: 1146.85 | I161: 328078 | J161: 378292554.2 | K161: 2018-05-29 | L161: 13951 | M161: INE787D01026
A162: BALLARPUR | B162: EQ | C162: 11.45 | D162: 11.6 | E162: 11.05 | F162: 11.1 | G162: 11.15 | H162: 11.45 | I162: 414342 | J162: 4702546.65 | K162: 2018-05-29 | L162: 671 | M162: INE294A01037
A163: BALMLAWRIE | B163: EQ | C163: 217 | D163: 227.4 | E163: 217 | F163: 223.6 | G163: 224 | H163: 217.5 | I163: 161020 | J163: 36080727.3 | K163: 2018-05-29 | L163: 3226 | M163: INE164A01016
A164: BALPHARMA | B164: EQ | C164: 78.05 | D164: 83.85 | E164: 78.05 | F164: 81.85 | G164: 81 | H164: 79.65 | I164: 58654 | J164: 4788968.85 | K164: 2018-05-29 | L164: 691 | M164: INE083D01012
A165: BALRAMCHIN | B165: EQ | C165: 73.85 | D165: 74.75 | E165: 70.1 | F165: 71.6 | G165: 71.75 | H165: 74.75 | I165: 9126320 | J165: 654129463.2 | K165: 2018-05-29 | L165: 40299 | M165: INE119A01028
A166: BANARBEADS | B166: EQ | C166: 52.65 | D166: 58 | E166: 52.65 | F166: 53.2 | G166: 53.2 | H166: 54.95 | I166: 5470 | J166: 298861 | K166: 2018-05-29 | L166: 38 | M166: INE655B01011
A167: BANARISUG | B167: EQ | C167: 1595 | D167: 1605 | E167: 1577.2 | F167: 1592 | G167: 1598 | H167: 1570.85 | I167: 106 | J167: 168948.85 | K167: 2018-05-29 | L167: 29 | M167: INE459A01010
A168: BANCOINDIA | B168: EQ | C168: 217.5 | D168: 222.8 | E168: 217.45 | F168: 221 | G168: 220.95 | H168: 217.25 | I168: 30488 | J168: 6737649.1 | K168: 2018-05-29 | L168: 1051 | M168: INE213C01025
A169: BANDHANBNK | B169: EQ | C169: 485.1 | D169: 488.5 | E169: 478.25 | F169: 479.75 | G169: 479 | H169: 484.55 | I169: 172900 | J169: 83447008.3 | K169: 2018-05-29 | L169: 6678 | M169: INE545U01014
A170: BANG | B170: EQ | C170: 43 | D170: 43 | E170: 41.6 | F170: 42.1 | G170: 42 | H170: 42.3 | I170: 6970 | J170: 293015.95 | K170: 2018-05-29 | L170: 50 | M170: INE863I01016
A171: BANKBARODA | B171: EQ | C171: 144 | D171: 145.45 | E171: 139.55 | F171: 140.4 | G171: 140.3 | H171: 145.4 | I171: 12773006 | J171: 1818443447 | K171: 2018-05-29 | L171: 49898 | M171: INE028A01039
A172: BANKBEES | B172: EQ | C172: 2691.7 | D172: 2694 | E172: 2662.5 | F172: 2668.36 | G172: 2669.5 | H172: 2698.35 | I172: 1160 | J172: 3102389.51 | K172: 2018-05-29 | L172: 361 | M172: INF732E01078
A173: BANKINDIA | B173: EQ | C173: 106 | D173: 106 | E173: 101.1 | F173: 101.6 | G173: 101.1 | H173: 107.75 | I173: 18636555 | J173: 1914126408 | K173: 2018-05-29 | L173: 58649 | M173: INE084A01016
A174: BANSWRAS | B174: EQ | C174: 94 | D174: 94 | E174: 89.25 | F174: 91.4 | G174: 92 | H174: 93.45 | I174: 3646 | J174: 333260.1 | K174: 2018-05-29 | L174: 157 | M174: INE629D01012
A175: BARTRONICS | B175: BE | C175: 12 | D175: 12.75 | E175: 11.7 | F175: 12.3 | G175: 12.3 | H175: 12.25 | I175: 105913 | J175: 1286781.45 | K175: 2018-05-29 | L175: 308 | M175: INE855F01034
A176: BASF | B176: EQ | C176: 2019 | D176: 2050 | E176: 1996.15 | F176: 2018.75 | G176: 2020 | H176: 1995.9 | I176: 10653 | J176: 21525187.3 | K176: 2018-05-29 | L176: 2270 | M176: INE373A01013
A177: BASML | B177: EQ | C177: 239 | D177: 240 | E177: 235.5 | F177: 240 | G177: 240 | H177: 239.1 | I177: 151 | J177: 35968.5 | K177: 2018-05-29 | L177: 11 | M177: INE186H01014
A178: BATAINDIA | B178: EQ | C178: 780.65 | D178: 780.65 | E178: 761.85 | F178: 771.1 | G178: 772.2 | H178: 776.8 | I178: 549834 | J178: 423731097.3 | K178: 2018-05-29 | L178: 15212 | M178: INE176A01028
A179: BAYERCROP | B179: EQ | C179: 4548.55 | D179: 4669.8 | E179: 4529.2 | F179: 4648.3 | G179: 4637.5 | H179: 4555.6 | I179: 6183 | J179: 28544875.85 | K179: 2018-05-29 | L179: 1852 | M179: INE462A01022
A180: BBL | B180: EQ | C180: 1406.8 | D180: 1408.1 | E180: 1388.7 | F180: 1397.15 | G180: 1402 | H180: 1394.25 | I180: 4609 | J180: 6444917.75 | K180: 2018-05-29 | L180: 423 | M180: INE464A01028
A181: BBTC | B181: EQ | C181: 1535 | D181: 1565.05 | E181: 1521.75 | F181: 1537 | G181: 1546.1 | H181: 1532.2 | I181: 154794 | J181: 238959403.1 | K181: 2018-05-29 | L181: 6804 | M181: INE050A01025
A182: BDL | B182: EQ | C182: 396.95 | D182: 411.45 | E182: 396.95 | F182: 402.6 | G182: 402 | H182: 396.25 | I182: 150237 | J182: 60989267.85 | K182: 2018-05-29 | L182: 6535 | M182: INE171Z01018
A183: BEARDSELL | B183: EQ | C183: 44.75 | D183: 44.75 | E183: 42.05 | F183: 42.6 | G183: 42.6 | H183: 43.6 | I183: 2099 | J183: 89671.35 | K183: 2018-05-29 | L183: 45 | M183: INE520H01022
A184: BEDMUTHA | B184: BE | C184: 18.85 | D184: 18.85 | E184: 17.4 | F184: 17.5 | G184: 17.5 | H184: 18.2 | I184: 4256 | J184: 76555.3 | K184: 2018-05-29 | L184: 29 | M184: INE844K01012
A185: BEL | B185: EQ | C185: 123.5 | D185: 124.55 | E185: 122 | F185: 122.8 | G185: 122.3 | H185: 123.6 | I185: 4380242 | J185: 539179258.1 | K185: 2018-05-29 | L185: 26158 | M185: INE263A01024
A186: BEML | B186: EQ | C186: 950.25 | D186: 957.95 | E186: 936 | F186: 945.25 | G186: 945.3 | H186: 944.4 | I186: 754782 | J186: 713504245.2 | K186: 2018-05-29 | L186: 30640 | M186: INE258A01016
A187: BEPL | B187: EQ | C187: 161 | D187: 161.9 | E187: 146.35 | F187: 152.9 | G187: 152.5 | H187: 161.25 | I187: 1619317 | J187: 250048984.2 | K187: 2018-05-29 | L187: 13630 | M187: INE922A01025
A188: BERGEPAINT | B188: EQ | C188: 300.9 | D188: 305.7 | E188: 294.2 | F188: 298.25 | G188: 298.25 | H188: 301.25 | I188: 1095780 | J188: 329016960.2 | K188: 2018-05-29 | L188: 17221 | M188: INE463A01038
A189: BFINVEST | B189: EQ | C189: 301 | D189: 313.6 | E189: 300.15 | F189: 306.7 | G189: 306.6 | H189: 300.15 | I189: 245775 | J189: 75539329.45 | K189: 2018-05-29 | L189: 6411 | M189: INE878K01010
A190: BFUTILITIE | B190: EQ | C190: 378.1 | D190: 384.95 | E190: 373.65 | F190: 378.2 | G190: 378.2 | H190: 375.5 | I190: 524213 | J190: 199301068.4 | K190: 2018-05-29 | L190: 11927 | M190: INE243D01012
A191: BGLOBAL | B191: BE | C191: 4.2 | D191: 4.2 | E191: 4 | F191: 4.15 | G191: 4.2 | H191: 4.15 | I191: 63253 | J191: 265060.05 | K191: 2018-05-29 | L191: 21 | M191: INE224M01013
A192: BGRENERGY | B192: EQ | C192: 96.9 | D192: 99.3 | E192: 94.8 | F192: 95.55 | G192: 96 | H192: 96.5 | I192: 80742 | J192: 7830781.6 | K192: 2018-05-29 | L192: 1163 | M192: INE661I01014
A193: BHAGERIA | B193: EQ | C193: 290 | D193: 294.75 | E193: 284 | F193: 284.75 | G193: 284.95 | H193: 295.85 | I193: 9910 | J193: 2851405.15 | K193: 2018-05-29 | L193: 256 | M193: INE354C01027
A194: BHAGYANGR | B194: EQ | C194: 46.25 | D194: 48.15 | E194: 45.35 | F194: 46.2 | G194: 46.25 | H194: 46.3 | I194: 79819 | J194: 3748472.95 | K194: 2018-05-29 | L194: 670 | M194: INE458B01036
A195: BHAGYAPROP | B195: BE | C195: 22.6 | D195: 22.6 | E195: 20.7 | F195: 21.1 | G195: 21.1 | H195: 21.6 | I195: 11752 | J195: 245047.45 | K195: 2018-05-29 | L195: 17 | M195: INE363W01018
A196: BHANDARI | B196: EQ | C196: 2.25 | D196: 2.25 | E196: 2.15 | F196: 2.25 | G196: 2.25 | H196: 2.25 | I196: 693345 | J196: 1525716.25 | K196: 2018-05-29 | L196: 254 | M196: INE474E01029
A197: BHARATFIN | B197: EQ | C197: 1155 | D197: 1160.9 | E197: 1135.05 | F197: 1141.9 | G197: 1143.9 | H197: 1155.2 | I197: 666837 | J197: 766516002 | K197: 2018-05-29 | L197: 19147 | M197: INE180K01011
A198: BHARATFORG | B198: EQ | C198: 660.5 | D198: 675.95 | E198: 650.2 | F198: 659.15 | G198: 661.05 | H198: 663.45 | I198: 1532120 | J198: 1019921713 | K198: 2018-05-29 | L198: 33920 | M198: INE465A01025
A199: BHARATGEAR | B199: EQ | C199: 176 | D199: 180 | E199: 174.45 | F199: 177.45 | G199: 177.25 | H199: 176 | I199: 23329 | J199: 4116484 | K199: 2018-05-29 | L199: 533 | M199: INE561C01019
A200: BHARATRAS | B200: EQ | C200: 5737 | D200: 5737 | E200: 5600 | F200: 5631.1 | G200: 5625 | H200: 5665.1 | I200: 311 | J200: 1749539.1 | K200: 2018-05-29 | L200: 140 | M200: INE838B01013
... 1446 more rows

Sheet Sheet1 (hidden)

Sheet Sheet3 (hidden)
